Workbook

Sheet دیده بان
A1: نماد | B1: قیمت اعمال | C1: قیمت سهم پایه | D1: تاریخ سررسید | E1: روز | F1: موقعیت های باز | G1: حجم معاملات | H1: ارزش معاملات | I1: آخرین قیمت | J1: درصد آخرین قیمت | K1: قیمت پایانی | L1: درصد قیمت پایانی | M1: سر به سر | N1: بلک شولز | O1: اختلاف تا بلک شولز | P1: وضعیت | Q1: اهرم | R1: کمترین قیمت | S1: بیشترین قیمت | T1: وجه تضمین | U1: دلتا | V1: تتا | W1: گاما | X1: وگا | Y1: رو | Z1: نوسان پذیری ضمنی
A2: ضخود1122 | B2: 3000 | C2: 2829 | D2: 1402/11/11 | E2: 24 | F2: 3,719,590 (7.7%) | G2: 3M | H2: 251.81B | I2: 75 | J2: -2.6 | K2: 84 | L2: 9.09 | M2: 3075 | N2: 66 | O2: 0.1319 | P2: در ضرر | Q2: 15 | R2: 70 | S2: 101 | T2: 524000 | U2: 0.386 | V2: -1007.942 | W2: 0.0015 | X2: 281.009 | Y2: 68.396 | Z2: undefined
A3: ضخود1120 | B3: 2600 | C3: 2829 | D3: 1402/11/11 | E3: 24 | F3: 988,113 (0.4%) | G3: 246354 | H3: 78.96B | I3: 310 | J3: 2.65 | K3: 320 | L3: 5.96 | M3: 2910 | N3: 318 | O3: -0.0264 | P3: در سود | Q3: 8 | R3: 280 | S3: 365 | T3: 900000 | U3: 0.904 | V3: -900.301 | W3: 0.0007 | X3: 124.942 | Y3: 149.332 | Z3: undefined
A4: ضسپا1001 | B4: 2400 | C4: 2469 | D4: 1402/10/20 | E4: 3 | F4: 1,368,934 (-2.2%) | G4: 884899 | H4: 68.23B | I4: 65 | J4: -15.58 | K4: 77 | L4: 0 | M4: 2465 | N4: 104 | O4: -0.3723 | P4: در سود | Q4: 34 | R4: 59 | S4: 117 | T4: 577000 | U4: 0.904 | V4: -1358.915 | W4: 0.0022 | X4: 38.56 | Y4: 17.685 | Z4: undefined
A5: ضهرم1219 | B5: 13000 | C5: 20340 | D5: 1402/12/23 | E5: 66 | F5: 325,667 (0.6%) | G5: 6599 | H5: 54.96B | I5: 8222 | J5: -0.95 | K5: 8328 | L5: 0.33 | M5: 21222 | N5: 8065 | O5: 0.0195 | P5: در سود | Q5: 2 | R5: 8125 | S5: 8660 | T5: 12428000 | U5: 1 | V5: -3113.989 | W5: 0 | X5: 9.519 | Y5: 2245.647 | Z5: undefined
A6: ضهرم1224 | B6: 20000 | C6: 20340 | D6: 1402/12/23 | E6: 66 | F6: 265,808 (1.3%) | G6: 16232 | H6: 42.03B | I6: 2489 | J6: -5.83 | K6: 2589 | L6: -2.04 | M6: 22489 | N6: 1987 | O6: 0.2527 | P6: در سود | Q6: 6 | R6: 2422 | S6: 2830 | T6: 6689000 | U6: 0.706 | V6: -6024.512 | W6: 0.0001 | X6: 3003.125 | Y6: 2255.268 | Z6: undefined
A7: ضسپا1000 | B7: 2200 | C7: 2469 | D7: 1402/10/20 | E7: 3 | F7: 1,296,454 (-4.2%) | G7: 145555 | H7: 37.14B | I7: 242 | J7: -5.84 | K7: 255 | L7: -0.78 | M7: 2442 | N7: 300 | O7: -0.192 | P7: در سود | Q7: 10 | R7: 235 | S7: 315 | T7: 755000 | U7: 1 | V7: -549.39 | W7: 0 | X7: 0.025 | Y7: 18.045 | Z7: undefined
A8: ضخود1121 | B8: 2800 | C8: 2829 | D8: 1402/11/11 | E8: 24 | F8: 627,844 (2.5%) | G8: 211944 | H8: 35.05B | I8: 150 | J8: -3.23 | K8: 165 | L8: 6.45 | M8: 2950 | N8: 165 | O8: -0.0894 | P8: در سود | Q8: 13 | R8: 146 | S8: 204 | T8: 745000 | U8: 0.684 | V8: -1143.764 | W8: 0.0014 | X8: 261.122 | Y8: 118.04 | Z8: undefined
A9: ضخود1218 | B9: 2600 | C9: 2829 | D9: 1402/12/02 | E9: 45 | F9: 625,855 (0.6%) | G9: 80845 | H9: 31.26B | I9: 374 | J9: -1.32 | K9: 387 | L9: 2.11 | M9: 2974 | N9: 368 | O9: 0.015 | P9: در سود | Q9: 7 | R9: 370 | S9: 429 | T9: 967000 | U9: 0.864 | V9: -837.864 | W9: 0.0006 | X9: 219.275 | Y9: 259.701 | Z9: undefined
A10: ضخود1217 | B10: 2400 | C10: 2829 | D10: 1402/12/02 | E10: 45 | F10: 632,500 (0.9%) | G10: 54594 | H10: 30.42B | I10: 541 | J10: 3.44 | K10: 557 | L10: 6.5 | M10: 2941 | N10: 543 | O10: -0.0033 | P10: در سود | Q10: 5 | R10: 504 | S10: 595 | T10: 1137000 | U10: 0.96 | V10: -674.697 | W10: 0.0002 | X10: 86.687 | Y10: 272.046 | Z10: undefined
A11: ضسپا1002 | B11: 2600 | C11: 2469 | D11: 1402/10/20 | E11: 3 | F11: 4,312,110 (2.7%) | G11: 2M | H11: 28.13B | I11: 9 | J11: -50 | K11: 15 | L11: -16.67 | M11: 2609 | N11: 4 | O11: 1.1333 | P11: در ضرر | Q11: 31 | R11: 6 | S11: 27 | T11: 415000 | U11: 0.112 | V11: -983.016 | W11: 0.0024 | X11: 42.952 | Y11: 2.252 | Z11: undefined
A12: ضتوان1201 | B12: 16000 | C12: 18431 | D12: 1402/12/14 | E12: 57 | F12: 18,566 (53.8%) | G12: 7485 | H12: 26.28B | I12: 3500 | J12: -0.11 | K12: 3511 | L12: 0.2 | M12: 19500 | N12: 3196 | O12: 0.0951 | P12: در سود | Q12: 5 | R12: 3420 | S12: 3550 | T12: 7211000 | U12: 0.918 | V12: -4679.785 | W12: 0.0001 | X12: 1102.129 | Y12: 2151.772 | Z12: undefined
A13: ضستا1216 | B13: 1212 | C13: 1244 | D13: 1402/12/09 | E13: 52 | F13: 3,961,662 (0.3%) | G13: 197286 | H13: 23.56B | I13: 117 | J13: -2.5 | K13: 119 | L13: -0.83 | M13: 1329 | N13: 108 | O13: 0.0808 | P13: در سود | Q13: 7 | R13: 116 | S13: 131 | T13: 369000 | U13: 0.705 | V13: -391.534 | W13: 0.0021 | X13: 162.124 | Y13: 109.634 | Z13: undefined
A14: ضتوان1203 | B14: 18000 | C14: 18431 | D14: 1402/12/14 | E14: 57 | F14: 18,857 (17.8%) | G14: 9384 | H14: 19.17B | I14: 2000 | J14: -2.63 | K14: 2043 | L14: -0.54 | M14: 20000 | N14: 1681 | O14: 0.1896 | P14: در سود | Q14: 7 | R14: 2000 | S14: 2102 | T14: 5743000 | U14: 0.706 | V14: -5661.686 | W14: 0.0001 | X14: 2514.651 | Y14: 1776.359 | Z14: undefined
A15: ضسپا1219 | B15: 2200 | C15: 2469 | D15: 1402/12/23 | E15: 66 | F15: 133,359 (16.5%) | G15: 43490 | H15: 18.51B | I15: 391 | J15: 0.26 | K15: 426 | L15: 9.23 | M15: 2591 | N15: 413 | O15: -0.0542 | P15: در سود | Q15: 6 | R15: 391 | S15: 500 | T15: 926000 | U15: 0.889 | V15: -645.208 | W15: 0.0005 | X15: 200.21 | Y15: 326.524 | Z15: undefined
A16: ضهرم1225 | B16: 22000 | C16: 20340 | D16: 1402/12/23 | E16: 66 | F16: 88,018 (5.9%) | G16: 11059 | H16: 18.16B | I16: 1586 | J16: -3.76 | K16: 1642 | L16: -0.36 | M16: 23586 | N16: 981 | O16: 0.6164 | P16: در ضرر | Q16: 6 | R16: 1535 | S16: 1839 | T16: 4232000 | U16: 0.46 | V16: -5460.157 | W16: 0.0001 | X16: 3458.781 | Y16: 1528.117 | Z16: undefined
A17: ضسپا1220 | B17: 2400 | C17: 2469 | D17: 1402/12/23 | E17: 66 | F17: 176,493 (32.8%) | G17: 64230 | H17: 17.10B | I17: 255 | J17: -1.54 | K17: 266 | L17: 2.7 | M17: 2655 | N17: 265 | O17: -0.0362 | P17: در سود | Q17: 7 | R17: 255 | S17: 314 | T17: 766000 | U17: 0.739 | V17: -728.536 | W17: 0.0009 | X17: 345.1 | Y17: 285.371 | Z17: undefined
A18: ضهرم3000 | B18: 12000 | C18: 20340 | D18: 1403/03/23 | E18: 157 | F18: 30,680 (4.0%) | G18: 1475 | H18: 16.32B | I18: 10360 | J18: -1.88 | K18: 11066 | L18: 4.8 | M18: 22360 | N18: 9716 | O18: 0.0663 | P18: در سود | Q18: 2 | R18: 10152 | S18: 14000 | T18: 15166000 | U18: 0.998 | V18: -2715.595 | W18: 0 | X18: 76.791 | Y18: 4618.557 | Z18: undefined
A19: ضهرم3006 | B19: 20000 | C19: 20340 | D19: 1403/03/23 | E19: 157 | F19: 47,148 (5.1%) | G19: 3352 | H19: 15.52B | I19: 4550 | J19: 0.22 | K19: 4631 | L19: 2 | M19: 24550 | N19: 3301 | O19: 0.3783 | P19: در سود | Q19: 3 | R19: 4420 | S19: 4765 | T19: 8731000 | U19: 0.754 | V19: -4760.246 | W19: 0.0001 | X19: 4229.278 | Y19: 5229.738 | Z19: undefined
A20: ضسپا1221 | B20: 2600 | C20: 2469 | D20: 1402/12/23 | E20: 66 | F20: 281,386 (19.3%) | G20: 92178 | H20: 15.43B | I20: 157 | J20: 5.37 | K20: 167 | L20: 12.08 | M20: 2757 | N20: 153 | O20: 0.028 | P20: در ضرر | Q20: 8 | R20: 156 | S20: 199 | T20: 567000 | U20: 0.54 | V20: -706.368 | W20: 0.0011 | X20: 421.098 | Y20: 216.139 | Z20: undefined
A21: ضستا1215 | B21: 1112 | C21: 1244 | D21: 1402/12/09 | E21: 52 | F21: 1,997,896 (2.0%) | G21: 71198 | H21: 14.15B | I21: 196 | J21: -2 | K21: 199 | L21: -0.5 | M21: 1308 | N21: 182 | O21: 0.0777 | P21: در سود | Q21: 6 | R21: 193 | S21: 230 | T21: 449000 | U21: 0.883 | V21: -342.736 | W21: 0.0012 | X21: 92.256 | Y21: 130.733 | Z21: undefined
A22: ضذوب1122 | B22: 4000 | C22: 4546 | D22: 1402/11/02 | E22: 15 | F22: 345,008 (-0.4%) | G22: 19502 | H22: 12.83B | I22: 640 | J22: -0.78 | K22: 658 | L22: 2.02 | M22: 4640 | N22: 641 | O22: -0.0012 | P22: در سود | Q22: 7 | R22: 620 | S22: 698 | T22: 1578000 | U22: 0.984 | V22: -1129.925 | W22: 0.0001 | X22: 37.347 | Y22: 159.598 | Z22: undefined
A23: ضستا1217 | B23: 1312 | C23: 1244 | D23: 1402/12/09 | E23: 52 | F23: 1,683,181 (8.1%) | G23: 189518 | H23: 12.32B | I23: 61 | J23: -11.59 | K23: 65 | L23: -5.8 | M23: 1373 | N23: 56 | O23: 0.0872 | P23: در ضرر | Q23: 10 | R23: 60 | S23: 75 | T23: 255000 | U23: 0.476 | V23: -363.866 | W23: 0.0024 | X23: 187.121 | Y23: 76.369 | Z23: undefined
A24: ضخود1219 | B24: 2800 | C24: 2829 | D24: 1402/12/02 | E24: 45 | F24: 516,267 (0.5%) | G24: 49277 | H24: 12.20B | I24: 241 | J24: 2.55 | K24: 248 | L24: 5.53 | M24: 3041 | N24: 224 | O24: 0.0766 | P24: در سود | Q24: 8 | R24: 230 | S24: 270 | T24: 828000 | U24: 0.69 | V24: -941.659 | W24: 0.001 | X24: 354.723 | Y24: 216.074 | Z24: undefined
A25: ضخپارس1200 | B25: 1200 | C25: 1234 | D25: 1402/12/20 | E25: 63 | F25: 1,090,908 (1.0%) | G25: 64698 | H25: 11.45B | I25: 167 | J25: -4.02 | K25: 177 | L25: 1.72 | M25: 1367 | N25: 128 | O25: 0.303 | P25: در سود | Q25: 5 | R25: 156 | S25: 198 | T25: 427000 | U25: 0.735 | V25: -368.819 | W25: 0.0018 | X25: 169.539 | Y25: 135.959 | Z25: undefined
A26: ضستا1214 | B26: 1012 | C26: 1244 | D26: 1402/12/09 | E26: 52 | F26: 2,450,758 (0.3%) | G26: 39288 | H26: 11.40B | I26: 290 | J26: 0 | K26: 290 | L26: 0 | M26: 1302 | N26: 270 | O26: 0.0729 | P26: در سود | Q26: 4 | R26: 287 | S26: 294 | T26: 540000 | U26: 0.972 | V26: -272.401 | W26: 0.0004 | X26: 30.592 | Y26: 133.817 | Z26: undefined
A27: ضستا1213 | B27: 912 | C27: 1244 | D27: 1402/12/09 | E27: 52 | F27: 325,118 (-7.2%) | G27: 29749 | H27: 11.39B | I27: 385 | J27: 1.32 | K27: 383 | L27: 0.79 | M27: 1297 | N27: 365 | O27: 0.0545 | P27: در سود | Q27: 3 | R27: 380 | S27: 385 | T27: 633000 | U27: 0.996 | V27: -225.021 | W27: 0.0001 | X27: 5.008 | Y27: 124.726 | Z27: undefined
A28: ضخود1123 | B28: 3250 | C28: 2829 | D28: 1402/11/11 | E28: 24 | F28: 615,306 (39.0%) | G28: 430606 | H28: 9.90B | I28: 20 | J28: -16.67 | K28: 23 | L28: -4.17 | M28: 3270 | N28: 14 | O28: 0.3848 | P28: در ضرر | Q28: 17 | R28: 17 | S28: 33 | T28: 353000 | U28: 0.119 | V28: -469.839 | W28: 0.0008 | X28: 145.917 | Y28: 21.432 | Z28: undefined
A29: ضسپا1222 | B29: 2800 | C29: 2469 | D29: 1402/12/23 | E29: 66 | F29: 386,740 (15.9%) | G29: 91819 | H29: 9.09B | I29: 94 | J29: -5.05 | K29: 99 | L29: 0 | M29: 2894 | N29: 79 | O29: 0.1833 | P29: در ضرر | Q29: 9 | R29: 91 | S29: 110 | T29: 389000 | U29: 0.346 | V29: -574.443 | W29: 0.001 | X29: 391.222 | Y29: 141.632 | Z29: undefined
A30: ضسپا1012 | B30: 1900 | C30: 2469 | D30: 1402/10/20 | E30: 3 | F30: 599,399 (-1.7%) | G30: 16142 | H30: 9.08B | I30: 542 | J30: 0.37 | K30: 563 | L30: 4.26 | M30: 2442 | N30: 599 | O30: -0.095 | P30: در سود | Q30: 5 | R30: 537 | S30: 597 | T30: 1063000 | U30: 1 | V30: -474.025 | W30: 0 | X30: 0 | Y30: 15.584 | Z30: undefined
A31: ضدی1100 | B31: 800 | C31: 1110 | D31: 1402/11/18 | E31: 31 | F31: 304,771 (0.0%) | G31: 25618 | H31: 8.32B | I31: 340 | J31: 8.63 | K31: 325 | L31: 3.83 | M31: 1140 | N31: 311 | O31: 0.0939 | P31: در سود | Q31: 3 | R31: 282 | S31: 350 | T31: 545000 | U31: 1 | V31: -196.708 | W31: 0 | X31: 0.501 | Y31: 66.476 | Z31: undefined
A32: ضخود1216 | B32: 2200 | C32: 2829 | D32: 1402/12/02 | E32: 45 | F32: 55,218 (-3.9%) | G32: 9933 | H32: 7.04B | I32: 729 | J32: 6.89 | K32: 709 | L32: 3.96 | M32: 2929 | N32: 732 | O32: -0.0036 | P32: در سود | Q32: 4 | R32: 692 | S32: 730 | T32: 1289000 | U32: 0.993 | V32: -555.834 | W32: 0.0001 | X32: 19.536 | Y32: 260.435 | Z32: undefined
A33: ضهرم1226 | B33: 24000 | C33: 20340 | D33: 1402/12/23 | E33: 66 | F33: 103,347 (3.6%) | G33: 7158 | H33: 7.03B | I33: 987 | J33: -1.6 | K33: 982 | L33: -2.09 | M33: 24987 | N33: 416 | O33: 1.3711 | P33: در ضرر | Q33: 5 | R33: 964 | S33: 1200 | T33: 3392000 | U33: 0.247 | V33: -3822.689 | W33: 0.0001 | X33: 2750.508 | Y33: 839.549 | Z33: undefined
A34: ضخاور118 | B34: 3080 | C34: 3807 | D34: 1403/01/15 | E34: 87 | F34: 186,210 (1.5%) | G34: 6261 | H34: 6.42B | I34: 1022 | J34: -1.92 | K34: 1026 | L34: -1.54 | M34: 4102 | N34: 957 | O34: 0.068 | P34: در سود | Q34: 4 | R34: 1009 | S34: 1150 | T34: 1796000 | U34: 0.959 | V34: -804.793 | W34: 0.0001 | X34: 166.196 | Y34: 650.972 | Z34: undefined
A35: ضدی1107 | B35: 1300 | C35: 1110 | D35: 1402/11/18 | E35: 31 | F35: 1,022,388 (0.0%) | G35: 194173 | H35: 5.84B | I35: 36 | J35: 24.14 | K35: 30 | L35: 3.45 | M35: 1336 | N35: 4 | O35: 8.8337 | P35: در ضرر | Q35: 2 | R35: 13 | S35: 45 | T35: 170000 | U35: 0.076 | V35: -113.853 | W35: 0.0013 | X35: 45.607 | Y35: 6.754 | Z35: undefined
A36: ضستا1212 | B36: 812 | C36: 1244 | D36: 1402/12/09 | E36: 52 | F36: 1,907,545 (-0.3%) | G36: 11635 | H36: 5.55B | I36: 473 | J36: 0 | K36: 477 | L36: 0.85 | M36: 1285 | N36: 461 | O36: 0.0251 | P36: در سود | Q36: 3 | R36: 452 | S36: 488 | T36: 727000 | U36: 1 | V36: -196.232 | W36: 0 | X36: 0.319 | Y36: 111.602 | Z36: undefined
A37: ضخود1215 | B37: 2000 | C37: 2829 | D37: 1402/12/02 | E37: 45 | F37: 187,873 (-1.3%) | G37: 5787 | H37: 5.32B | I37: 909 | J37: 3.06 | K37: 920 | L37: 4.31 | M37: 2909 | N37: 925 | O37: -0.017 | P37: در سود | Q37: 3 | R37: 870 | S37: 959 | T37: 1500000 | U37: 0.999 | V37: -487.422 | W37: 0 | X37: 2.149 | Y37: 238.869 | Z37: undefined
A38: ضخود1119 | B38: 2400 | C38: 2829 | D38: 1402/11/11 | E38: 24 | F38: 107,046 (0.2%) | G38: 8582 | H38: 4.39B | I38: 488 | J38: -1.41 | K38: 511 | L38: 3.23 | M38: 2888 | N38: 504 | O38: -0.0326 | P38: در سود | Q38: 6 | R38: 481 | S38: 590 | T38: 1091000 | U38: 0.986 | V38: -649.602 | W38: 0.0001 | X38: 26.2 | Y38: 152.514 | Z38: undefined
A39: ضستا1220 | B39: 1612 | C39: 1244 | D39: 1402/12/09 | E39: 52 | F39: 7,358,662 (0.7%) | G39: 220916 | H39: 4.08B | I39: 17 | J39: -5.56 | K39: 18 | L39: 0 | M39: 1629 | N39: 3 | O39: 3.8944 | P39: در ضرر | Q39: 4 | R39: 17 | S39: 21 | T39: 188000 | U39: 0.053 | V39: -77.522 | W39: 0.0007 | X39: 50.481 | Y39: 8.84 | Z39: undefined
A40: ضهرم1222 | B40: 16000 | C40: 20340 | D40: 1402/12/23 | E40: 66 | F40: 45,208 (1.3%) | G40: 730 | H40: 4.07B | I40: 5450 | J40: -4.32 | K40: 5575 | L40: -2.12 | M40: 21450 | N40: 5222 | O40: 0.0437 | P40: در سود | Q40: 4 | R40: 5401 | S40: 5721 | T40: 9675000 | U40: 0.979 | V40: -4131.063 | W40: 0 | X40: 433.826 | Y40: 2684.268 | Z40: undefined
A41: ضذوب1121 | B41: 3750 | C41: 4546 | D41: 1402/11/02 | E41: 15 | F41: 132,417 (-0.1%) | G41: 4436 | H41: 3.98B | I41: 852 | J41: -2.96 | K41: 897 | L41: 2.16 | M41: 4602 | N41: 886 | O41: -0.0388 | P41: در سود | Q41: 5 | R41: 851 | S41: 900 | T41: 1817000 | U41: 0.999 | V41: -941.55 | W41: 0 | X41: 3.513 | Y41: 152.316 | Z41: undefined
A42: ضستا1209 | B42: 512 | C42: 1244 | D42: 1402/12/09 | E42: 52 | F42: 350,089 (-1.1%) | G42: 5019 | H42: 3.80B | I42: 760 | J42: -5.24 | K42: 758 | L42: -5.49 | M42: 1272 | N42: 751 | O42: 0.0121 | P42: در سود | Q42: 2 | R42: 669 | S42: 767 | T42: 1008000 | U42: 1 | V42: -123.521 | W42: 0 | X42: 0 | Y42: 70.39 | Z42: undefined
A43: ضخود1220 | B43: 3000 | C43: 2829 | D43: 1402/12/02 | E43: 45 | F43: 279,424 (4.6%) | G43: 21920 | H43: 3.71B | I43: 147 | J43: -5.77 | K43: 169 | L43: 8.33 | M43: 3147 | N43: 120 | O43: 0.2241 | P43: در ضرر | Q43: 9 | R43: 141 | S43: 200 | T43: 609000 | U43: 0.474 | V43: -877.597 | W43: 0.0011 | X43: 400.33 | Y43: 152.557 | Z43: undefined
A44: ضخپارس403 | B44: 1050 | C44: 1234 | D44: 1403/04/10 | E44: 175 | F44: 25,184 (39.8%) | G44: 7466 | H44: 2.84B | I44: 385 | J44: -6.33 | K44: 380 | L44: -7.54 | M44: 1435 | N44: 329 | O44: 0.1697 | P44: در سود | Q44: 3 | R44: 375 | S44: 521 | T44: 630000 | U44: 0.907 | V44: -252.647 | W44: 0.0006 | X44: 143.652 | Y44: 383.971 | Z44: undefined
A45: ضفصبا300 | B45: 4800 | C45: 6290 | D45: 1403/03/20 | E45: 154 | F45: 12,061 (19.8%) | G45: 2170 | H45: 2.78B | I45: 1280 | J45: -5.19 | K45: 1279 | L45: -5.26 | M45: 6080 | N45: 2110 | O45: -0.3935 | P45: در سود | Q45: 5 | R45: 1270 | S45: 1300 | T45: 2569000 | U45: 0.968 | V45: -1147.823 | W45: 0 | X45: 300.099 | Y45: 1727.079 | Z45: undefined
A46: ضموج407 | B46: 13500 | C46: 12542 | D46: 1403/04/03 | E46: 168 | F46: 6,721 (19.6%) | G46: 1100 | H46: 2.54B | I46: 2300 | J46: -7.52 | K46: 2308 | L46: -7.2 | M46: 15800 | N46: 1468 | O46: 0.5666 | P46: در ضرر | Q46: 3 | R46: 2300 | S46: 2540 | T46: 3928000 | U46: 0.623 | V46: -2828.358 | W46: 0.0001 | X46: 3247.644 | Y46: 2933.927 | Z46: undefined
A47: ضموج401 | B47: 8500 | C47: 12542 | D47: 1403/04/03 | E47: 168 | F47: 255 (0.0%) | G47: 464 | H47: 2.44B | I47: 5900 | J47: 589900 | K47: 5249 | L47: 524800 | M47: 14400 | N47: 5035 | O47: 0.1718 | P47: در سود | Q47: 2 | R47: 4900 | S47: 5900 | T47: 7769000 | U47: 0.988 | V47: -1953.981 | W47: 0 | X47: 265 | Y47: 3411.966 | Z47: undefined
A48: ضروز1203 | B48: 24000 | C48: 27700 | D48: 1402/12/16 | E48: 59 | F48: 1,679 (0.1%) | G48: 334 | H48: 2.27B | I48: 6772 | J48: 14.28 | K48: 6809 | L48: 14.9 | M48: 30772 | N48: 4883 | O48: 0.3867 | P48: در سود | Q48: 4 | R48: 6772 | S48: 6850 | T48: 12369000 | U48: 0.919 | V48: -6978.332 | W48: 0 | X48: 1679.46 | Y48: 3336.395 | Z48: undefined
A49: ضخود1221 | B49: 3250 | C49: 2829 | D49: 1402/12/02 | E49: 45 | F49: 99,405 (16.8%) | G49: 24692 | H49: 2.08B | I49: 63 | J49: -32.26 | K49: 84 | L49: -9.68 | M49: 3313 | N49: 46 | O49: 0.3673 | P49: در ضرر | Q49: 11 | R49: 63 | S49: 105 | T49: 414000 | U49: 0.237 | V49: -598.557 | W49: 0.0009 | X49: 310.343 | Y49: 77.939 | Z49: undefined
A50: ضتوان1205 | B50: 20000 | C50: 18431 | D50: 1402/12/14 | E50: 57 | F50: 16,156 (1.1%) | G50: 2033 | H50: 2.08B | I50: 990 | J50: 0 | K50: 1024 | L50: 3.43 | M50: 20990 | N50: 707 | O50: 0.4005 | P50: در ضرر | Q50: 8 | R50: 980 | S50: 1100 | T50: 3204000 | U50: 0.413 | V50: -4921.4 | W50: 0.0002 | X50: 2844.917 | Y50: 1082.748 | Z50: undefined
A51: ضسپا1218 | B51: 2000 | C51: 2469 | D51: 1402/12/23 | E51: 66 | F51: 14,932 (8.3%) | G51: 3139 | H51: 1.94B | I51: 584 | J51: -16.21 | K51: 618 | L51: -11.33 | M51: 2584 | N51: 588 | O51: -0.0071 | P51: در سود | Q51: 4 | R51: 584 | S51: 670 | T51: 1118000 | U51: 0.969 | V51: -529.372 | W51: 0.0002 | X51: 74.494 | Y51: 330.742 | Z51: undefined
A52: ضکرمان1200 | B52: 898 | C52: 1323 | D52: 1402/12/14 | E52: 57 | F52: 199,219 (-0.2%) | G52: 3760 | H52: 1.82B | I52: 451 | J52: -2.17 | K52: 483 | L52: 4.77 | M52: 1349 | N52: 469 | O52: -0.0392 | P52: در سود | Q52: 3 | R52: 450 | S52: 515 | T52: 753000 | U52: 0.999 | V52: -217.047 | W52: 0 | X52: 1.226 | Y52: 134.721 | Z52: undefined
A53: ضدی1105 | B53: 1100 | C53: 1110 | D53: 1402/11/18 | E53: 31 | F53: 275,495 (0.0%) | G53: 24408 | H53: 1.79B | I53: 84 | J53: 27.27 | K53: 73 | L53: 10.61 | M53: 1184 | N53: 53 | O53: 0.578 | P53: در ضرر | Q53: 8 | R53: 52 | S53: 93 | T53: 293000 | U53: 0.581 | V53: -402.313 | W53: 0.0035 | X53: 124.534 | Y53: 49.502 | Z53: undefined
A54: ضهرم1227 | B54: 26000 | C54: 20340 | D54: 1402/12/23 | E54: 66 | F54: 28,529 (1.6%) | G54: 2233 | H54: 1.51B | I54: 611 | J54: -8.4 | K54: 676 | L54: 1.35 | M54: 26611 | N54: 154 | O54: 2.9737 | P54: در ضرر | Q54: 4 | R54: 611 | S54: 700 | T54: 3286000 | U54: 0.111 | V54: -2123.685 | W54: 0.0001 | X54: 1647.363 | Y54: 382.881 | Z54: undefined
A55: ضسپا1013 | B55: 2000 | C55: 2469 | D55: 1402/10/20 | E55: 3 | F55: 72,973 (-1.0%) | G55: 3294 | H55: 1.47B | I55: 435 | J55: -7.45 | K55: 446 | L55: -5.11 | M55: 2435 | N55: 499 | O55: -0.1284 | P55: در سود | Q55: 6 | R55: 432 | S55: 482 | T55: 946000 | U55: 1 | V55: -498.974 | W55: 0 | X55: 0 | Y55: 16.405 | Z55: undefined
A56: ضجهش0202 | B56: 7500 | C56: 11320 | D56: 1403/02/12 | E56: 115 | F56: 12,598 (0.2%) | G56: 285 | H56: 1.35B | I56: 4665 | J56: -6.79 | K56: 4745 | L56: -5.19 | M56: 12165 | N56: 4451 | O56: 0.048 | P56: در سود | Q56: 2 | R56: 4665 | S56: 4804 | T56: 7025000 | U56: 0.996 | V56: -1765.275 | W56: 0 | X56: 82.024 | Y56: 2167.313 | Z56: undefined
A57: ضصاد1136 | B57: 1807 | C57: 1851 | D57: 1402/11/11 | E57: 24 | F57: 37,519 (33.2%) | G57: 11297 | H57: 1.32B | I57: 100 | J57: -43.5 | K57: 106 | L57: -40.11 | M57: 1907 | N57: 110 | O57: -0.0872 | P57: در سود | Q57: 13 | R57: 95 | S57: 180 | T57: 527000 | U57: 0.694 | V57: -737.659 | W57: 0.0021 | X57: 166.601 | Y57: 77.393 | Z57: undefined
A58: ضستا1218 | B58: 1412 | C58: 1244 | D58: 1402/12/09 | E58: 52 | F58: 517,385 (4.5%) | G58: 35940 | H58: 1.30B | I58: 35 | J58: -7.89 | K58: 36 | L58: -5.26 | M58: 1447 | N58: 25 | O58: 0.3856 | P58: در ضرر | Q58: 10 | R58: 35 | S58: 40 | T58: 186000 | U58: 0.269 | V58: -267.629 | W58: 0.002 | X58: 154.963 | Y58: 44.037 | Z58: undefined
A59: ضدی1104 | B59: 1000 | C59: 1110 | D59: 1402/11/18 | E59: 31 | F59: 60,802 (0.0%) | G59: 8096 | H59: 1.18B | I59: 161 | J59: 26.77 | K59: 146 | L59: 14.96 | M59: 1161 | N59: 122 | O59: 0.3153 | P59: در سود | Q59: 6 | R59: 120 | S59: 169 | T59: 366000 | U59: 0.873 | V59: -344.974 | W59: 0.0019 | X59: 66.417 | Y59: 70.704 | Z59: undefined
A60: ضبساما204 | B60: 9500 | C60: 9700 | D60: 1403/02/23 | E60: 126 | F60: 1,200 (0.0%) | G60: 1335 | H60: 1.07B | I60: 850 | J60: 84900 | K60: 798 | L60: 79700 | M60: 10350 | N60: 1281 | O60: -0.3365 | P60: در سود | Q60: 8 | R60: 700 | S60: 900 | T60: 2728000 | U60: 0.719 | V60: -2371.99 | W60: 0.0002 | X60: 1905.493 | Y60: 1941.451 | Z60: undefined
A61: ضفصبا1100 | B61: 4800 | C61: 6290 | D61: 1402/11/18 | E61: 31 | F61: 28,308 (3.3%) | G61: 986 | H61: 1.02B | I61: 968 | J61: -7.81 | K61: 1030 | L61: -1.9 | M61: 5768 | N61: 1711 | O61: -0.4343 | P61: در سود | Q61: 6 | R61: 968 | S61: 1050 | T61: 2320000 | U61: 0.999 | V61: -1185.942 | W61: 0 | X61: 6.2 | Y61: 398.555 | Z61: undefined
A62: ضهرم1223 | B62: 18000 | C62: 20340 | D62: 1402/12/23 | E62: 66 | F62: 70,558 (0.2%) | G62: 248 | H62: 969.75M | I62: 3750 | J62: -5.18 | K62: 3910 | L62: -1.14 | M62: 21750 | N62: 3450 | O62: 0.0868 | P62: در سود | Q62: 5 | R62: 3749 | S62: 4050 | T62: 8010000 | U62: 0.894 | V62: -5260.149 | W62: 0.0001 | X62: 1593.998 | Y62: 2688.802 | Z62: undefined
A63: ضصاد1137 | B63: 1988 | C63: 1851 | D63: 1402/11/11 | E63: 24 | F63: 69,067 (14.3%) | G63: 12264 | H63: 916.89M | I63: 58 | J63: -18.31 | K63: 68 | L63: -4.23 | M63: 2046 | N63: 29 | O63: 1.0151 | P63: در ضرر | Q63: 9 | R63: 53 | S63: 75 | T63: 345000 | U63: 0.289 | V63: -559.174 | W63: 0.0021 | X63: 162.454 | Y63: 33.352 | Z63: undefined
A64: ضخوز1032 | B64: 2800 | C64: 3527 | D64: 1402/10/17 | E64: 1 | F64: 1,490 (0.0%) | G64: 1490 | H64: 879.80M | I64: 590 | J64: 58900 | K64: 590 | L64: 58900 | M64: 3390 | N64: 738 | O64: -0.2005 | P64: در سود | Q64: 6 | R64: 590 | S64: 591 | T64: 1300000 | U64: 1 | V64: -699.521 | W64: 0 | X64: 0 | Y64: 7.666 | Z64: undefined
A65: ضهرم3003 | B65: 15000 | C65: 20340 | D65: 1403/03/23 | E65: 157 | F65: 2,430 (4.3%) | G65: 101 | H65: 787.33M | I65: 7777 | J65: -2.58 | K65: 7795 | L65: -2.36 | M65: 22777 | N65: 7070 | O65: 0.1 | P65: در سود | Q65: 3 | R65: 7700 | S65: 8099 | T65: 11895000 | U65: 0.974 | V65: -3552.449 | W65: 0 | X65: 813.509 | Y65: 5542.702 | Z65: undefined
A66: ضبساما203 | B66: 9000 | C66: 9700 | D66: 1403/02/23 | E66: 126 | F66: 3,900 (0.0%) | G66: 800 | H66: 780.05M | I66: 750 | J66: -63.13 | K66: 975 | L66: -52.06 | M66: 9750 | N66: 1598 | O66: -0.5308 | P66: در سود | Q66: 10 | R66: 750 | S66: 1300 | T66: 2905000 | U66: 0.8 | V66: -2323.742 | W66: 0.0001 | X66: 1581.039 | Y66: 2101.946 | Z66: undefined
A67: ضسپا1003 | B67: 2800 | C67: 2469 | D67: 1402/10/20 | E67: 3 | F67: 1,339,781 (-5.5%) | G67: 273234 | H67: 742.41M | I67: 2 | J67: -33.33 | K67: 3 | L67: 0 | M67: 2802 | N67: 0 | O67: 1 | P67: در ضرر | Q67: 0 | R67: 2 | S67: 5 | T67: 293000 | U67: 0 | V67: -3.591 | W67: 0 | X67: 0.163 | Y67: 0.004 | Z67: undefined
A68: ضخود1118 | B68: 2200 | C68: 2829 | D68: 1402/11/11 | E68: 24 | F68: 1,118 (3.7%) | G68: 1090 | H68: 720.90M | I68: 670 | J68: 11.67 | K68: 661 | L68: 10.17 | M68: 2870 | N68: 700 | O68: -0.0428 | P68: در سود | Q68: 4 | R68: 650 | S68: 680 | T68: 1241000 | U68: 0.999 | V68: -545.645 | W68: 0 | X68: 1.945 | Y68: 142.15 | Z68: undefined
A69: ضستا1114 | B69: 1300 | C69: 1244 | D69: 1402/11/11 | E69: 24 | F69: 42,784 (132.5%) | G69: 26379 | H69: 701.17M | I69: 29 | J69: -6.45 | K69: 27 | L69: -12.9 | M69: 1329 | N69: 30 | O69: -0.0416 | P69: در ضرر | Q69: 17 | R69: 25 | S69: 35 | T69: 227000 | U69: 0.4 | V69: -445.139 | W69: 0.0035 | X69: 123.33 | Y69: 30.747 | Z69: undefined
A70: ضجهش0200 | B70: 6500 | C70: 11320 | D70: 1403/02/12 | E70: 115 | F70: 6,406 (0.9%) | G70: 110 | H70: 622.10M | I70: 5560 | J70: -1.1 | K70: 5655 | L70: 0.59 | M70: 12060 | N70: 5373 | O70: 0.0349 | P70: در سود | Q70: 2 | R70: 5560 | S70: 5700 | T70: 7935000 | U70: 1 | V70: -1505.88 | W70: 0 | X70: 9.32 | Y70: 1891.297 | Z70: undefined
A71: ضجهش0205 | B71: 10000 | C71: 11320 | D71: 1403/02/12 | E71: 115 | F71: 4,408 (0.1%) | G71: 205 | H71: 616.40M | I71: 3000 | J71: -3.6 | K71: 3007 | L71: -3.37 | M71: 13000 | N71: 2287 | O71: 0.3119 | P71: در سود | Q71: 3 | R71: 3000 | S71: 3280 | T71: 5287000 | U71: 0.876 | V71: -2646.277 | W71: 0.0001 | X71: 1304.611 | Y71: 2421.806 | Z71: undefined
A72: ضسپا1223 | B72: 3000 | C72: 2469 | D72: 1402/12/23 | E72: 66 | F72: 64,877 (11.7%) | G72: 8697 | H72: 603.25M | I72: 70 | J72: 16.67 | K72: 69 | L72: 15 | M72: 3070 | N72: 37 | O72: 0.87 | P72: در ضرر | Q72: 7 | R72: 52 | S72: 75 | T72: 379000 | U72: 0.195 | V72: -395.076 | W72: 0.0007 | X72: 292.337 | Y72: 81.118 | Z72: undefined
A73: ضذوب1123 | B73: 4500 | C73: 4546 | D73: 1402/11/02 | E73: 15 | F73: 37,651 (-1.5%) | G73: 2730 | H73: 589.27M | I73: 209 | J73: -11.44 | K73: 216 | L73: -8.47 | M73: 4709 | N73: 213 | O73: -0.0176 | P73: در سود | Q73: 15 | R73: 150 | S73: 270 | T73: 1136000 | U73: 0.686 | V73: -2143.649 | W73: 0.0011 | X73: 330.771 | Y73: 120.841 | Z73: undefined
A74: ضهرم2000 | B74: 12000 | C74: 20340 | D74: 1403/02/26 | E74: 129 | F74: 626 (8.7%) | G74: 54 | H74: 539.86M | I74: 9900 | J74: -24.79 | K74: 9997 | L74: -24.06 | M74: 21900 | N74: 9506 | O74: 0.0414 | P74: در سود | Q74: 2 | R74: 9503 | S74: 10500 | T74: 14097000 | U74: 0.999 | V74: -2760.749 | W74: 0 | X74: 39.79 | Y74: 3875.015 | Z74: undefined
A75: ضجار1204 | B75: 2000 | C75: 2257 | D75: 1402/12/16 | E75: 59 | F75: 28,931 (4.4%) | G75: 1280 | H75: 491.68M | I75: 380 | J75: -9.31 | K75: 384 | L75: -8.35 | M75: 2380 | N75: 352 | O75: 0.08 | P75: در سود | Q75: 5 | R75: 366 | S75: 400 | T75: 844000 | U75: 0.886 | V75: -600.354 | W75: 0.0006 | X75: 174.461 | Y75: 266.051 | Z75: undefined
A76: ضهرم0107 | B76: 22000 | C76: 20340 | D76: 1403/01/22 | E76: 94 | F76: 1,200 (20.0%) | G76: 200 | H76: 488.20M | I76: 2441 | J76: 388.2 | K76: 2441 | L76: 388.2 | M76: 24441 | N76: 1387 | O76: 0.7601 | P76: در ضرر | Q76: 4 | R76: 2441 | S76: 2441 | T76: 5031000 | U76: 0.52 | V76: -5133.842 | W76: 0.0001 | X76: 4142.91 | Y76: 2388.524 | Z76: undefined
A77: ضتاب0200 | B77: 6000 | C77: 9900 | D77: 1403/02/05 | E77: 108 | F77: 1,354 (8.3%) | G77: 104 | H77: 477.39M | I77: 4600 | J77: -1.1 | K77: 4590 | L77: -1.31 | M77: 10600 | N77: 4368 | O77: 0.053 | P77: در سود | Q77: 2 | R77: 4590 | S77: 4600 | T77: 6580000 | U77: 0.999 | V77: -1400.155 | W77: 0 | X77: 15.826 | Y77: 1646.092 | Z77: undefined
A78: ضهرم1218 | B78: 12000 | C78: 20340 | D78: 1402/12/23 | E78: 66 | F78: 9,463 (-0.1%) | G78: 48 | H78: 406.25M | I78: 9100 | J78: -8.8 | K78: 8464 | L78: -15.17 | M78: 21100 | N78: 9020 | O78: 0.0088 | P78: در سود | Q78: 2 | R78: 8072 | S78: 9100 | T78: 12564000 | U78: 1 | V78: -2868.472 | W78: 0 | X78: 1.298 | Y78: 2073.821 | Z78: undefined
A79: ضصاد1132 | B79: 1445 | C79: 1851 | D79: 1402/11/11 | E79: 24 | F79: 42,120 (-1.6%) | G79: 847 | H79: 384.98M | I79: 410 | J79: -9.49 | K79: 411 | L79: -9.27 | M79: 1855 | N79: 432 | O79: -0.0501 | P79: در سود | Q79: 5 | R79: 410 | S79: 455 | T79: 864000 | U79: 0.999 | V79: -360.337 | W79: 0 | X79: 2.112 | Y79: 93.295 | Z79: undefined
A80: ضستا1219 | B80: 1512 | C80: 1244 | D80: 1402/12/09 | E80: 52 | F80: 368,968 (3.3%) | G80: 15609 | H80: 377.54M | I80: 24 | J80: -11.11 | K80: 24 | L80: -11.11 | M80: 1536 | N80: 10 | O80: 1.4119 | P80: در ضرر | Q80: 7 | R80: 23 | S80: 28 | T80: 184000 | U80: 0.128 | V80: -158.316 | W80: 0.0013 | X80: 98.434 | Y80: 21.315 | Z80: undefined
A81: ضجار1205 | B81: 2200 | C81: 2257 | D81: 1402/12/16 | E81: 59 | F81: 19,339 (8.4%) | G81: 1635 | H81: 367.11M | I81: 250 | J81: -10.07 | K81: 225 | L81: -19.06 | M81: 2450 | N81: 206 | O81: 0.2152 | P81: در سود | Q81: 6 | R81: 201 | S81: 250 | T81: 685000 | U81: 0.702 | V81: -684.229 | W81: 0.0011 | X81: 314.18 | Y81: 222.479 | Z81: undefined
A82: ضکرمان1204 | B82: 1198 | C82: 1323 | D82: 1402/12/14 | E82: 57 | F82: 44,401 (3.2%) | G82: 1539 | H82: 345.15M | I82: 208 | J82: -26.76 | K82: 224 | L82: -21.13 | M82: 1406 | N82: 194 | O82: 0.0737 | P82: در سود | Q82: 6 | R82: 200 | S82: 240 | T82: 494000 | U82: 0.869 | V82: -366.582 | W82: 0.0012 | X82: 111.806 | Y82: 150.724 | Z82: undefined
A83: ضستا1115 | B83: 1400 | C83: 1244 | D83: 1402/11/11 | E83: 24 | F83: 45,991 (235.9%) | G83: 40811 | H83: 338.41M | I83: 8 | J83: -11.11 | K83: 8 | L83: -11.11 | M83: 1408 | N83: 8 | O83: 0.0417 | P83: در ضرر | Q83: 22 | R83: 7 | S83: 10 | T83: 158000 | U83: 0.14 | V83: -231.033 | W83: 0.002 | X83: 71.131 | Y83: 10.973 | Z83: undefined
A84: ضتاب0205 | B84: 9000 | C84: 9900 | D84: 1403/02/05 | E84: 108 | F84: 4,544 (2.8%) | G84: 165 | H84: 337.53M | I84: 2040 | J84: -4.81 | K84: 2046 | L84: -4.53 | M84: 11040 | N84: 1752 | O84: 0.1642 | P84: در سود | Q84: 4 | R84: 2000 | S84: 2100 | T84: 4036000 | U84: 0.843 | V84: -2425.503 | W84: 0.0001 | X84: 1301.086 | Y84: 1959.972 | Z84: undefined
A85: ضهین0304 | B85: 10000 | C85: 11060 | D85: 1403/03/30 | E85: 164 | F85: 4,816 (2.1%) | G85: 116 | H85: 330.44M | I85: 2850 | J85: 1.64 | K85: 2849 | L85: 1.6 | M85: 12850 | N85: 2420 | O85: 0.1775 | P85: در سود | Q85: 3 | R85: 2840 | S85: 2850 | T85: 5079000 | U85: 0.855 | V85: -2439.091 | W85: 0.0001 | X85: 1705.316 | Y85: 3189.96 | Z85: undefined
A86: ضدی1106 | B86: 1200 | C86: 1110 | D86: 1402/11/18 | E86: 31 | F86: 102,494 (0.0%) | G86: 6406 | H86: 295.87M | I86: 51 | J86: 50 | K86: 46 | L86: 35.29 | M86: 1251 | N86: 17 | O86: 2.0813 | P86: در ضرر | Q86: 6 | R86: 32 | S86: 59 | T86: 176000 | U86: 0.259 | V86: -279.118 | W86: 0.0029 | X86: 103.138 | Y86: 22.627 | Z86: undefined
A87: ضبرک1000 | B87: 5000 | C87: 6880 | D87: 1402/10/17 | E87: 1 | F87: 176 (0.0%) | G87: 198 | H87: 269.25M | I87: 2000 | J87: -19.68 | K87: 1360 | L87: -45.38 | M87: 7000 | N87: 2013 | O87: -0.0067 | P87: در سود | Q87: 3 | R87: 1220 | S87: 2250 | T87: 2770000 | U87: 1 | V87: -1249.144 | W87: 0 | X87: 0 | Y87: 13.689 | Z87: undefined
A88: ضهرم0108 | B88: 24000 | C88: 20340 | D88: 1403/01/22 | E88: 94 | F88: 233 (606.1%) | G88: 201 | H88: 254.67M | I88: 1267 | J88: -20.86 | K88: 1267 | L88: -20.86 | M88: 25267 | N88: 721 | O88: 0.7577 | P88: در ضرر | Q88: 5 | R88: 1267 | S88: 1268 | T88: 3677000 | U88: 0.33 | V88: -4072.068 | W88: 0.0001 | X88: 3767.354 | Y88: 1557.64 | Z88: undefined
A89: ضسپا1215 | B89: 1700 | C89: 2469 | D89: 1402/12/23 | E89: 66 | F89: 49,232 (0.0%) | G89: 290 | H89: 250.09M | I89: 856 | J89: 1.06 | K89: 862 | L89: 1.77 | M89: 2556 | N89: 870 | O89: -0.0164 | P89: در سود | Q89: 3 | R89: 852 | S89: 900 | T89: 1362000 | U89: 0.998 | V89: -410.388 | W89: 0 | X89: 5.361 | Y89: 293.076 | Z89: undefined
A90: ضکرمان1205 | B90: 1298 | C90: 1323 | D90: 1402/12/14 | E90: 57 | F90: 73,916 (2.1%) | G90: 1602 | H90: 240.49M | I90: 138 | J90: -12.66 | K90: 150 | L90: -5.06 | M90: 1436 | N90: 121 | O90: 0.1371 | P90: در سود | Q90: 7 | R90: 138 | S90: 180 | T90: 420000 | U90: 0.707 | V90: -408.3 | W90: 0.0019 | X90: 181.266 | Y90: 128.161 | Z90: undefined
A91: ضخاور119 | B91: 3280 | C91: 3807 | D91: 1403/01/15 | E91: 87 | F91: 34,789 (0.2%) | G91: 287 | H91: 239.75M | I91: 830 | J91: -17 | K91: 835 | L91: -16.5 | M91: 4110 | N91: 785 | O91: 0.0579 | P91: در سود | Q91: 4 | R91: 830 | S91: 850 | T91: 1605000 | U91: 0.914 | V91: -899.15 | W91: 0.0002 | X91: 294.23 | Y91: 651.311 | Z91: undefined
A92: ضصاد1138 | B92: 2169 | C92: 1851 | D92: 1402/11/11 | E92: 24 | F92: 15,581 (25.9%) | G92: 5700 | H92: 237.46M | I92: 32 | J92: -11.11 | K92: 38 | L92: 5.56 | M92: 2201 | N92: 4 | O92: 6.2182 | P92: در ضرر | Q92: 4 | R92: 32 | S92: 44 | T92: 282000 | U92: 0.063 | V92: -185.654 | W92: 0.0007 | X92: 59.128 | Y92: 7.44 | Z92: undefined
A93: ضسپا1217 | B93: 1900 | C93: 2469 | D93: 1402/12/23 | E93: 66 | F93: 55,971 (0.3%) | G93: 344 | H93: 236M | I93: 670 | J93: -12.65 | K93: 686 | L93: -10.56 | M93: 2570 | N93: 681 | O93: -0.0159 | P93: در سود | Q93: 4 | R93: 670 | S93: 760 | T93: 1186000 | U93: 0.986 | V93: -480.795 | W93: 0.0001 | X93: 36.926 | Y93: 321.905 | Z93: undefined
A94: ضشنا1206 | B94: 9000 | C94: 8210 | D94: 1402/12/02 | E94: 45 | F94: 1,086 (1162.8%) | G94: 1015 | H94: 233.85M | I94: 230 | J94: -25.81 | K94: 230 | L94: -25.81 | M94: 9230 | N94: 217 | O94: 0.0613 | P94: در ضرر | Q94: 12 | R94: 230 | S94: 260 | T94: 1140000 | U94: 0.343 | V94: -2160.361 | W94: 0.0004 | X94: 1063.08 | Y94: 321.227 | Z94: undefined
A95: ضستا1210 | B95: 612 | C95: 1244 | D95: 1402/12/09 | E95: 52 | F95: 269,570 (0.0%) | G95: 346 | H95: 229.25M | I95: 645 | J95: -3.87 | K95: 663 | L95: -1.19 | M95: 1257 | N95: 654 | O95: -0.0144 | P95: در سود | Q95: 2 | R95: 645 | S95: 664 | T95: 913000 | U95: 1 | V95: -147.647 | W95: 0 | X95: 0 | Y95: 84.138 | Z95: undefined
A96: ضخود1124 | B96: 3500 | C96: 2829 | D96: 1402/11/11 | E96: 24 | F96: 177,329 (6.3%) | G96: 19184 | H96: 215.82M | I96: 8 | J96: -20 | K96: 11 | L96: 10 | M96: 3508 | N96: 2 | O96: 2.8436 | P96: در ضرر | Q96: 8 | R96: 7 | S96: 17 | T96: 371000 | U96: 0.022 | V96: -119.69 | W96: 0.0002 | X96: 39.14 | Y96: 4.082 | Z96: undefined
A97: ضهرم1228 | B97: 28000 | C97: 20340 | D97: 1402/12/23 | E97: 66 | F97: 72,217 (0.3%) | G97: 526 | H97: 211.34M | I97: 400 | J97: -4.99 | K97: 402 | L97: -4.51 | M97: 28400 | N97: 50 | O97: 6.944 | P97: در ضرر | Q97: 2 | R97: 350 | S97: 500 | T97: 3212000 | U97: 0.043 | V97: -972.659 | W97: 0 | X97: 791.923 | Y97: 149.167 | Z97: undefined
A98: ضپلا1221 | B98: 135200 | C98: 142010 | D98: 1402/12/09 | E98: 52 | F98: 6,346 (20.4%) | G98: 1075 | H98: 190.80M | I98: 17500 | J98: -32.69 | K98: 17749 | L98: -31.73 | M98: 152700 | N98: 14729 | O98: 0.1881 | P98: در سود | Q98: 6 | R98: 17500 | S98: 18000 | T98: 467000 | U98: 0.768 | V98: -43828.381 | W98: 0 | X98: 16404.259 | Y98: 13493.192 | Z98: undefined
A99: ضشنا1205 | B99: 8000 | C99: 8210 | D99: 1402/12/02 | E99: 45 | F99: 485 (119.5%) | G99: 273 | H99: 189.80M | I99: 650 | J99: -18.75 | K99: 695 | L99: -13.13 | M99: 8650 | N99: 680 | O99: -0.0436 | P99: در سود | Q99: 9 | R99: 650 | S99: 755 | T99: 2345000 | U99: 0.71 | V99: -2698.523 | W99: 0.0003 | X99: 990.709 | Y99: 637.282 | Z99: undefined
A100: ضتاب0202 | B100: 7000 | C100: 9900 | D100: 1403/02/05 | E100: 108 | F100: 1,141 (0.9%) | G100: 50 | H100: 186.20M | I100: 3710 | J100: 1.06 | K100: 3724 | L100: 1.44 | M100: 10710 | N100: 3446 | O100: 0.0766 | P100: در سود | Q100: 3 | R100: 3710 | S100: 3760 | T100: 5714000 | U100: 0.99 | V100: -1683.996 | W100: 0 | X100: 144.371 | Y100: 1892.053 | Z100: undefined
A101: ضجهش0201 | B101: 7000 | C101: 11320 | D101: 1403/02/12 | E101: 115 | F101: 8,819 (0.0%) | G101: 34 | H101: 178.64M | I101: 5254 | J101: 0.59 | K101: 5254 | L101: 0.59 | M101: 12254 | N101: 4911 | O101: 0.0698 | P101: در سود | Q101: 2 | R101: 5254 | S101: 5254 | T101: 7534000 | U101: 0.999 | V101: -1630.059 | W101: 0 | X101: 30.714 | Y101: 2032.821 | Z101: undefined
A102: ضبساما205 | B102: 10000 | C102: 9700 | D102: 1403/02/23 | E102: 126 | F102: 426 (-18.7%) | G102: 240 | H102: 170.77M | I102: 700 | J102: -8.5 | K102: 712 | L102: -6.93 | M102: 10700 | N102: 1007 | O102: -0.3049 | P102: در ضرر | Q102: 9 | R102: 700 | S102: 900 | T102: 2252000 | U102: 0.629 | V102: -2341.001 | W102: 0.0002 | X102: 2133.84 | Y102: 1738.817 | Z102: undefined
A103: ضفصبا1102 | B103: 5800 | C103: 6290 | D103: 1402/11/18 | E103: 31 | F103: 11,685 (6.5%) | G103: 873 | H103: 167.47M | I103: 174 | J103: -22.32 | K103: 192 | L103: -14.29 | M103: 5974 | N103: 767 | O103: -0.7732 | P103: در سود | Q103: 32 | R103: 172 | S103: 230 | T103: 1482000 | U103: 0.892 | V103: -1950.562 | W103: 0.0003 | X103: 345.662 | Y103: 420.693 | Z103: undefined
A104: ضسپا1004 | B104: 3000 | C104: 2469 | D104: 1402/10/20 | E104: 3 | F104: 327,629 (-31.1%) | G104: 163517 | H104: 163.72M | I104: 1 | J104: 0 | K104: 1 | L104: 0 | M104: 3001 | N104: 0 | O104: 1 | P104: در ضرر | Q104: 0 | R104: 1 | S104: 2 | T104: 311000 | U104: 0 | V104: 0 | W104: 0 | X104: 0 | Y104: 0 | Z104: undefined
A105: ضپلا1222 | B105: 145200 | C105: 142010 | D105: 1402/12/09 | E105: 52 | F105: 3,909 (43333.3%) | G105: 3900 | H105: 157.90M | I105: 4100 | J105: -65.83 | K105: 4049 | L105: -66.26 | M105: 149300 | N105: 8681 | O105: -0.5277 | P105: در ضرر | Q105: 20 | R105: 4000 | S105: 4100 | T105: 300000 | U105: 0.576 | V105: -44228.748 | W105: 0 | X105: 21060.64 | Y105: 10461.879 | Z105: undefined
A106: ضدی1101 | B106: 850 | C106: 1110 | D106: 1402/11/18 | E106: 31 | F106: 1,208 (0.0%) | G106: 542 | H106: 146.34M | I106: 270 | J106: 10.2 | K106: 270 | L106: 10.2 | M106: 1120 | N106: 262 | O106: 0.0307 | P106: در سود | Q106: 4 | R106: 270 | S106: 270 | T106: 490000 | U106: 0.997 | V106: -213.405 | W106: 0.0001 | X106: 3.035 | Y106: 70.374 | Z106: undefined
A107: ضهین0308 | B107: 14000 | C107: 11060 | D107: 1403/03/30 | E107: 164 | F107: 14,196 (1.5%) | G107: 210 | H107: 131.25M | I107: 625 | J107: 4.17 | K107: 625 | L107: 4.17 | M107: 14625 | N107: 550 | O107: 0.1363 | P107: در ضرر | Q107: 6 | R107: 600 | S107: 650 | T107: 2035000 | U107: 0.353 | V107: -1925.172 | W107: 0.0001 | X107: 2773.673 | Y107: 1518.464 | Z107: undefined
A108: ضسپا1014 | B108: 1700 | C108: 2469 | D108: 1402/10/20 | E108: 3 | F108: 9,596 (0.0%) | G108: 171 | H108: 127.04M | I108: 733 | J108: -0.95 | K108: 743 | L108: 0.41 | M108: 2433 | N108: 798 | O108: -0.082 | P108: در سود | Q108: 3 | R108: 733 | S108: 750 | T108: 1243000 | U108: 1 | V108: -424.128 | W108: 0 | X108: 0 | Y108: 13.944 | Z108: undefined
A109: ضذوب1124 | B109: 5000 | C109: 4546 | D109: 1402/11/02 | E109: 15 | F109: 26,426 (0.4%) | G109: 2100 | H109: 126.60M | I109: 48 | J109: -15.79 | K109: 60 | L109: 5.26 | M109: 5048 | N109: 26 | O109: 0.8264 | P109: در ضرر | Q109: 15 | R109: 48 | S109: 73 | T109: 580000 | U109: 0.158 | V109: -1134.971 | W109: 0.0007 | X109: 225.312 | Y109: 28.852 | Z109: undefined
A110: ضبساما1103 | B110: 10000 | C110: 9700 | D110: 1402/11/04 | E110: 17 | F110: 2,485 (-8.8%) | G110: 240 | H110: 119.28M | I110: 497 | J110: -0.6 | K110: 497 | L110: -0.6 | M110: 10497 | N110: 177 | O110: 1.8133 | P110: در ضرر | Q110: 7 | R110: 497 | S110: 497 | T110: 2037000 | U110: 0.369 | V110: -3781.569 | W110: 0.0005 | X110: 782.312 | Y110: 156.893 | Z110: undefined
A111: ضشنا1207 | B111: 10000 | C111: 8210 | D111: 1402/12/02 | E111: 45 | F111: 8,201 (12.3%) | G111: 2326 | H111: 116.58M | I111: 50 | J111: 72.41 | K111: 50 | L111: 72.41 | M111: 10050 | N111: 47 | O111: 0.0547 | P111: در ضرر | Q111: 17 | R111: 50 | S111: 74 | T111: 1060000 | U111: 0.103 | V111: -938.916 | W111: 0.0002 | X111: 519.903 | Y111: 99.095 | Z111: undefined
A112: ضصاد0108 | B112: 2172 | C112: 1851 | D112: 1403/01/26 | E112: 98 | F112: 2,964 (50.9%) | G112: 1000 | H112: 110.50M | I112: 100 | J112: -50 | K112: 100 | L112: -50 | M112: 2272 | N112: 69 | O112: 0.453 | P112: در ضرر | Q112: 6 | R112: 100 | S112: 100 | T112: 361000 | U112: 0.339 | V112: -368.918 | W112: 0.0011 | X112: 351.434 | Y112: 150.204 | Z112: undefined
A113: ضشنا2038 | B113: 8000 | C113: 8210 | D113: 1403/02/09 | E113: 112 | F113: 7,445 (1.1%) | G113: 85 | H113: 97.85M | I113: 1152 | J113: 0.17 | K113: 1151 | L113: 0.09 | M113: 9152 | N113: 1108 | O113: 0.0399 | P113: در سود | Q113: 5 | R113: 1147 | S113: 1152 | T113: 2801000 | U113: 0.741 | V113: -2092.036 | W113: 0.0002 | X113: 1478.909 | Y113: 1532.524 | Z113: undefined
A114: ضخپارس1215 | B114: 1000 | C114: 1234 | D114: 1402/12/20 | E114: 63 | F114: 70,367 (0.0%) | G114: 306 | H114: 92.37M | I114: 345 | J114: 11.29 | K114: 302 | L114: -2.58 | M114: 1345 | N114: 290 | O114: 0.1878 | P114: در سود | Q114: 3 | R114: 301 | S114: 349 | T114: 552000 | U114: 0.97 | V114: -265.2 | W114: 0.0004 | X114: 35.142 | Y114: 158.497 | Z114: undefined
A115: ضستا2026 | B115: 1200 | C115: 1244 | D115: 1403/02/12 | E115: 115 | F115: 447 (4370.0%) | G115: 437 | H115: 85.20M | I115: 188 | J115: -24.8 | K115: 195 | L115: -22 | M115: 1388 | N115: 175 | O115: 0.0714 | P115: در سود | Q115: 5 | R115: 188 | S115: 250 | T115: 445000 | U115: 0.754 | V115: -313.095 | W115: 0.0013 | X115: 220.256 | Y115: 240.406 | Z115: undefined
A116: ضبساما1102 | B116: 9500 | C116: 9700 | D116: 1402/11/04 | E116: 17 | F116: 1,663 (-5.7%) | G116: 100 | H116: 80M | I116: 800 | J116: -31.15 | K116: 800 | L116: -31.15 | M116: 10300 | N116: 410 | O116: 0.9535 | P116: در سود | Q116: 8 | R116: 800 | S116: 800 | T116: 2730000 | U116: 0.635 | V116: -4352.353 | W116: 0.0005 | X116: 779.768 | Y116: 265.012 | Z116: undefined
A117: ضمیا1100 | B117: 4500 | C117: 6070 | D117: 1402/11/25 | E117: 38 | F117: 2,359 (1.7%) | G117: 40 | H117: 75.50M | I117: 1750 | J117: -16.67 | K117: 1887 | L117: -10.14 | M117: 6250 | N117: 1716 | O117: 0.0199 | P117: در سود | Q117: 3 | R117: 1750 | S117: 2000 | T117: 3117000 | U117: 0.999 | V117: -1109.364 | W117: 0 | X117: 9.241 | Y117: 455.513 | Z117: undefined
A118: ضروز1206 | B118: 30000 | C118: 27700 | D118: 1402/12/16 | E118: 59 | F118: 1,797 (5.9%) | G118: 100 | H118: 75M | I118: 750 | J118: -28.64 | K118: 750 | L118: -28.64 | M118: 30750 | N118: 1124 | O118: -0.3328 | P118: در ضرر | Q118: 16 | R118: 750 | S118: 750 | T118: 4090000 | U118: 0.425 | V118: -7410.114 | W118: 0.0001 | X118: 4377.039 | Y118: 1727.27 | Z118: undefined
A119: ضموج409 | B119: 15500 | C119: 12542 | D119: 1403/04/03 | E119: 168 | F119: 1,742 (2.2%) | G119: 38 | H119: 71.23M | I119: 1855 | J119: -12.99 | K119: 1874 | L119: -12.1 | M119: 17355 | N119: 732 | O119: 1.5342 | P119: در ضرر | Q119: 3 | R119: 1850 | S119: 2240 | T119: 3434000 | U119: 0.394 | V119: -2307.048 | W119: 0.0001 | X119: 3287.945 | Y119: 1945.935 | Z119: undefined
A120: ضدی1108 | B120: 1400 | C120: 1110 | D120: 1402/11/18 | E120: 31 | F120: 16,457 (0.0%) | G120: 3115 | H120: 71.15M | I120: 26 | J120: 30 | K120: 23 | L120: 15 | M120: 1426 | N120: 1 | O120: 42.8452 | P120: در ضرر | Q120: 1 | R120: 10 | S120: 26 | T120: 173000 | U120: 0.015 | V120: -29.568 | W120: 0.0003 | X120: 12.373 | Y120: 1.384 | Z120: undefined
A121: ضسپا1015 | B121: 1800 | C121: 2469 | D121: 1402/10/20 | E121: 3 | F121: 15,412 (0.0%) | G121: 103 | H121: 66.91M | I121: 638 | J121: -1.09 | K121: 650 | L121: 0.78 | M121: 2438 | N121: 699 | O121: -0.0869 | P121: در سود | Q121: 4 | R121: 638 | S121: 650 | T121: 1150000 | U121: 1 | V121: -449.076 | W121: 0 | X121: 0 | Y121: 14.764 | Z121: undefined
A122: ضهمن1106 | B122: 1900 | C122: 1980 | D122: 1402/11/23 | E122: 36 | F122: 21,927 (-0.1%) | G122: 316 | H122: 64.27M | I122: 180 | J122: -24.05 | K122: 203 | L122: -14.35 | M122: 2080 | N122: 172 | O122: 0.0444 | P122: در سود | Q122: 8 | R122: 180 | S122: 277 | T122: 603000 | U122: 0.764 | V122: -680.073 | W122: 0.0014 | X122: 192.979 | Y122: 133.218 | Z122: undefined
A123: ضهرم2008 | B123: 24000 | C123: 20340 | D123: 1403/02/26 | E123: 129 | F123: 400 (7.8%) | G123: 29 | H123: 55.97M | I123: 1930 | J123: 0.78 | K123: 1930 | L123: 0.78 | M123: 25930 | N123: 1116 | O123: 0.7287 | P123: در ضرر | Q123: 4 | R123: 1930 | S123: 1930 | T123: 4340000 | U123: 0.409 | V123: -4156.545 | W123: 0.0001 | X123: 4731.402 | Y123: 2564.121 | Z123: undefined
A124: ضخاور120 | B124: 3480 | C124: 3807 | D124: 1403/01/15 | E124: 87 | F124: 11,437 (-0.0%) | G124: 85 | H124: 55.77M | I124: 656 | J124: -21.81 | K124: 656 | L124: -21.81 | M124: 4136 | N124: 625 | O124: 0.0491 | P124: در سود | Q124: 5 | R124: 656 | S124: 657 | T124: 1426000 | U124: 0.846 | V124: -984.349 | W124: 0.0004 | X124: 444.96 | Y124: 627.031 | Z124: undefined
A125: ضسپا1224 | B125: 3250 | C125: 2469 | D125: 1402/12/23 | E125: 66 | F125: 34,769 (2.8%) | G125: 1155 | H125: 54.90M | I125: 46 | J125: -20.69 | K125: 48 | L125: -17.24 | M125: 3296 | N125: 13 | O125: 2.5666 | P125: در ضرر | Q125: 4 | R125: 40 | S125: 60 | T125: 378000 | U125: 0.081 | V125: -201.464 | W125: 0.0004 | X125: 159.27 | Y125: 34.228 | Z125: undefined
A126: ضتاب0204 | B126: 8000 | C126: 9900 | D126: 1403/02/05 | E126: 108 | F126: 20,186 (0.1%) | G126: 18 | H126: 52.74M | I126: 2930 | J126: 1.03 | K126: 2930 | L126: 1.03 | M126: 10930 | N126: 2555 | O126: 0.1467 | P126: در سود | Q126: 3 | R126: 2930 | S126: 2930 | T126: 4920000 | U126: 0.948 | V126: -2057.721 | W126: 0.0001 | X126: 576.808 | Y126: 2031.675 | Z126: undefined
A127: ضخود0122 | B127: 3250 | C127: 2829 | D127: 1403/01/08 | E127: 80 | F127: 3,356 (0.0%) | G127: 310 | H127: 51.10M | I127: 160 | J127: -3.03 | K127: 165 | L127: 0 | M127: 3410 | N127: 106 | O127: 0.5123 | P127: در ضرر | Q127: 6 | R127: 160 | S127: 170 | T127: 495000 | U127: 0.361 | V127: -633.131 | W127: 0.0008 | X127: 502.194 | Y127: 203.538 | Z127: undefined
A128: ضبرک1001 | B128: 5500 | C128: 6880 | D128: 1402/10/17 | E128: 1 | F128: 707 (0.0%) | G128: 35 | H128: 49.10M | I128: 1403 | J128: 0.21 | K128: 1403 | L128: 0.21 | M128: 6903 | N128: 1514 | O128: -0.0732 | P128: در سود | Q128: 5 | R128: 1400 | S128: 1410 | T128: 2813000 | U128: 1 | V128: -1374.059 | W128: 0 | X128: 0 | Y128: 15.058 | Z128: undefined
A129: ضموج410 | B129: 16500 | C129: 12542 | D129: 1403/04/03 | E129: 168 | F129: 614 (5.0%) | G129: 34 | H129: 48.79M | I129: 1435 | J129: -34.02 | K129: 1435 | L129: -34.02 | M129: 17935 | N129: 499 | O129: 1.8769 | P129: در ضرر | Q129: 3 | R129: 1001 | S129: 1520 | T129: 3095000 | U129: 0.297 | V129: -1935.497 | W129: 0.0001 | X129: 2958.222 | Y129: 1492.679 | Z129: undefined
A130: ضتاب0206 | B130: 10000 | C130: 9900 | D130: 1403/02/05 | E130: 108 | F130: 17,381 (0.2%) | G130: 30 | H130: 48M | I130: 1600 | J130: -2.44 | K130: 1600 | L130: -2.44 | M130: 11600 | N130: 1101 | O130: 0.4527 | P130: در ضرر | Q130: 4 | R130: 1600 | S130: 1600 | T130: 3530000 | U130: 0.674 | V130: -2552.374 | W130: 0.0002 | X130: 1947.482 | Y130: 1657.655 | Z130: undefined
A131: ضجار1206 | B131: 2400 | C131: 2257 | D131: 1402/12/16 | E131: 59 | F131: 2,530 (15.0%) | G131: 330 | H131: 46.53M | I131: 141 | J131: -6 | K131: 141 | L131: -6 | M131: 2541 | N131: 104 | O131: 0.3559 | P131: در ضرر | Q131: 7 | R131: 141 | S131: 141 | T131: 451000 | U131: 0.465 | V131: -625.759 | W131: 0.0013 | X131: 360.117 | Y131: 152.519 | Z131: undefined
A132: ضبساما206 | B132: 11000 | C132: 9700 | D132: 1403/02/23 | E132: 126 | F132: 108 (0.0%) | G132: 108 | H132: 44M | I132: 500 | J132: 49900 | K132: 407 | L132: 40600 | M132: 11500 | N132: 589 | O132: -0.151 | P132: در ضرر | Q132: 9 | R132: 400 | S132: 500 | T132: 1517000 | U132: 0.447 | V132: -2057.187 | W132: 0.0002 | X132: 2232.275 | Y132: 1278.017 | Z132: undefined
A133: ضخپارس1201 | B133: 1300 | C133: 1234 | D133: 1402/12/20 | E133: 63 | F133: 1958-07-01T00:00:44 | G133: 387 | H133: 41.48M | I133: 106 | J133: -10.92 | K133: 107 | L133: -10.08 | M133: 1406 | N133: 73 | O133: 0.4592 | P133: در ضرر | Q133: 6 | R133: 105 | S133: 111 | T133: 307000 | U133: 0.531 | V133: -355.987 | W133: 0.0022 | X133: 205.893 | Y133: 101.652 | Z133: undefined
A134: ضموج408 | B134: 14500 | C134: 12542 | D134: 1403/04/03 | E134: 168 | F134: 3,384 (0.5%) | G134: 17 | H134: 36.51M | I134: 2001 | J134: -20.63 | K134: 2147 | L134: -14.84 | M134: 16501 | N134: 1050 | O134: 0.9057 | P134: در ضرر | Q134: 3 | R134: 2001 | S134: 2250 | T134: 3607000 | U134: 0.504 | V134: -2622.601 | W134: 0.0001 | X134: 3409.517 | Y134: 2441.798 | Z134: undefined
A135: ضتوان1208 | B135: 26000 | C135: 18431 | D135: 1402/12/14 | E135: 57 | F135: 13,448 (-1.5%) | G135: 214 | H135: 34.24M | I135: 160 | J135: -1.84 | K135: 160 | L135: -1.84 | M135: 26160 | N135: 15 | O135: 9.5707 | P135: در ضرر | Q135: 2 | R135: 160 | S135: 160 | T135: 2770000 | U135: 0.017 | V135: -423.825 | W135: 0 | X135: 310.74 | Y135: 47.228 | Z135: undefined
A136: ضهرم2007 | B136: 22000 | C136: 20340 | D136: 1403/02/26 | E136: 129 | F136: 422 (2.4%) | G136: 10 | H136: 31.70M | I136: 3170 | J136: 3.59 | K136: 3170 | L136: 3.59 | M136: 25170 | N136: 1864 | O136: 0.7004 | P136: در ضرر | Q136: 4 | R136: 3170 | S136: 3170 | T136: 5760000 | U136: 0.574 | V136: -4839.58 | W136: 0.0001 | X136: 4775.421 | Y136: 3498.913 | Z136: undefined
A137: ضصاد1139 | B137: 2350 | C137: 1851 | D137: 1402/11/11 | E137: 24 | F137: 31,304 (0.0%) | G137: 2846 | H137: 31.45M | I137: 10 | J137: -47.37 | K137: 10 | L137: -47.37 | M137: 2360 | N137: 0 | O137: 1 | P137: در ضرر | Q137: 1 | R137: 10 | S137: 10 | T137: 271000 | U137: 0.008 | V137: -30.519 | W137: 0.0001 | X137: 10.153 | Y137: 0.92 | Z137: undefined
A138: ضملی0105 | B138: 7000 | C138: 7300 | D138: 1403/01/19 | E138: 91 | F138: 45 (200.0%) | G138: 30 | H138: 30M | I138: 1000 | J138: -31.03 | K138: 1000 | L138: -31.03 | M138: 8000 | N138: 928 | O138: 0.0777 | P138: در سود | Q138: 5 | R138: 1000 | S138: 1000 | T138: 2470000 | U138: 0.753 | V138: -1950.079 | W138: 0.0002 | X138: 1150.712 | Y138: 1139.238 | Z138: undefined
A139: ضخود0121 | B139: 3000 | C139: 2829 | D139: 1403/01/08 | E139: 80 | F139: 9,176 (0.1%) | G139: 111 | H139: 28.10M | I139: 280 | J139: 33.97 | K139: 253 | L139: 21.05 | M139: 3280 | N139: 198 | O139: 0.4109 | P139: در ضرر | Q139: 6 | R139: 250 | S139: 295 | T139: 693000 | U139: 0.553 | V139: -769.644 | W139: 0.0008 | X139: 530.187 | Y139: 303.626 | Z139: undefined
A140: ضهین0306 | B140: 12000 | C140: 11060 | D140: 1403/03/30 | E140: 164 | F140: 16,677 (0.0%) | G140: 20 | H140: 26M | I140: 1300 | J140: -33.33 | K140: 1300 | L140: -33.33 | M140: 13300 | N140: 1242 | O140: 0.047 | P140: در ضرر | Q140: 5 | R140: 1300 | S140: 1300 | T140: 2670000 | U140: 0.61 | V140: -2504.164 | W140: 0.0001 | X140: 2865.185 | Y140: 2495.005 | Z140: undefined
A141: ضرول1005 | B141: 1850 | C141: 1999 | D141: 1402/10/24 | E141: 7 | F141: 16,247 (0.0%) | G141: 202 | H141: 25.20M | I141: 124 | J141: -12.06 | K141: 125 | L141: -11.35 | M141: 1974 | N141: 165 | O141: -0.2499 | P141: در سود | Q141: 16 | R141: 124 | S141: 164 | T141: 535000 | U141: 0.963 | V141: -647.405 | W141: 0.0008 | X141: 22.594 | Y141: 33.848 | Z141: undefined
A142: ضخود1126 | B142: 4000 | C142: 2829 | D142: 1402/11/11 | E142: 24 | F142: 84,563 (2.4%) | G142: 3000 | H142: 24M | I142: 8 | J142: 14.29 | K142: 8 | L142: 14.29 | M142: 4008 | N142: 0 | O142: 1 | P142: در ضرر | Q142: 0 | R142: 8 | S142: 8 | T142: 418000 | U142: 0 | V142: -1.906 | W142: 0 | X142: 0.654 | Y142: 0.044 | Z142: undefined
A143: ضهمن1105 | B143: 1800 | C143: 1980 | D143: 1402/11/23 | E143: 36 | F143: 13,480 (-0.7%) | G143: 94 | H143: 23.50M | I143: 250 | J143: -20.38 | K143: 250 | L143: -20.38 | M143: 2050 | N143: 250 | O143: -0.0018 | P143: در سود | Q143: 7 | R143: 250 | S143: 250 | T143: 650000 | U143: 0.887 | V143: -592.585 | W143: 0.0009 | X143: 120.078 | Y143: 149.733 | Z143: undefined
A144: ضکرمان1202 | B144: 998 | C144: 1323 | D144: 1402/12/14 | E144: 57 | F144: 3,619 (0.0%) | G144: 57 | H144: 22.80M | I144: 400 | J144: 3.36 | K144: 400 | L144: 3.36 | M144: 1398 | N144: 374 | O144: 0.0705 | P144: در سود | Q144: 3 | R144: 400 | S144: 400 | T144: 670000 | U144: 0.993 | V144: -249.294 | W144: 0.0001 | X144: 10.603 | Y144: 148.301 | Z144: undefined
A145: ضدار1218 | B145: 180000 | C145: 181070 | D145: 1402/12/23 | E145: 66 | F145: 664 (18.6%) | G145: 104 | H145: 21.80M | I145: 20000 | J145: 0 | K145: 20962 | L145: 4.81 | M145: 200000 | N145: 15957 | O145: 0.2534 | P145: در سود | Q145: 6 | R145: 20000 | S145: 21000 | T145: 580000 | U145: 0.669 | V145: -53488.668 | W145: 0 | X145: 27991.113 | Y145: 19093.915 | Z145: undefined
A146: ضخاور122 | B146: 3880 | C146: 3807 | D146: 1403/01/15 | E146: 87 | F146: 46,177 (0.1%) | G146: 42 | H146: 20.45M | I146: 555 | J146: 5.31 | K146: 487 | L146: -7.59 | M146: 4435 | N146: 362 | O146: 0.5314 | P146: در ضرر | Q146: 4 | R146: 471 | S146: 555 | T146: 1227000 | U146: 0.65 | V146: -1045.11 | W146: 0.0006 | X146: 695.979 | Y146: 509.248 | Z146: undefined
A147: ضصاد1145 | B147: 3617 | C147: 1851 | D147: 1402/11/11 | E147: 24 | F147: 220,747 (0.0%) | G147: 15101 | H147: 20M | I147: 1 | J147: -66.67 | K147: 1 | L147: -66.67 | M147: 3618 | N147: 0 | O147: 1 | P147: در ضرر | Q147: 0 | R147: 1 | S147: 3 | T147: 401000 | U147: 0 | V147: 0 | W147: 0 | X147: 0 | Y147: 0 | Z147: undefined
A148: ضسرو0304 | B148: 110000 | C148: 135300 | D148: 1403/03/09 | E148: 143 | F148: 4,063 (0.0%) | G148: 50 | H148: 19.50M | I148: 39000 | J148: -1.49 | K148: 39000 | L148: -1.49 | M148: 149000 | N148: 36481 | O148: 0.0691 | P148: در سود | Q148: 3 | R148: 39000 | S148: 39000 | T148: 670000 | U148: 0.933 | V148: -27334.688 | W148: 0 | X148: 10956.775 | Y148: 35167.084 | Z148: undefined
A149: ضجار1207 | B149: 2600 | C149: 2257 | D149: 1402/12/16 | E149: 59 | F149: 77,435 (0.2%) | G149: 186 | H149: 18.60M | I149: 98 | J149: 24.05 | K149: 100 | L149: 26.58 | M149: 2698 | N149: 45 | O149: 1.1567 | P149: در ضرر | Q149: 6 | R149: 98 | S149: 100 | T149: 370000 | U149: 0.255 | V149: -447.97 | W149: 0.001 | X149: 291.291 | Y149: 85.743 | Z149: undefined
A150: ضخپارس1202 | B150: 1400 | C150: 1234 | D150: 1402/12/20 | E150: 63 | F150: 81,316 (0.1%) | G150: 208 | H150: 16.87M | I150: 75 | J150: -19.35 | K150: 81 | L150: -12.9 | M150: 1475 | N150: 37 | O150: 1.0349 | P150: در ضرر | Q150: 5 | R150: 75 | S150: 87 | T150: 231000 | U150: 0.333 | V150: -285.212 | W150: 0.002 | X150: 188.12 | Y150: 65.23 | Z150: undefined
A151: ضکرمان1203 | B151: 1098 | C151: 1323 | D151: 1402/12/14 | E151: 57 | F151: 3,307 (1.7%) | G151: 54 | H151: 15.66M | I151: 290 | J151: -14.2 | K151: 290 | L151: -14.2 | M151: 1388 | N151: 280 | O151: 0.0352 | P151: در سود | Q151: 4 | R151: 290 | S151: 290 | T151: 560000 | U151: 0.96 | V151: -300.573 | W151: 0.0005 | X151: 45.16 | Y151: 156.143 | Z151: undefined
A152: ضهای1104 | B152: 2000 | C152: 2090 | D152: 1402/11/15 | E152: 28 | F152: 2,773 (3.7%) | G152: 100 | H152: 15.50M | I152: 155 | J152: -29.55 | K152: 155 | L152: -29.55 | M152: 2155 | N152: 165 | O152: -0.0621 | P152: در سود | Q152: 10 | R152: 155 | S152: 155 | T152: 575000 | U152: 0.772 | V152: -764.635 | W152: 0.0015 | X152: 175.764 | Y152: 111.593 | Z152: undefined
A153: ضترو1101 | B153: 8000 | C153: 11740 | D153: 1402/11/15 | E153: 28 | F153: 43 (0.0%) | G153: 4 | H153: 15.08M | I153: 3770 | J153: 0.27 | K153: 3770 | L153: 0.27 | M153: 11770 | N153: 3922 | O153: -0.0387 | P153: در سود | Q153: 3 | R153: 3770 | S153: 3770 | T153: 6130000 | U153: 1 | V153: -1962.361 | W153: 0 | X153: 0.17 | Y153: 602.03 | Z153: undefined
A154: ضخپارس401 | B154: 900 | C154: 1234 | D154: 1403/04/10 | E154: 175 | F154: 288 (11.2%) | G154: 29 | H154: 14.50M | I154: 500 | J154: -19.35 | K154: 500 | L154: -19.35 | M154: 1400 | N154: 451 | O154: 0.1092 | P154: در سود | Q154: 2 | R154: 500 | S154: 501 | T154: 750000 | U154: 0.975 | V154: -209.455 | W154: 0.0002 | X154: 50.615 | Y154: 366.264 | Z154: undefined
A155: ضهرم3008 | B155: 24000 | C155: 20340 | D155: 1403/03/23 | E155: 157 | F155: 44 (12.8%) | G155: 5 | H155: 14.30M | I155: 2860 | J155: -26.67 | K155: 2860 | L155: -26.67 | M155: 26860 | N155: 1436 | O155: 0.9923 | P155: در ضرر | Q155: 3 | R155: 2860 | S155: 2860 | T155: 5270000 | U155: 0.458 | V155: -4156.027 | W155: 0.0001 | X155: 5331.318 | Y155: 3418.72 | Z155: undefined
A156: ضتوان1202 | B156: 17000 | C156: 18431 | D156: 1402/12/14 | E156: 57 | F156: 15 (50.0%) | G156: 5 | H156: 14.05M | I156: 2810 | J156: -4.55 | K156: 2810 | L156: -4.55 | M156: 19810 | N156: 2381 | O156: 0.1803 | P156: در سود | Q156: 5 | R156: 2810 | S156: 2810 | T156: 6510000 | U156: 0.83 | V156: -5309.671 | W156: 0.0001 | X156: 1844.847 | Y156: 2025.334 | Z156: undefined
A157: ضستا2024 | B157: 1000 | C157: 1244 | D157: 1403/02/12 | E157: 115 | F157: 28 (0.0%) | G157: 29 | H157: 12.28M | I157: 467 | J157: 46600 | K157: 423 | L157: 42200 | M157: 1467 | N157: 327 | O157: 0.4296 | P157: در سود | Q157: 3 | R157: 394 | S157: 467 | T157: 673000 | U157: 0.947 | V157: -255.08 | W157: 0.0004 | X157: 75.718 | Y157: 268.468 | Z157: undefined
A158: ضصاد1143 | B158: 3165 | C158: 1851 | D158: 1402/11/11 | E158: 24 | F158: 30,395 (7.0%) | G158: 2000 | H158: 11.05M | I158: 5 | J158: -50 | K158: 5 | L158: -50 | M158: 3170 | N158: 0 | O158: 1 | P158: در ضرر | Q158: 0 | R158: 5 | S158: 5 | T158: 356000 | U158: 0 | V158: 0 | W158: 0 | X158: 0 | Y158: 0 | Z158: undefined
A159: ضدی1102 | B159: 900 | C159: 1110 | D159: 1402/11/18 | E159: 31 | F159: 404 (0.0%) | G159: 48 | H159: 11.01M | I159: 247 | J159: 26.02 | K159: 229 | L159: 16.84 | M159: 1147 | N159: 214 | O159: 0.1568 | P159: در سود | Q159: 4 | R159: 200 | S159: 247 | T159: 449000 | U159: 0.985 | V159: -240.775 | W159: 0.0003 | X159: 12.001 | Y159: 73.397 | Z159: undefined
A160: ضخاور131 | B160: 6880 | C160: 3807 | D160: 1403/01/15 | E160: 87 | F160: 1,100 (10.0%) | G160: 100 | H160: 10M | I160: 100 | J160: 233.33 | K160: 100 | L160: 233.33 | M160: 6980 | N160: 0 | O160: 1 | P160: در ضرر | Q160: 0 | R160: 100 | S160: 100 | T160: 790000 | U160: 0.001 | V160: -8.101 | W160: 0 | X160: 9.162 | Y160: 1.311 | Z160: undefined
A161: ضسپا1216 | B161: 1800 | C161: 2469 | D161: 1402/12/23 | E161: 66 | F161: 13,789 (0.0%) | G161: 12 | H161: 9.47M | I161: 789 | J161: 2.47 | K161: 789 | L161: 2.47 | M161: 2589 | N161: 775 | O161: 0.0178 | P161: در سود | Q161: 3 | R161: 789 | S161: 789 | T161: 1289000 | U161: 0.995 | V161: -441.798 | W161: 0 | X161: 15.496 | Y161: 308.7 | Z161: undefined
A162: ضدی1119 | B162: 3000 | C162: 1110 | D162: 1402/11/18 | E162: 31 | F162: 20,756 (0.0%) | G162: 1556 | H162: 6.22M | I162: 4 | J162: -20 | K162: 4 | L162: -20 | M162: 3004 | N162: 0 | O162: 1 | P162: در ضرر | Q162: 0 | R162: 4 | S162: 4 | T162: 314000 | U162: 0 | V162: 0 | W162: 0 | X162: 0 | Y162: 0 | Z162: undefined
A163: ضستا0115 | B163: 1500 | C163: 1244 | D163: 1403/01/08 | E163: 80 | F163: 3,485 (1.5%) | G163: 55 | H163: 5.25M | I163: 96 | J163: 68.42 | K163: 95 | L163: 66.67 | M163: 1596 | N163: 26 | O163: 2.6906 | P163: در ضرر | Q163: 3 | R163: 95 | S163: 100 | T163: 255000 | U163: 0.236 | V163: -209.985 | W163: 0.0015 | X163: 179.331 | Y163: 58.565 | Z163: undefined
A164: ضهین0302 | B164: 8000 | C164: 11060 | D164: 1403/03/30 | E164: 164 | F164: 9,021 (0.0%) | G164: 1 | H164: 4.50M | I164: 4500 | J164: 0.74 | K164: 4500 | L164: 0.74 | M164: 12500 | N164: 4014 | O164: 0.1212 | P164: در سود | Q164: 2 | R164: 4500 | S164: 4500 | T164: 6730000 | U164: 0.978 | V164: -1874.056 | W164: 0 | X164: 397.24 | Y164: 3090.099 | Z164: undefined
A165: ضهمن1102 | B165: 1500 | C165: 1980 | D165: 1402/11/23 | E165: 36 | F165: 17,137 (-0.1%) | G165: 10 | H165: 4.50M | I165: 450 | J165: -22.28 | K165: 450 | L165: -22.28 | M165: 1950 | N165: 531 | O165: -0.152 | P165: در سود | Q165: 4 | R165: 450 | S165: 450 | T165: 850000 | U165: 0.998 | V165: -372.036 | W165: 0 | X165: 4.074 | Y165: 143.924 | Z165: undefined
A166: ضسلا1223 | B166: 24000 | C166: 16400 | D166: 1402/12/16 | E166: 59 | F166: 3,375 (-3.2%) | G166: 112 | H166: 4.48M | I166: 40 | J166: -92.73 | K166: 40 | L166: -92.73 | M166: 24040 | N166: 8 | O166: 4.3307 | P166: در ضرر | Q166: 4 | R166: 40 | S166: 40 | T166: 2450000 | U166: 0.01 | V166: -229.851 | W166: 0 | X166: 176.097 | Y166: 25.348 | Z166: undefined
A167: ضسپا1007 | B167: 3750 | C167: 2469 | D167: 1402/10/20 | E167: 3 | F167: 42,253 (-5.0%) | G167: 4210 | H167: 4.21M | I167: 1 | J167: 0 | K167: 1 | L167: 0 | M167: 3751 | N167: 0 | O167: 1 | P167: در ضرر | Q167: 0 | R167: 1 | S167: 1 | T167: 381000 | U167: 0 | V167: 0 | W167: 0 | X167: 0 | Y167: 0 | Z167: undefined
A168: ضشنا1202 | B168: 6500 | C168: 8210 | D168: 1402/12/02 | E168: 45 | F168: 11,419 (0.0%) | G168: 2 | H168: 4M | I168: 2000 | J168: -9.09 | K168: 2000 | L168: -9.09 | M168: 8500 | N168: 1942 | O168: 0.0299 | P168: در سود | Q168: 4 | R168: 2000 | S168: 2000 | T168: 3650000 | U168: 0.988 | V168: -1681.456 | W168: 0 | X168: 93.419 | Y168: 763.817 | Z168: undefined
A169: ضدی1118 | B169: 2800 | C169: 1110 | D169: 1402/11/18 | E169: 31 | F169: 2,000 (0.0%) | G169: 1000 | H169: 4M | I169: 4 | J169: -20 | K169: 4 | L169: -20 | M169: 2804 | N169: 0 | O169: 1 | P169: در ضرر | Q169: 0 | R169: 4 | S169: 4 | T169: 294000 | U169: 0 | V169: 0 | W169: 0 | X169: 0 | Y169: 0 | Z169: undefined
A170: ضپلا1216 | B170: 85200 | C170: 142010 | D170: 1402/12/09 | E170: 52 | F170: 1,847 (0.0%) | G170: 6 | H170: 3.95M | I170: 65999 | J170: 10.72 | K170: 65855 | L170: 10.48 | M170: 151199 | N170: 60261 | O170: 0.0952 | P170: در سود | Q170: 2 | R170: 65568 | S170: 65999 | T170: 949000 | U170: 1 | V170: -20557.749 | W170: 0 | X170: 2.817 | Y170: 11713.129 | Z170: undefined
A171: ضخود1116 | B171: 1900 | C171: 2829 | D171: 1402/11/11 | E171: 24 | F171: 1,823 (0.0%) | G171: 4 | H171: 3.83M | I171: 920 | J171: -4.47 | K171: 957 | L171: -0.62 | M171: 2820 | N171: 995 | O171: -0.0754 | P171: در سود | Q171: 3 | R171: 920 | S171: 1070 | T171: 1537000 | U171: 1 | V171: -467.263 | W171: 0 | X171: 0.003 | Y171: 122.894 | Z171: undefined
A172: ضخود0124 | B172: 3750 | C172: 2829 | D172: 1403/01/08 | E172: 80 | F172: 2,794 (1.8%) | G172: 50 | H172: 3.50M | I172: 70 | J172: -28.57 | K172: 70 | L172: -28.57 | M172: 3820 | N172: 23 | O172: 2.0166 | P172: در ضرر | Q172: 4 | R172: 70 | S172: 70 | T172: 450000 | U172: 0.11 | V172: -273.468 | W172: 0.0004 | X172: 251.478 | Y172: 63.718 | Z172: undefined
A173: ضفلا1180 | B173: 3750 | C173: 6200 | D173: 1402/11/25 | E173: 38 | F173: 1,336 (0.0%) | G173: 1 | H173: 3.30M | I173: 3300 | J173: 37.5 | K173: 3300 | L173: 37.5 | M173: 7050 | N173: 2546 | O173: 0.296 | P173: در سود | Q173: 2 | R173: 3300 | S173: 3300 | T173: 4550000 | U173: 1 | V173: -913.43 | W173: 0 | X173: 0.011 | Y173: 380.38 | Z173: undefined
A174: ضخوز1206 | B174: 3250 | C174: 3527 | D174: 1402/12/07 | E174: 50 | F174: 301 (0.0%) | G174: 7 | H174: 2.94M | I174: 420 | J174: -16 | K174: 420 | L174: -16 | M174: 3670 | N174: 438 | O174: -0.04 | P174: در سود | Q174: 7 | R174: 420 | S174: 420 | T174: 1130000 | U174: 0.837 | V174: -1042.654 | W174: 0.0005 | X174: 322.939 | Y174: 345.26 | Z174: undefined
A175: ضتاب0207 | B175: 11000 | C175: 9900 | D175: 1403/02/05 | E175: 108 | F175: 20,180 (0.0%) | G175: 3 | H175: 2.73M | I175: 950 | J175: -17.39 | K175: 910 | L175: -20.87 | M175: 11950 | N175: 634 | O175: 0.4977 | P175: در ضرر | Q175: 5 | R175: 890 | S175: 950 | T175: 2020000 | U175: 0.481 | V175: -2310.13 | W175: 0.0002 | X175: 2154.524 | Y175: 1226.014 | Z175: undefined
A176: ضستا0109 | B176: 900 | C176: 1244 | D176: 1403/01/08 | E176: 80 | F176: 89,192 (0.0%) | G176: 5 | H176: 2.06M | I176: 412 | J176: -1.67 | K176: 412 | L176: -1.67 | M176: 1312 | N176: 394 | O176: 0.0468 | P176: در سود | Q176: 3 | R176: 412 | S176: 412 | T176: 662000 | U176: 0.992 | V176: -220.786 | W176: 0.0001 | X176: 13.157 | Y176: 184.356 | Z176: undefined
A177: ضخپارس1213 | B177: 3000 | C177: 1234 | D177: 1402/12/20 | E177: 63 | F177: 24,548 (0.9%) | G177: 222 | H177: 2M | I177: 9 | J177: -30.77 | K177: 9 | L177: -30.77 | M177: 3009 | N177: 0 | O177: 1 | P177: در ضرر | Q177: 0 | R177: 9 | S177: 9 | T177: 319000 | U177: 0 | V177: 0 | W177: 0 | X177: 0 | Y177: 0 | Z177: undefined
A178: ضهای1105 | B178: 2200 | C178: 2090 | D178: 1402/11/15 | E178: 28 | F178: 989 (1.3%) | G178: 13 | H178: 1.95M | I178: 150 | J178: 50 | K178: 150 | L178: 50 | M178: 2350 | N178: 56 | O178: 1.6764 | P178: در ضرر | Q178: 6 | R178: 150 | S178: 150 | T178: 470000 | U178: 0.406 | V178: -713.158 | W178: 0.0019 | X178: 225.426 | Y178: 61.034 | Z178: undefined
A179: ضسپا1011 | B179: 5500 | C179: 2469 | D179: 1402/10/20 | E179: 3 | F179: 194,988 (-0.9%) | G179: 1717 | H179: 1.72M | I179: 1 | J179: 0 | K179: 1 | L179: 0 | M179: 5501 | N179: 0 | O179: 1 | P179: در ضرر | Q179: 0 | R179: 1 | S179: 1 | T179: 561000 | U179: 0 | V179: 0 | W179: 0 | X179: 0 | Y179: 0 | Z179: undefined
A180: ضترا1155 | B180: 4000 | C180: 4200 | D180: 1402/11/23 | E180: 36 | F180: 14,345 (0.0%) | G180: 3 | H180: 1.59M | I180: 500 | J180: -17.76 | K180: 530 | L180: -12.83 | M180: 4500 | N180: 379 | O180: 0.3189 | P180: در سود | Q180: 7 | R180: 500 | S180: 550 | T180: 1380000 | U180: 0.778 | V180: -1425.808 | W180: 0.0006 | X180: 394.733 | Y180: 286.198 | Z180: undefined
A181: ضخود1117 | B181: 2000 | C181: 2829 | D181: 1402/11/11 | E181: 24 | F181: 1,911 (0.0%) | G181: 1 | H181: 900000 | I181: 900 | J181: 35.14 | K181: 900 | L181: 35.14 | M181: 2900 | N181: 897 | O181: 0.0038 | P181: در سود | Q181: 3 | R181: 900 | S181: 900 | T181: 1480000 | U181: 1 | V181: -491.941 | W181: 0 | X181: 0.038 | Y181: 129.361 | Z181: undefined
A182: ضخود0118 | B182: 2400 | C182: 2829 | D182: 1403/01/08 | E182: 80 | F182: 5,770 (0.0%) | G182: 1 | H182: 700000 | I182: 700 | J182: -7.41 | K182: 700 | L182: -7.41 | M182: 3100 | N182: 607 | O182: 0.1535 | P182: در سود | Q182: 4 | R182: 700 | S182: 700 | T182: 1280000 | U182: 0.933 | V182: -655.692 | W182: 0.0003 | X182: 174.961 | Y182: 452.38 | Z182: undefined
A183: ضخپارس400 | B183: 850 | C183: 1234 | D183: 1403/04/10 | E183: 175 | F183: 11 (10.0%) | G183: 1 | H183: 660000 | I183: 660 | J183: 10 | K183: 660 | L183: 10 | M183: 1510 | N183: 494 | O183: 0.337 | P183: در سود | Q183: 2 | R183: 660 | S183: 660 | T183: 910000 | U183: 0.986 | V183: -195.013 | W183: 0.0001 | X183: 31.02 | Y183: 352.283 | Z183: undefined
A184: ضستا2022 | B184: 800 | C184: 1244 | D184: 1403/02/12 | E184: 115 | F184: 1 (0.0%) | G184: 1 | H184: 600000 | I184: 600 | J184: 59900 | K184: 600 | L184: 59900 | M184: 1400 | N184: 506 | O184: 0.1862 | P184: در سود | Q184: 2 | R184: 600 | S184: 600 | T184: 850000 | U184: 0.997 | V184: -187.392 | W184: 0 | X184: 6.347 | Y184: 231.722 | Z184: undefined
A185: ضفلا1185 | B185: 6000 | C185: 6200 | D185: 1402/11/25 | E185: 38 | F185: 40,722 (0.0%) | G185: 1 | H185: 577000 | I185: 577 | J185: 18.24 | K185: 577 | L185: 18.24 | M185: 6577 | N185: 484 | O185: 0.1916 | P185: در سود | Q185: 8 | R185: 577 | S185: 577 | T185: 1827000 | U185: 0.718 | V185: -2127.652 | W185: 0.0005 | X185: 675.585 | Y185: 413.127 | Z185: undefined
A186: ضسرو0302 | B186: 90000 | C186: 135300 | D186: 1403/03/09 | E186: 143 | F186: 5,432 (0.0%) | G186: 1 | H186: 556670 | I186: 55667 | J186: 0.97 | K186: 55667 | L186: 0.97 | M186: 145667 | N186: 53749 | O186: 0.0357 | P186: در سود | Q186: 2 | R186: 55667 | S186: 55667 | T186: 837000 | U186: 0.992 | V186: -20929.09 | W186: 0 | X186: 1821.967 | Y186: 31523.087 | Z186: undefined
A187: ضستا2023 | B187: 900 | C187: 1244 | D187: 1403/02/12 | E187: 115 | F187: 1 (0.0%) | G187: 1 | H187: 530000 | I187: 530 | J187: 52900 | K187: 530 | L187: 52900 | M187: 1430 | N187: 415 | O187: 0.2782 | P187: در سود | Q187: 2 | R187: 530 | S187: 530 | T187: 780000 | U187: 0.984 | V187: -218.013 | W187: 0.0002 | X187: 27.586 | Y187: 255.446 | Z187: undefined
A188: ضهرم0110 | B188: 28000 | C188: 20340 | D188: 1403/01/22 | E188: 94 | F188: 1,012 (0.0%) | G188: 1 | H188: 499000 | I188: 499 | J188: 3.53 | K188: 499 | L188: 3.53 | M188: 28499 | N188: 152 | O188: 2.2807 | P188: در ضرر | Q188: 4 | R188: 499 | S188: 499 | T188: 3309000 | U188: 0.096 | V188: -1652.073 | W188: 0 | X188: 1766.212 | Y188: 465.513 | Z188: undefined
A189: ضسپا1006 | B189: 3500 | C189: 2469 | D189: 1402/10/20 | E189: 3 | F189: 19,382 (0.0%) | G189: 422 | H189: 422000 | I189: 1 | J189: 0 | K189: 1 | L189: 0 | M189: 3501 | N189: 0 | O189: 1 | P189: در ضرر | Q189: 0 | R189: 1 | S189: 1 | T189: 361000 | U189: 0 | V189: 0 | W189: 0 | X189: 0 | Y189: 0 | Z189: undefined
A190: ضکرمان1208 | B190: 1598 | C190: 1323 | D190: 1402/12/14 | E190: 57 | F190: 8,693 (0.0%) | G190: 1 | H190: 150000 | I190: 150 | J190: 59.57 | K190: 150 | L190: 59.57 | M190: 1748 | N190: 16 | O190: 8.6228 | P190: در ضرر | Q190: 1 | R190: 150 | S190: 150 | T190: 310000 | U190: 0.169 | V190: -200.918 | W190: 0.0014 | X190: 132.618 | Y190: 32.672 | Z190: undefined
A191: ضکرمان1207 | B191: 1498 | C191: 1323 | D191: 1402/12/14 | E191: 57 | F191: 790 (0.1%) | G191: 1 | H191: 140000 | I191: 140 | J191: 40 | K191: 140 | L191: 40 | M191: 1638 | N191: 34 | O191: 3.0746 | P191: در ضرر | Q191: 3 | R191: 140 | S191: 140 | T191: 290000 | U191: 0.311 | V191: -303.754 | W191: 0.0019 | X191: 186.166 | Y191: 59.426 | Z191: undefined
A192: ضبرک1004 | B192: 7000 | C192: 6880 | D192: 1402/10/17 | E192: 1 | F192: 2,035 (0.0%) | G192: 86 | H192: 91000 | I192: 1 | J192: -99.32 | K192: 1 | L192: -99.32 | M192: 7001 | N192: 59 | O192: -0.983 | P192: در سود | Q192: 3784 | R192: 1 | S192: 2 | T192: 1411000 | U192: 0.55 | V192: -10226.191 | W192: 0.0031 | X192: 145.25 | Y192: 10.393 | Z192: undefined
A193: ضبدر2057 | B193: 15000 | C193: 9600 | D193: 1403/02/19 | E193: 122 | F193: 320 (0.3%) | G193: 1 | H193: 40000 | I193: 40 | J193: 14.29 | K193: 40 | L193: 14.29 | M193: 15040 | N193: 34 | O193: 0.1697 | P193: در ضرر | Q193: 11 | R193: 40 | S193: 40 | T193: 1550000 | U193: 0.046 | V193: -381.684 | W193: 0 | X193: 534.836 | Y193: 135.921 | Z193: undefined
A194: ضخود1225 | B194: 4500 | C194: 2829 | D194: 1402/12/02 | E194: 45 | F194: 48,026 (0.0%) | G194: 3 | H194: 35000 | I194: 14 | J194: 7.69 | K194: 12 | L194: -7.69 | M194: 4514 | N194: 0 | O194: 1 | P194: در ضرر | Q194: 0 | R194: 7 | S194: 14 | T194: 472000 | U194: 0 | V194: -2.249 | W194: 0 | X194: 1.397 | Y194: 0.131 | Z194: undefined
A195: ضسپا1005 | B195: 3250 | C195: 2469 | D195: 1402/10/20 | E195: 3 | F195: 260,987 (0.0%) | G195: 22 | H195: 25000 | I195: 1 | J195: 0 | K195: 1 | L195: 0 | M195: 3251 | N195: 0 | O195: 1 | P195: در ضرر | Q195: 0 | R195: 1 | S195: 3 | T195: 331000 | U195: 0 | V195: 0 | W195: 0 | X195: 0 | Y195: 0 | Z195: undefined
A196: ضخود1125 | B196: 3750 | C196: 2829 | D196: 1402/11/11 | E196: 24 | F196: 11,798 (0.0%) | G196: 1 | H196: 7000 | I196: 7 | J196: 0 | K196: 7 | L196: 0 | M196: 3757 | N196: 0 | O196: 1 | P196: در ضرر | Q196: 1 | R196: 7 | S196: 7 | T196: 387000 | U196: 0.003 | V196: -18.501 | W196: 0 | X196: 6.229 | Y196: 0.506 | Z196: undefined
A197: ضترو1102 | B197: 9000 | C197: 11740 | D197: 1402/11/15 | E197: 28 | F197: 42 (0.0%) | G197: 0 | H197: 0 | I197: 3050 | J197: 0 | K197: 3050 | L197: 0 | M197: 12050 | N197: 2941 | O197: 0.0369 | P197: در سود | Q197: 4 | R197: 0 | S197: 0 | T197: 5410000 | U197: 0.999 | V197: -2234.935 | W197: 0 | X197: 13.839 | Y197: 676.101 | Z197: undefined
A198: ضترو1103 | B198: 10000 | C198: 11740 | D198: 1402/11/15 | E198: 28 | F198: 6 (0.0%) | G198: 0 | H198: 0 | I198: 1500 | J198: 0 | K198: 1500 | L198: 0 | M198: 11500 | N198: 1972 | O198: -0.2394 | P198: در سود | Q198: 8 | R198: 0 | S198: 0 | T198: 3860000 | U198: 0.973 | V198: -2833.138 | W198: 0.0001 | X198: 202.958 | Y198: 727.275 | Z198: undefined
A199: ضهرم3010 | B199: 28000 | C199: 20340 | D199: 1403/03/23 | E199: 157 | F199: 68 (0.0%) | G199: 0 | H199: 0 | I199: 2551 | J199: 0 | K199: 2551 | L199: 0 | M199: 30551 | N199: 529 | O199: 3.8226 | P199: در ضرر | Q199: 2 | R199: 0 | S199: 0 | T199: 5361000 | U199: 0.219 | V199: -2599.907 | W199: 0.0001 | X199: 3963.821 | Y199: 1698.59 | Z199: undefined
A200: ضهرم1217 | B200: 11000 | C200: 20340 | D200: 1402/12/23 | E200: 66 | F200: 6,238 (0.0%) | G200: 0 | H200: 0 | I200: 10500 | J200: 6.75 | K200: 9836 | L200: 0 | M200: 21500 | N200: 9976 | O200: 0.0525 | P200: در سود | Q200: 2 | R200: 0 | S200: 0 | T200: 13936000 | U200: 1 | V200: -2628.543 | W200: 0 | X200: 0.107 | Y200: 1901.118 | Z200: undefined
... 242 more rows

Sheet Coveredcall List
A1: نماد | B1: اعمال | C1: فی سهم پایه | D1: سررسید | E1: مانده روز | F1: حجم معاملات | G1: آخرین پرمیوم | H1: سربه سری | I1: درصد سربه سری | J1: سود ماهیانه در قیمت فعلی سهم | K1: حداکثر سود ماهیانه | P1: مانده روز از : | Q1: 20 | S1: حجم از: | T1: 100 | V1: سربه سری از: | W1: -0.1 | Y1: سود ماهیانه از: | Z1: 0.01 | AB1: نماد شامل: | AC1: ضخود | AE1: ستون مرتب سازی: | AF1: j
A2: ='دیده بان'!A408 -> ضتوان706 | B2: ='دیده بان'!B408 -> 20000 | C2: ='دیده بان'!C408 -> 18431 | D2: ='دیده بان'!D408 -> 1403/07/02 | E2: ='دیده بان'!E408 -> 260 | F2: ='دیده بان'!G408 -> 0 | G2: ='دیده بان'!I408 -> 6000 | H2: =C2-G2 -> 12431 | I2: =IFERROR(-G2/C2,0) -> -0.3255384949 | J2: =IF(C2<=B2,G2,B2+G2-C2)/H2/E2*30 -> 0.05569203542 | K2: =IFERROR((G2+B2-C2)/H2/E2*30,0) -> 0.07025550268
A3: ='دیده بان'!A378 -> ضهم وزن607 | B3: ='دیده بان'!B378 -> 20000 | C3: ='دیده بان'!C378 -> 16421 | D3: ='دیده بان'!D378 -> 1403/06/04 | E3: ='دیده بان'!E378 -> 231 | F3: ='دیده بان'!G378 -> 0 | G3: ='دیده بان'!I378 -> 2400 | H3: 14021 | I3: -0.1461543146 | J3: 0.02223010568 | K3: 0.05538075077
A4: ='دیده بان'!A4 -> ضسپا1001 | B4: ='دیده بان'!B4 -> 2400 | C4: ='دیده بان'!C4 -> 2469 | D4: ='دیده بان'!D4 -> 1402/10/20 | E4: ='دیده بان'!E4 -> 3 | F4: ='دیده بان'!G4 -> 884899 | G4: ='دیده بان'!I4 -> 65 | H4: 2404 | I4: -0.02632644795 | J4: -0.01663893511 | K4: -0.01663893511
A5: ='دیده بان'!A377 -> ضهم وزن606 | B5: ='دیده بان'!B377 -> 18000 | C5: ='دیده بان'!C377 -> 16421 | D5: ='دیده بان'!D377 -> 1403/06/04 | E5: ='دیده بان'!E377 -> 231 | F5: ='دیده بان'!G377 -> 0 | G5: ='دیده بان'!I377 -> 1500 | H5: 14921 | I5: -0.09134644662 | J5: 0.01305577339 | K5: 0.02679915085
A6: ='دیده بان'!A87 -> ضبرک1000 | B6: ='دیده بان'!B87 -> 5000 | C6: ='دیده بان'!C87 -> 6880 | D6: ='دیده بان'!D87 -> 1402/10/17 | E6: ='دیده بان'!E87 -> 1 | F6: ='دیده بان'!G87 -> 198 | G6: ='دیده بان'!I87 -> 2000 | H6: 4880 | I6: -0.2906976744 | J6: 0.737704918 | K6: 0.737704918
A7: ='دیده بان'!A7 -> ضسپا1000 | B7: ='دیده بان'!B7 -> 2200 | C7: ='دیده بان'!C7 -> 2469 | D7: ='دیده بان'!D7 -> 1402/10/20 | E7: ='دیده بان'!E7 -> 3 | F7: ='دیده بان'!G7 -> 145555 | G7: ='دیده بان'!I7 -> 242 | H7: 2227 | I7: -0.09801539085 | J7: -0.1212393354 | K7: -0.1212393354
A8: ='دیده بان'!A374 -> ضهم وزن601 | B8: ='دیده بان'!B374 -> 9000 | C8: ='دیده بان'!C374 -> 16421 | D8: ='دیده بان'!D374 -> 1403/06/04 | E8: ='دیده بان'!E374 -> 231 | F8: ='دیده بان'!G374 -> 0 | G8: ='دیده بان'!I374 -> 9550 | H8: 6871 | I8: -0.5815723768 | J8: 0.04024065005 | K8: 0.04024065005
A9: ='دیده بان'!A379 -> ضهم وزن608 | B9: ='دیده بان'!B379 -> 23000 | C9: ='دیده بان'!C379 -> 16421 | D9: ='دیده بان'!D379 -> 1403/06/04 | E9: ='دیده بان'!E379 -> 231 | F9: ='دیده بان'!G379 -> 0 | G9: ='دیده بان'!I379 -> 1200 | H9: 15221 | I9: -0.0730771573 | J9: 0.01023875934 | K9: 0.06637275739
A10: ='دیده بان'!A376 -> ضهم وزن604 | B10: ='دیده بان'!B376 -> 14000 | C10: ='دیده بان'!C376 -> 16421 | D10: ='دیده بان'!D376 -> 1403/06/04 | E10: ='دیده بان'!E376 -> 231 | F10: ='دیده بان'!G376 -> 0 | G10: ='دیده بان'!I376 -> 3682 | H10: 12739 | I10: -0.2242250776 | J10: 0.01285550151 | K10: 0.01285550151
A11: ='دیده بان'!A229 -> ضبرک1002 | B11: ='دیده بان'!B229 -> 6000 | C11: ='دیده بان'!C229 -> 6880 | D11: ='دیده بان'!D229 -> 1402/10/17 | E11: ='دیده بان'!E229 -> 1 | F11: ='دیده بان'!G229 -> 0 | G11: ='دیده بان'!I229 -> 1000 | H11: 5880 | I11: -0.1453488372 | J11: 0.612244898 | K11: 0.612244898
A12: ='دیده بان'!A437 -> ضهم وزن602 | B12: ='دیده بان'!B437 -> 10000 | C12: ='دیده بان'!C437 -> 16421 | D12: ='دیده بان'!D437 -> 1403/06/04 | E12: ='دیده بان'!E437 -> 231 | F12: ='دیده بان'!G437 -> 0 | G12: ='دیده بان'!I437 -> 7003 | H12: 9418 | I12: -0.4264661105 | J12: 0.008025527244 | K12: 0.008025527244
A13: ='دیده بان'!A373 -> ضهم وزن600 | B13: ='دیده بان'!B373 -> 8000 | C13: ='دیده بان'!C373 -> 16421 | D13: ='دیده بان'!D373 -> 1403/06/04 | E13: ='دیده بان'!E373 -> 231 | F13: ='دیده بان'!G373 -> 0 | G13: ='دیده بان'!I373 -> 10450 | H13: 5971 | I13: -0.6363802448 | J13: 0.04413104899 | K13: 0.04413104899
A14: ='دیده بان'!A375 -> ضهم وزن603 | B14: ='دیده بان'!B375 -> 12000 | C14: ='دیده بان'!C375 -> 16421 | D14: ='دیده بان'!D375 -> 1403/06/04 | E14: ='دیده بان'!E375 -> 231 | F14: ='دیده بان'!G375 -> 0 | G14: ='دیده بان'!I375 -> 7190 | H14: 9231 | I14: -0.4378539675 | J14: 0.03895681829 | K14: 0.03895681829
A15: ='دیده بان'!A424 -> ضهم وزن605 | B15: ='دیده بان'!B424 -> 16000 | C15: ='دیده بان'!C424 -> 16421 | D15: ='دیده بان'!D424 -> 1403/06/04 | E15: ='دیده بان'!E424 -> 231 | F15: ='دیده بان'!G424 -> 0 | G15: ='دیده بان'!I424 -> 4000 | H15: 12421 | I15: -0.2435905243 | J15: 0.03742091577 | K15: 0.03742091577
A16: ='دیده بان'!A183 -> ضخپارس400 | B16: ='دیده بان'!B183 -> 850 | C16: ='دیده بان'!C183 -> 1234 | D16: ='دیده بان'!D183 -> 1403/04/10 | E16: ='دیده بان'!E183 -> 175 | F16: ='دیده بان'!G183 -> 1 | G16: ='دیده بان'!I183 -> 660 | H16: 574 | I16: -0.5348460292 | J16: 0.08242906919 | K16: 0.08242906919
A17: ='دیده بان'!A44 -> ضخپارس403 | B17: ='دیده بان'!B44 -> 1050 | C17: ='دیده بان'!C44 -> 1234 | D17: ='دیده بان'!D44 -> 1403/04/10 | E17: ='دیده بان'!E44 -> 175 | F17: ='دیده بان'!G44 -> 7466 | G17: ='دیده بان'!I44 -> 385 | H17: 849 | I17: -0.311993517 | J17: 0.04058556285 | K17: 0.04058556285
A18: ='دیده بان'!A154 -> ضخپارس401 | B18: ='دیده بان'!B154 -> 900 | C18: ='دیده بان'!C154 -> 1234 | D18: ='دیده بان'!D154 -> 1403/04/10 | E18: ='دیده بان'!E154 -> 175 | F18: ='دیده بان'!G154 -> 29 | G18: ='دیده بان'!I154 -> 500 | H18: 734 | I18: -0.4051863857 | J18: 0.0387699494 | K18: 0.0387699494
A19: ='دیده بان'!A357 -> ضدی407 | B19: ='دیده بان'!B357 -> 1200 | C19: ='دیده بان'!C357 -> 1110 | D19: ='دیده بان'!D357 -> 1403/04/10 | E19: ='دیده بان'!E357 -> 175 | F19: ='دیده بان'!G357 -> 0 | G19: ='دیده بان'!I357 -> 183 | H19: 927 | I19: -0.1648648649 | J19: 0.03384188627 | K19: 0.05048543689
A20: ='دیده بان'!A394 -> ضخپارس402 | B20: ='دیده بان'!B394 -> 950 | C20: ='دیده بان'!C394 -> 1234 | D20: ='دیده بان'!D394 -> 1403/04/10 | E20: ='دیده بان'!E394 -> 175 | F20: ='دیده بان'!G394 -> 0 | G20: ='دیده بان'!I394 -> 400 | H20: 834 | I20: -0.3241491086 | J20: 0.02384378212 | K20: 0.02384378212
A21: ='دیده بان'!A395 -> ضخپارس405 | B21: ='دیده بان'!B395 -> 1250 | C21: ='دیده بان'!C395 -> 1234 | D21: ='دیده بان'!D395 -> 1403/04/10 | E21: ='دیده بان'!E395 -> 175 | F21: ='دیده بان'!G395 -> 0 | G21: ='دیده بان'!I395 -> 300 | H21: 934 | I21: -0.2431118314 | J21: 0.05506271031 | K21: 0.05799938819
A22: ='دیده بان'!A47 -> ضموج401 | B22: ='دیده بان'!B47 -> 8500 | C22: ='دیده بان'!C47 -> 12542 | D22: ='دیده بان'!D47 -> 1403/04/03 | E22: ='دیده بان'!E47 -> 168 | F22: ='دیده بان'!G47 -> 464 | G22: ='دیده بان'!I47 -> 5900 | H22: 6642 | I22: -0.4704193908 | J22: 0.04995268207 | K22: 0.04995268207
A23: ='دیده بان'!A46 -> ضموج407 | B23: ='دیده بان'!B46 -> 13500 | C23: ='دیده بان'!C46 -> 12542 | D23: ='دیده بان'!D46 -> 1403/04/03 | E23: ='دیده بان'!E46 -> 168 | F23: ='دیده بان'!G46 -> 1100 | G23: ='دیده بان'!I46 -> 2300 | H23: 10242 | I23: -0.1833838303 | J23: 0.04010098474 | K23: 0.05680391665
A24: ='دیده بان'!A119 -> ضموج409 | B24: ='دیده بان'!B119 -> 15500 | C24: ='دیده بان'!C119 -> 12542 | D24: ='دیده بان'!D119 -> 1403/04/03 | E24: ='دیده بان'!E119 -> 168 | F24: ='دیده بان'!G119 -> 38 | G24: ='دیده بان'!I119 -> 1855 | H24: 10687 | I24: -0.1479030458 | J24: 0.03099560213 | K24: 0.08042147335
A25: ='دیده بان'!A128 -> ضبرک1001 | B25: ='دیده بان'!B128 -> 5500 | C25: ='دیده بان'!C128 -> 6880 | D25: ='دیده بان'!D128 -> 1402/10/17 | E25: ='دیده بان'!E128 -> 1 | F25: ='دیده بان'!G128 -> 35 | G25: ='دیده بان'!I128 -> 1403 | H25: 5477 | I25: -0.2039244186 | J25: 0.1259813767 | K25: 0.1259813767
A26: ='دیده بان'!A129 -> ضموج410 | B26: ='دیده بان'!B129 -> 16500 | C26: ='دیده بان'!C129 -> 12542 | D26: ='دیده بان'!D129 -> 1403/04/03 | E26: ='دیده بان'!E129 -> 168 | F26: ='دیده بان'!G129 -> 34 | G26: ='دیده بان'!I129 -> 1435 | H26: 11107 | I26: -0.1144155637 | J26: 0.02307103628 | K26: 0.08670529524
A27: ='دیده بان'!A134 -> ضموج408 | B27: ='دیده بان'!B134 -> 14500 | C27: ='دیده بان'!C134 -> 12542 | D27: ='دیده بان'!D134 -> 1403/04/03 | E27: ='دیده بان'!E134 -> 168 | F27: ='دیده بان'!G134 -> 17 | G27: ='دیده بان'!I134 -> 2001 | H27: 10541 | I27: -0.1595439324 | J27: 0.03389824766 | K27: 0.06706804722
A28: ='دیده بان'!A385 -> ضموج412 | B28: ='دیده بان'!B385 -> 18500 | C28: ='دیده بان'!C385 -> 12542 | D28: ='دیده بان'!D385 -> 1403/04/03 | E28: ='دیده بان'!E385 -> 168 | F28: ='دیده بان'!G385 -> 0 | G28: ='دیده بان'!I385 -> 800 | H28: 11742 | I28: -0.06378568011 | J28: 0.01216633818 | K28: 0.1027751417
A29: ='دیده بان'!A147 -> ضصاد1145 | B29: ='دیده بان'!B147 -> 3617 | C29: ='دیده بان'!C147 -> 1851 | D29: ='دیده بان'!D147 -> 1402/11/11 | E29: ='دیده بان'!E147 -> 24 | F29: ='دیده بان'!G147 -> 15101 | G29: ='دیده بان'!I147 -> 1 | H29: 1850 | I29: -0.0005402485143 | J29: 0.0006756756757 | K29: 1.193918919
A30: ='دیده بان'!A164 -> ضهین0302 | B30: ='دیده بان'!B164 -> 8000 | C30: ='دیده بان'!C164 -> 11060 | D30: ='دیده بان'!D164 -> 1403/03/30 | E30: ='دیده بان'!E164 -> 164 | F30: ='دیده بان'!G164 -> 1 | G30: ='دیده بان'!I164 -> 4500 | H30: 6560 | I30: -0.4068716094 | J30: 0.04015466984 | K30: 0.04015466984
A31: ='دیده بان'!A158 -> ضصاد1143 | B31: ='دیده بان'!B158 -> 3165 | C31: ='دیده بان'!C158 -> 1851 | D31: ='دیده بان'!D158 -> 1402/11/11 | E31: ='دیده بان'!E158 -> 24 | F31: ='دیده بان'!G158 -> 2000 | G31: ='دیده بان'!I158 -> 5 | H31: 1846 | I31: -0.002701242572 | J31: 0.003385698808 | K31: 0.8931473456
A32: ='دیده بان'!A85 -> ضهین0304 | B32: ='دیده بان'!B85 -> 10000 | C32: ='دیده بان'!C85 -> 11060 | D32: ='دیده بان'!D85 -> 1403/03/30 | E32: ='دیده بان'!E85 -> 164 | F32: ='دیده بان'!G85 -> 116 | G32: ='دیده بان'!I85 -> 2850 | H32: 8210 | I32: -0.2576853526 | J32: 0.0398829506 | K32: 0.0398829506
A33: ='دیده بان'!A107 -> ضهین0308 | B33: ='دیده بان'!B107 -> 14000 | C33: ='دیده بان'!C107 -> 11060 | D33: ='دیده بان'!D107 -> 1403/03/30 | E33: ='دیده بان'!E107 -> 164 | F33: ='دیده بان'!G107 -> 210 | G33: ='دیده بان'!I107 -> 625 | H33: 10435 | I33: -0.05650994575 | J33: 0.01095632662 | K33: 0.06249488705
A34: ='دیده بان'!A30 -> ضسپا1012 | B34: ='دیده بان'!B30 -> 1900 | C34: ='دیده بان'!C30 -> 2469 | D34: ='دیده بان'!D30 -> 1402/10/20 | E34: ='دیده بان'!E30 -> 3 | F34: ='دیده بان'!G30 -> 16142 | G34: ='دیده بان'!I30 -> 542 | H34: 1927 | I34: -0.2195220737 | J34: -0.1401141671 | K34: -0.1401141671
A35: ='دیده بان'!A140 -> ضهین0306 | B35: ='دیده بان'!B140 -> 12000 | C35: ='دیده بان'!C140 -> 11060 | D35: ='دیده بان'!D140 -> 1403/03/30 | E35: ='دیده بان'!E140 -> 164 | F35: ='دیده بان'!G140 -> 20 | G35: ='دیده بان'!I140 -> 1300 | H35: 9760 | I35: -0.1175406872 | J35: 0.0243652539 | K35: 0.04198320672
A36: ='دیده بان'!A137 -> ضصاد1139 | B36: ='دیده بان'!B137 -> 2350 | C36: ='دیده بان'!C137 -> 1851 | D36: ='دیده بان'!D137 -> 1402/11/11 | E36: ='دیده بان'!E137 -> 24 | F36: ='دیده بان'!G137 -> 2846 | G36: ='دیده بان'!I137 -> 10 | H36: 1841 | I36: -0.005402485143 | J36: 0.006789788159 | K36: 0.3456002173
A37: ='دیده بان'!A92 -> ضصاد1138 | B37: ='دیده بان'!B92 -> 2169 | C37: ='دیده بان'!C92 -> 1851 | D37: ='دیده بان'!D92 -> 1402/11/11 | E37: ='دیده بان'!E92 -> 24 | F37: ='دیده بان'!G92 -> 5700 | G37: ='دیده بان'!I92 -> 32 | H37: 1819 | I37: -0.01728795246 | J37: 0.02199010445 | K37: 0.2405167675
A38: ='دیده بان'!A63 -> ضصاد1137 | B38: ='دیده بان'!B63 -> 1988 | C38: ='دیده بان'!C63 -> 1851 | D38: ='دیده بان'!D63 -> 1402/11/11 | E38: ='دیده بان'!E63 -> 24 | F38: ='دیده بان'!G63 -> 12264 | G38: ='دیده بان'!I63 -> 58 | H38: 1793 | I38: -0.03133441383 | J38: 0.0404350251 | K38: 0.135945343
A39: ='دیده بان'!A216 -> ضهین0300 | B39: ='دیده بان'!B216 -> 7000 | C39: ='دیده بان'!C216 -> 11060 | D39: ='دیده بان'!D216 -> 1403/03/30 | E39: ='دیده بان'!E216 -> 164 | F39: ='دیده بان'!G216 -> 0 | G39: ='دیده بان'!I216 -> 5500 | H39: 5560 | I39: -0.4972875226 | J39: 0.04737673276 | K39: 0.04737673276
A40: ='دیده بان'!A217 -> ضهین0301 | B40: ='دیده بان'!B217 -> 7500 | C40: ='دیده بان'!C217 -> 11060 | D40: ='دیده بان'!D217 -> 1403/03/30 | E40: ='دیده بان'!E217 -> 164 | F40: ='دیده بان'!G217 -> 0 | G40: ='دیده بان'!I217 -> 5000 | H40: 6060 | I40: -0.452079566 | J40: 0.04346776141 | K40: 0.04346776141
A41: ='دیده بان'!A57 -> ضصاد1136 | B41: ='دیده بان'!B57 -> 1807 | C41: ='دیده بان'!C57 -> 1851 | D41: ='دیده بان'!D57 -> 1402/11/11 | E41: ='دیده بان'!E57 -> 24 | F41: ='دیده بان'!G57 -> 11297 | G41: ='دیده بان'!I57 -> 100 | H41: 1751 | I41: -0.05402485143 | J41: 0.03997715591 | K41: 0.03997715591
A42: ='دیده بان'!A438 -> ضبساما1105 | B42: ='دیده بان'!B438 -> 12000 | C42: ='دیده بان'!C438 -> 9700 | D42: ='دیده بان'!D438 -> 1402/11/04 | E42: ='دیده بان'!E438 -> 17 | F42: ='دیده بان'!G438 -> 0 | G42: ='دیده بان'!I438 -> 330 | H42: 9370 | I42: -0.03402061856 | J42: 0.06215079415 | K42: 0.4953229958
A43: ='دیده بان'!A218 -> ضهین0303 | B43: ='دیده بان'!B218 -> 9000 | C43: ='دیده بان'!C218 -> 11060 | D43: ='دیده بان'!D218 -> 1403/03/30 | E43: ='دیده بان'!E218 -> 164 | F43: ='دیده بان'!G218 -> 0 | G43: ='دیده بان'!I218 -> 3600 | H43: 7460 | I43: -0.3254972875 | J43: 0.03776237494 | K43: 0.03776237494
A44: ='دیده بان'!A79 -> ضصاد1132 | B44: ='دیده بان'!B79 -> 1445 | C44: ='دیده بان'!C79 -> 1851 | D44: ='دیده بان'!D79 -> 1402/11/11 | E44: ='دیده بان'!E79 -> 24 | F44: ='دیده بان'!G79 -> 847 | G44: ='دیده بان'!I79 -> 410 | H44: 1441 | I44: -0.2215018909 | J44: 0.00346981263 | K44: 0.00346981263
A45: ='دیده بان'!A219 -> ضهین0305 | B45: ='دیده بان'!B219 -> 11000 | C45: ='دیده بان'!C219 -> 11060 | D45: ='دیده بان'!D219 -> 1403/03/30 | E45: ='دیده بان'!E219 -> 164 | F45: ='دیده بان'!G219 -> 0 | G45: ='دیده بان'!I219 -> 2199 | H45: 8861 | I45: -0.1988245931 | J45: 0.04415759935 | K45: 0.04415759935
A46: ='دیده بان'!A220 -> ضهین0307 | B46: ='دیده بان'!B220 -> 13000 | C46: ='دیده بان'!C220 -> 11060 | D46: ='دیده بان'!D220 -> 1403/03/30 | E46: ='دیده بان'!E220 -> 164 | F46: ='دیده بان'!G220 -> 0 | G46: ='دیده بان'!I220 -> 1298 | H46: 9762 | I46: -0.1173598553 | J46: 0.02432278472 | K46: 0.06067579115
A47: ='دیده بان'!A440 -> ضهین0309 | B47: ='دیده بان'!B440 -> 15000 | C47: ='دیده بان'!C440 -> 11060 | D47: ='دیده بان'!D440 -> 1403/03/30 | E47: ='دیده بان'!E440 -> 164 | F47: ='دیده بان'!G440 -> 0 | G47: ='دیده بان'!I440 -> 400 | H47: 10660 | I47: -0.03616636528 | J47: 0.006864046126 | K47: 0.07447490047
A48: ='دیده بان'!A213 -> ضهرم3002 | B48: ='دیده بان'!B213 -> 14000 | C48: ='دیده بان'!C213 -> 20340 | D48: ='دیده بان'!D213 -> 1403/03/23 | E48: ='دیده بان'!E213 -> 157 | F48: ='دیده بان'!G213 -> 0 | G48: ='دیده بان'!I213 -> 10000 | H48: 10340 | I48: -0.4916420846 | J48: 0.06763665932 | K48: 0.06763665932
A49: ='دیده بان'!A19 -> ضهرم3006 | B49: ='دیده بان'!B19 -> 20000 | C49: ='دیده بان'!C19 -> 20340 | D49: ='دیده بان'!D19 -> 1403/03/23 | E49: ='دیده بان'!E19 -> 157 | F49: ='دیده بان'!G19 -> 3352 | G49: ='دیده بان'!I19 -> 4550 | H49: 15790 | I49: -0.2236971485 | J49: 0.05094734634 | K49: 0.05094734634
A50: ='دیده بان'!A18 -> ضهرم3000 | B50: ='دیده بان'!B18 -> 12000 | C50: ='دیده بان'!C18 -> 20340 | D50: ='دیده بان'!D18 -> 1403/03/23 | E50: ='دیده بان'!E18 -> 157 | F50: ='دیده بان'!G18 -> 1475 | G50: ='دیده بان'!I18 -> 10360 | H50: 9980 | I50: -0.5093411996 | J50: 0.03867607827 | K50: 0.03867607827
A51: ='دیده بان'!A308 -> ضملی1185 | B51: ='دیده بان'!B308 -> 10000 | C51: ='دیده بان'!C308 -> 7300 | D51: ='دیده بان'!D308 -> 1402/11/02 | E51: ='دیده بان'!E308 -> 15 | F51: ='دیده بان'!G308 -> 0 | G51: ='دیده بان'!I308 -> 10 | H51: 7290 | I51: -0.001369863014 | J51: 0.002743484225 | K51: 0.743484225
A52: ='دیده بان'!A359 -> ضبساما1100 | B52: ='دیده بان'!B359 -> 8500 | C52: ='دیده بان'!C359 -> 9700 | D52: ='دیده بان'!D359 -> 1402/11/04 | E52: ='دیده بان'!E359 -> 17 | F52: ='دیده بان'!G359 -> 0 | G52: ='دیده بان'!I359 -> 1700 | H52: 8000 | I52: -0.175257732 | J52: 0.1102941176 | K52: 0.1102941176
A53: ='دیده بان'!A65 -> ضهرم3003 | B53: ='دیده بان'!B65 -> 15000 | C53: ='دیده بان'!C65 -> 20340 | D53: ='دیده بان'!D65 -> 1403/03/23 | E53: ='دیده بان'!E65 -> 157 | F53: ='دیده بان'!G65 -> 101 | G53: ='دیده بان'!I65 -> 7777 | H53: 12563 | I53: -0.3823500492 | J53: 0.03706668708 | K53: 0.03706668708
A54: ='دیده بان'!A199 -> ضهرم3010 | B54: ='دیده بان'!B199 -> 28000 | C54: ='دیده بان'!C199 -> 20340 | D54: ='دیده بان'!D199 -> 1403/03/23 | E54: ='دیده بان'!E199 -> 157 | F54: ='دیده بان'!G199 -> 0 | G54: ='دیده بان'!I199 -> 2551 | H54: 17789 | I54: -0.1254178958 | J54: 0.02740189045 | K54: 0.1096827532
A55: ='دیده بان'!A214 -> ضهرم3004 | B55: ='دیده بان'!B214 -> 16000 | C55: ='دیده بان'!C214 -> 20340 | D55: ='دیده بان'!D214 -> 1403/03/23 | E55: ='دیده بان'!E214 -> 157 | F55: ='دیده بان'!G214 -> 0 | G55: ='دیده بان'!I214 -> 7700 | H55: 12640 | I55: -0.3785644051 | J55: 0.0507941627 | K55: 0.0507941627
A56: ='دیده بان'!A215 -> ضهرم3007 | B56: ='دیده بان'!B215 -> 22000 | C56: ='دیده بان'!C215 -> 20340 | D56: ='دیده بان'!D215 -> 1403/03/23 | E56: ='دیده بان'!E215 -> 157 | F56: ='دیده بان'!G215 -> 0 | G56: ='دیده بان'!I215 -> 3600 | H56: 16740 | I56: -0.1769911504 | J56: 0.04109307582 | K56: 0.06004154967
A57: ='دیده بان'!A155 -> ضهرم3008 | B57: ='دیده بان'!B155 -> 24000 | C57: ='دیده بان'!C155 -> 20340 | D57: ='دیده بان'!D155 -> 1403/03/23 | E57: ='دیده بان'!E155 -> 157 | F57: ='دیده بان'!G155 -> 5 | G57: ='دیده بان'!I155 -> 2860 | H57: 17480 | I57: -0.1406096362 | J57: 0.03126411987 | K57: 0.07127344809
A58: ='دیده بان'!A400 -> ضفصبا301 | B58: ='دیده بان'!B400 -> 5300 | C58: ='دیده بان'!C400 -> 6290 | D58: ='دیده بان'!D400 -> 1403/03/20 | E58: ='دیده بان'!E400 -> 154 | F58: ='دیده بان'!G400 -> 0 | G58: ='دیده بان'!I400 -> 400 | H58: 5890 | I58: -0.06359300477 | J58: -0.01951359337 | K58: -0.01951359337
A59: ='دیده بان'!A45 -> ضفصبا300 | B59: ='دیده بان'!B45 -> 4800 | C59: ='دیده بان'!C45 -> 6290 | D59: ='دیده بان'!D45 -> 1403/03/20 | E59: ='دیده بان'!E45 -> 154 | F59: ='دیده بان'!G45 -> 2170 | G59: ='دیده بان'!I45 -> 1280 | H59: 5010 | I59: -0.2034976153 | J59: -0.008165487207 | K59: -0.008165487207
A60: ='دیده بان'!A404 -> ضبتهران303 | B60: ='دیده بان'!B404 -> 2300 | C60: ='دیده بان'!C404 -> 2570 | D60: ='دیده بان'!D404 -> 1403/03/20 | E60: ='دیده بان'!E404 -> 154 | F60: ='دیده بان'!G404 -> 0 | G60: ='دیده بان'!I404 -> 1000 | H60: 1570 | I60: -0.3891050584 | J60: 0.0905782116 | K60: 0.0905782116
A61: ='دیده بان'!A403 -> ضبتهران302 | B61: ='دیده بان'!B403 -> 2100 | C61: ='دیده بان'!C403 -> 2570 | D61: ='دیده بان'!D403 -> 1403/03/20 | E61: ='دیده بان'!E403 -> 154 | F61: ='دیده بان'!G403 -> 0 | G61: ='دیده بان'!I403 -> 1070 | H61: 1500 | I61: -0.4163424125 | J61: 0.07792207792 | K61: 0.07792207792
A62: ='دیده بان'!A265 -> ضدرا3004 | B62: ='دیده بان'!B265 -> 14000 | C62: ='دیده بان'!C265 -> 16540 | D62: ='دیده بان'!D265 -> 1403/03/13 | E62: ='دیده بان'!E265 -> 147 | F62: ='دیده بان'!G265 -> 0 | G62: ='دیده بان'!I265 -> 4350 | H62: 12190 | I62: -0.2629987908 | J62: 0.03030252298 | K62: 0.03030252298
A63: ='دیده بان'!A271 -> ضسلا3002 | B63: ='دیده بان'!B271 -> 13000 | C63: ='دیده بان'!C271 -> 16400 | D63: ='دیده بان'!D271 -> 1403/03/13 | E63: ='دیده بان'!E271 -> 147 | F63: ='دیده بان'!G271 -> 0 | G63: ='دیده بان'!I271 -> 5701 | H63: 10699 | I63: -0.3476219512 | J63: 0.04389118953 | K63: 0.04389118953
A64: ='دیده بان'!A64 -> ضخوز1032 | B64: ='دیده بان'!B64 -> 2800 | C64: ='دیده بان'!C64 -> 3527 | D64: ='دیده بان'!D64 -> 1402/10/17 | E64: ='دیده بان'!E64 -> 1 | F64: ='دیده بان'!G64 -> 1490 | G64: ='دیده بان'!I64 -> 590 | H64: 2937 | I64: -0.1672809753 | J64: -1.39938713 | K64: -1.39938713
A65: ='دیده بان'!A272 -> ضسلا3003 | B65: ='دیده بان'!B272 -> 14000 | C65: ='دیده بان'!C272 -> 16400 | D65: ='دیده بان'!D272 -> 1403/03/13 | E65: ='دیده بان'!E272 -> 147 | F65: ='دیده بان'!G272 -> 0 | G65: ='دیده بان'!I272 -> 5121 | H65: 11279 | I65: -0.3122560976 | J65: 0.04923363086 | K65: 0.04923363086
A66: ='دیده بان'!A323 -> ضسرو0303 | B66: ='دیده بان'!B323 -> 100000 | C66: ='دیده بان'!C323 -> 135300 | D66: ='دیده بان'!D323 -> 1403/03/09 | E66: ='دیده بان'!E323 -> 143 | F66: ='دیده بان'!G323 -> 0 | G66: ='دیده بان'!I323 -> 48000 | H66: =C66-G66 -> 87300 | I66: =IFERROR(-G66/C66,0) -> -0.354767184 | J66: =IF(C66<=B66,G66,B66+G66-C66)/H66/E66*30 -> 0.03051930887 | K66: =IFERROR((G66+B66-C66)/H66/E66*30,0) -> 0.03051930887
A67: ='دیده بان'!A148 -> ضسرو0304 | B67: ='دیده بان'!B148 -> 110000 | C67: ='دیده بان'!C148 -> 135300 | D67: ='دیده بان'!D148 -> 1403/03/09 | E67: ='دیده بان'!E148 -> 143 | F67: ='دیده بان'!G148 -> 50 | G67: ='دیده بان'!I148 -> 39000 | H67: 96300 | I67: -0.288248337 | J67: 0.02984554386 | K67: 0.02984554386
A68: ='دیده بان'!A186 -> ضسرو0302 | B68: ='دیده بان'!B186 -> 90000 | C68: ='دیده بان'!C186 -> 135300 | D68: ='دیده بان'!D186 -> 1403/03/09 | E68: ='دیده بان'!E186 -> 143 | F68: ='دیده بان'!G186 -> 1 | G68: ='دیده بان'!I186 -> 55667 | H68: 79633 | I68: -0.4114338507 | J68: 0.02731148023 | K68: 0.02731148023
A69: ='دیده بان'!A324 -> ضسرو0310 | B69: ='دیده بان'!B324 -> 180000 | C69: ='دیده بان'!C324 -> 135300 | D69: ='دیده بان'!D324 -> 1403/03/09 | E69: ='دیده بان'!E324 -> 143 | F69: ='دیده بان'!G324 -> 0 | G69: ='دیده بان'!I324 -> 1500 | H69: 133800 | I69: -0.0110864745 | J69: 0.002351908182 | K69: 0.07243877199
A70: ='دیده بان'!A422 -> ضحافرین300 | B70: ='دیده بان'!B422 -> 2968 | C70: ='دیده بان'!C422 -> 2528 | D70: ='دیده بان'!D422 -> 1403/03/06 | E70: ='دیده بان'!E422 -> 140 | F70: ='دیده بان'!G422 -> 0 | G70: ='دیده بان'!I422 -> 500 | H70: 2028 | I70: -0.1977848101 | J70: 0.0528317836 | K70: 0.09932375317
A71: ='دیده بان'!A442 -> ضکرمان310 | B71: ='دیده بان'!B442 -> 1998 | C71: ='دیده بان'!C442 -> 1323 | D71: ='دیده بان'!D442 -> 1403/03/02 | E71: ='دیده بان'!E442 -> 136 | F71: ='دیده بان'!G442 -> 0 | G71: ='دیده بان'!I442 -> 96 | H71: 1227 | I71: -0.07256235828 | J71: 0.01725873724 | K71: 0.1386092334
A72: ='دیده بان'!A83 -> ضستا1115 | B72: ='دیده بان'!B83 -> 1400 | C72: ='دیده بان'!C83 -> 1244 | D72: ='دیده بان'!D83 -> 1402/11/11 | E72: ='دیده بان'!E83 -> 24 | F72: ='دیده بان'!G83 -> 40811 | G72: ='دیده بان'!I83 -> 8 | H72: 1236 | I72: -0.006430868167 | J72: 0.008090614887 | K72: 0.1658576052
A73: ='دیده بان'!A69 -> ضستا1114 | B73: ='دیده بان'!B69 -> 1300 | C73: ='دیده بان'!C69 -> 1244 | D73: ='دیده بان'!D69 -> 1402/11/11 | E73: ='دیده بان'!E69 -> 24 | F73: ='دیده بان'!G69 -> 26379 | G73: ='دیده بان'!I69 -> 29 | H73: 1215 | I73: -0.02331189711 | J73: 0.02983539095 | K73: 0.08744855967
A74: ='دیده بان'!A434 -> ضکرمان306 | B74: ='دیده بان'!B434 -> 1598 | C74: ='دیده بان'!C434 -> 1323 | D74: ='دیده بان'!D434 -> 1403/03/02 | E74: ='دیده بان'!E434 -> 136 | F74: ='دیده بان'!G434 -> 0 | G74: ='دیده بان'!I434 -> 299 | H74: 1024 | I74: -0.2260015117 | J74: 0.06441004136 | K74: 0.123650046
A75: ='دیده بان'!A212 -> ضهرم2006 | B75: ='دیده بان'!B212 -> 20000 | C75: ='دیده بان'!C212 -> 20340 | D75: ='دیده بان'!D212 -> 1403/02/26 | E75: ='دیده بان'!E212 -> 129 | F75: ='دیده بان'!G212 -> 0 | G75: ='دیده بان'!I212 -> 4239 | H75: 16101 | I75: -0.2084070796 | J75: 0.05631601677 | K75: 0.05631601677
A76: ='دیده بان'!A123 -> ضهرم2008 | B76: ='دیده بان'!B123 -> 24000 | C76: ='دیده بان'!C123 -> 20340 | D76: ='دیده بان'!D123 -> 1403/02/26 | E76: ='دیده بان'!E123 -> 129 | F76: ='دیده بان'!G123 -> 29 | G76: ='دیده بان'!I123 -> 1930 | H76: 18410 | I76: -0.09488692232 | J76: 0.02438007655 | K76: 0.07061379685
A77: ='دیده بان'!A209 -> ضهرم2001 | B77: ='دیده بان'!B209 -> 13000 | C77: ='دیده بان'!C209 -> 20340 | D77: ='دیده بان'!D209 -> 1403/02/26 | E77: ='دیده بان'!E209 -> 129 | F77: ='دیده بان'!G209 -> 0 | G77: ='دیده بان'!I209 -> 10000 | H77: 10340 | I77: -0.4916420846 | J77: 0.05982636858 | K77: 0.05982636858
A78: ='دیده بان'!A210 -> ضهرم2004 | B78: ='دیده بان'!B210 -> 16000 | C78: ='دیده بان'!C210 -> 20340 | D78: ='دیده بان'!D210 -> 1403/02/26 | E78: ='دیده بان'!E210 -> 129 | F78: ='دیده بان'!G210 -> 0 | G78: ='دیده بان'!I210 -> 6900 | H78: 13440 | I78: -0.3392330383 | J78: 0.04429678848 | K78: 0.04429678848
A79: ='دیده بان'!A211 -> ضهرم2005 | B79: ='دیده بان'!B211 -> 18000 | C79: ='دیده بان'!C211 -> 20340 | D79: ='دیده بان'!D211 -> 1403/02/26 | E79: ='دیده بان'!E211 -> 129 | F79: ='دیده بان'!G211 -> 0 | G79: ='دیده بان'!I211 -> 6000 | H79: 14340 | I79: -0.2949852507 | J79: 0.05935584314 | K79: 0.05935584314
A80: ='دیده بان'!A136 -> ضهرم2007 | B80: ='دیده بان'!B136 -> 22000 | C80: ='دیده بان'!C136 -> 20340 | D80: ='دیده بان'!D136 -> 1403/02/26 | E80: ='دیده بان'!E136 -> 129 | F80: ='دیده بان'!G136 -> 10 | G80: ='دیده بان'!I136 -> 3170 | H80: 17170 | I80: -0.1558505408 | J80: 0.04293589414 | K80: 0.06541967466
A81: ='دیده بان'!A74 -> ضهرم2000 | B81: ='دیده بان'!B74 -> 12000 | C81: ='دیده بان'!C74 -> 20340 | D81: ='دیده بان'!D74 -> 1403/02/26 | E81: ='دیده بان'!E74 -> 129 | F81: ='دیده بان'!G74 -> 54 | G81: ='دیده بان'!I74 -> 9900 | H81: 10440 | I81: -0.4867256637 | J81: 0.03475006683 | K81: 0.03475006683
A82: ='دیده بان'!A102 -> ضبساما205 | B82: ='دیده بان'!B102 -> 10000 | C82: ='دیده بان'!C102 -> 9700 | D82: ='دیده بان'!D102 -> 1403/02/23 | E82: ='دیده بان'!E102 -> 126 | F82: ='دیده بان'!G102 -> 240 | G82: ='دیده بان'!I102 -> 700 | H82: 9000 | I82: -0.07216494845 | J82: 0.01851851852 | K82: 0.02645502646
A83: ='دیده بان'!A132 -> ضبساما206 | B83: ='دیده بان'!B132 -> 11000 | C83: ='دیده بان'!C132 -> 9700 | D83: ='دیده بان'!D132 -> 1403/02/23 | E83: ='دیده بان'!E132 -> 126 | F83: ='دیده بان'!G132 -> 108 | G83: ='دیده بان'!I132 -> 500 | H83: 9200 | I83: -0.05154639175 | J83: 0.01293995859 | K83: 0.04658385093
A84: ='دیده بان'!A60 -> ضبساما204 | B84: ='دیده بان'!B60 -> 9500 | C84: ='دیده بان'!C60 -> 9700 | D84: ='دیده بان'!D60 -> 1403/02/23 | E84: ='دیده بان'!E60 -> 126 | F84: ='دیده بان'!G60 -> 1335 | G84: ='دیده بان'!I60 -> 850 | H84: 8850 | I84: -0.08762886598 | J84: 0.01748722088 | K84: 0.01748722088
A85: ='دیده بان'!A66 -> ضبساما203 | B85: ='دیده بان'!B66 -> 9000 | C85: ='دیده بان'!C66 -> 9700 | D85: ='دیده بان'!D66 -> 1403/02/23 | E85: ='دیده بان'!E66 -> 126 | F85: ='دیده بان'!G66 -> 800 | G85: ='دیده بان'!I66 -> 750 | H85: 8950 | I85: -0.07731958763 | J85: 0.001330140995 | K85: 0.001330140995
A86: ='دیده بان'!A179 -> ضسپا1011 | B86: ='دیده بان'!B179 -> 5500 | C86: ='دیده بان'!C179 -> 2469 | D86: ='دیده بان'!D179 -> 1402/10/20 | E86: ='دیده بان'!E179 -> 3 | F86: ='دیده بان'!G179 -> 1717 | G86: ='دیده بان'!I179 -> 1 | H86: 2468 | I86: -0.0004050222762 | J86: 0.004051863857 | K86: 12.28525122
A87: ='دیده بان'!A193 -> ضبدر2057 | B87: ='دیده بان'!B193 -> 15000 | C87: ='دیده بان'!C193 -> 9600 | D87: ='دیده بان'!D193 -> 1403/02/19 | E87: ='دیده بان'!E193 -> 122 | F87: ='دیده بان'!G193 -> 1 | G87: ='دیده بان'!I193 -> 40 | H87: 9560 | I87: -0.004166666667 | J87: 0.001028877152 | K87: 0.1399272927
A88: ='دیده بان'!A71 -> ضجهش0205 | B88: ='دیده بان'!B71 -> 10000 | C88: ='دیده بان'!C71 -> 11320 | D88: ='دیده بان'!D71 -> 1403/02/12 | E88: ='دیده بان'!E71 -> 115 | F88: ='دیده بان'!G71 -> 205 | G88: ='دیده بان'!I71 -> 3000 | H88: 8320 | I88: -0.2650176678 | J88: 0.05267558528 | K88: 0.05267558528
A89: ='دیده بان'!A303 -> ضجهش0206 | B89: ='دیده بان'!B303 -> 11000 | C89: ='دیده بان'!C303 -> 11320 | D89: ='دیده بان'!D303 -> 1403/02/12 | E89: ='دیده بان'!E303 -> 115 | F89: ='دیده بان'!G303 -> 0 | G89: ='دیده بان'!I303 -> 3800 | H89: 7520 | I89: -0.3356890459 | J89: 0.1207215541 | K89: 0.1207215541
A90: ='دیده بان'!A157 -> ضستا2024 | B90: ='دیده بان'!B157 -> 1000 | C90: ='دیده بان'!C157 -> 1244 | D90: ='دیده بان'!D157 -> 1403/02/12 | E90: ='دیده بان'!E157 -> 115 | F90: ='دیده بان'!G157 -> 29 | G90: ='دیده بان'!I157 -> 467 | H90: 777 | I90: -0.3754019293 | J90: 0.07486990096 | K90: 0.07486990096
A91: ='دیده بان'!A101 -> ضجهش0201 | B91: ='دیده بان'!B101 -> 7000 | C91: ='دیده بان'!C101 -> 11320 | D91: ='دیده بان'!D101 -> 1403/02/12 | E91: ='دیده بان'!E101 -> 115 | F91: ='دیده بان'!G101 -> 34 | G91: ='دیده بان'!I101 -> 5254 | H91: 6066 | I91: -0.4641342756 | J91: 0.04016686019 | K91: 0.04016686019
A92: ='دیده بان'!A167 -> ضسپا1007 | B92: ='دیده بان'!B167 -> 3750 | C92: ='دیده بان'!C167 -> 2469 | D92: ='دیده بان'!D167 -> 1402/10/20 | E92: ='دیده بان'!E167 -> 3 | F92: ='دیده بان'!G167 -> 4210 | G92: ='دیده بان'!I167 -> 1 | H92: 2468 | I92: -0.0004050222762 | J92: 0.004051863857 | K92: 5.194489465
A93: ='دیده بان'!A187 -> ضستا2023 | B93: ='دیده بان'!B187 -> 900 | C93: ='دیده بان'!C187 -> 1244 | D93: ='دیده بان'!D187 -> 1403/02/12 | E93: ='دیده بان'!E187 -> 115 | F93: ='دیده بان'!G187 -> 1 | G93: ='دیده بان'!I187 -> 530 | H93: 714 | I93: -0.4260450161 | J93: 0.06795761783 | K93: 0.06795761783
A94: ='دیده بان'!A104 -> ضسپا1004 | B94: ='دیده بان'!B104 -> 3000 | C94: ='دیده بان'!C104 -> 2469 | D94: ='دیده بان'!D104 -> 1402/10/20 | E94: ='دیده بان'!E104 -> 3 | F94: ='دیده بان'!G104 -> 163517 | G94: ='دیده بان'!I104 -> 1 | H94: 2468 | I94: -0.0004050222762 | J94: 0.004051863857 | K94: 2.155591572
A95: ='دیده بان'!A67 -> ضسپا1003 | B95: ='دیده بان'!B67 -> 2800 | C95: ='دیده بان'!C67 -> 2469 | D95: ='دیده بان'!D67 -> 1402/10/20 | E95: ='دیده بان'!E67 -> 3 | F95: ='دیده بان'!G67 -> 273234 | G95: ='دیده بان'!I67 -> 2 | H95: 2467 | I95: -0.0008100445525 | J95: 0.008107012566 | K95: 1.349817592
A96: ='دیده بان'!A109 -> ضذوب1124 | B96: ='دیده بان'!B109 -> 5000 | C96: ='دیده بان'!C109 -> 4546 | D96: ='دیده بان'!D109 -> 1402/11/02 | E96: ='دیده بان'!E109 -> 15 | F96: ='دیده بان'!G109 -> 2100 | G96: ='دیده بان'!I109 -> 48 | H96: 4498 | I96: -0.01055873295 | J96: 0.02134281903 | K96: 0.2232103157
A97: ='دیده بان'!A73 -> ضذوب1123 | B97: ='دیده بان'!B73 -> 4500 | C97: ='دیده بان'!C73 -> 4546 | D97: ='دیده بان'!D73 -> 1402/11/02 | E97: ='دیده بان'!E73 -> 15 | F97: ='دیده بان'!G73 -> 2730 | G97: ='دیده بان'!I73 -> 209 | H97: 4337 | I97: -0.04597448306 | J97: 0.07516716624 | K97: 0.07516716624
A98: ='دیده بان'!A419 -> ضصاد1141 | B98: ='دیده بان'!B419 -> 2712 | C98: ='دیده بان'!C419 -> 1851 | D98: ='دیده بان'!D419 -> 1402/11/11 | E98: ='دیده بان'!E419 -> 24 | F98: ='دیده بان'!G419 -> 0 | G98: ='دیده بان'!I419 -> 15 | H98: 1836 | I98: -0.008103727715 | J98: 0.0102124183 | K98: 0.5964052288
A99: ='دیده بان'!A184 -> ضستا2022 | B99: ='دیده بان'!B184 -> 800 | C99: ='دیده بان'!C184 -> 1244 | D99: ='دیده بان'!D184 -> 1403/02/12 | E99: ='دیده بان'!E184 -> 115 | F99: ='دیده بان'!G184 -> 1 | G99: ='دیده بان'!I184 -> 600 | H99: 644 | I99: -0.4823151125 | J99: 0.06319200648 | K99: 0.06319200648
A100: ='دیده بان'!A115 -> ضستا2026 | B100: ='دیده بان'!B115 -> 1200 | C100: ='دیده بان'!C115 -> 1244 | D100: ='دیده بان'!D115 -> 1403/02/12 | E100: ='دیده بان'!E115 -> 115 | F100: ='دیده بان'!G115 -> 437 | G100: ='دیده بان'!I115 -> 188 | H100: 1056 | I100: -0.1511254019 | J100: 0.03557312253 | K100: 0.03557312253
A101: ='دیده بان'!A302 -> ضجهش0204 | B101: ='دیده بان'!B302 -> 9000 | C101: ='دیده بان'!C302 -> 11320 | D101: ='دیده بان'!D302 -> 1403/02/12 | E101: ='دیده بان'!E302 -> 115 | F101: ='دیده بان'!G302 -> 0 | G101: ='دیده بان'!I302 -> 5300 | H101: 6020 | I101: -0.4681978799 | J101: 0.1291347682 | K101: 0.1291347682
A102: ='دیده بان'!A304 -> ضجهش0207 | B102: ='دیده بان'!B304 -> 12000 | C102: ='دیده بان'!C304 -> 11320 | D102: ='دیده بان'!D304 -> 1403/02/12 | E102: ='دیده بان'!E304 -> 115 | F102: ='دیده بان'!G304 -> 0 | G102: ='دیده بان'!I304 -> 1600 | H102: 9720 | I102: -0.1413427562 | J102: 0.04294149222 | K102: 0.06119162641
A103: ='دیده بان'!A70 -> ضجهش0200 | B103: ='دیده بان'!B70 -> 6500 | C103: ='دیده بان'!C70 -> 11320 | D103: ='دیده بان'!D70 -> 1403/02/12 | E103: ='دیده بان'!E70 -> 115 | F103: ='دیده بان'!G70 -> 110 | G103: ='دیده بان'!I70 -> 5560 | H103: 5760 | I103: -0.4911660777 | J103: 0.03351449275 | K103: 0.03351449275
A104: ='دیده بان'!A348 -> ضذوب1115 | B104: ='دیده بان'!B348 -> 2400 | C104: ='دیده بان'!C348 -> 4546 | D104: ='دیده بان'!D348 -> 1402/11/02 | E104: ='دیده بان'!E348 -> 15 | F104: ='دیده بان'!G348 -> 0 | G104: ='دیده بان'!I348 -> 2300 | H104: 2246 | I104: -0.5059392873 | J104: 0.1371326803 | K104: 0.1371326803
A105: ='دیده بان'!A22 -> ضذوب1122 | B105: ='دیده بان'!B22 -> 4000 | C105: ='دیده بان'!C22 -> 4546 | D105: ='دیده بان'!D22 -> 1402/11/02 | E105: ='دیده بان'!E22 -> 15 | F105: ='دیده بان'!G22 -> 19502 | G105: ='دیده بان'!I22 -> 640 | H105: 3906 | I105: -0.140783106 | J105: 0.04813108039 | K105: 0.04813108039
A106: ='دیده بان'!A56 -> ضجهش0202 | B106: ='دیده بان'!B56 -> 7500 | C106: ='دیده بان'!C56 -> 11320 | D106: ='دیده بان'!D56 -> 1403/02/12 | E106: ='دیده بان'!E56 -> 115 | F106: ='دیده بان'!G56 -> 285 | G106: ='دیده بان'!I56 -> 4665 | H106: 6655 | I106: -0.4121024735 | J106: 0.03312318296 | K106: 0.03312318296
A107: ='دیده بان'!A426 -> ضجهش0203 | B107: ='دیده بان'!B426 -> 8000 | C107: ='دیده بان'!C426 -> 11320 | D107: ='دیده بان'!D426 -> 1403/02/12 | E107: ='دیده بان'!E426 -> 115 | F107: ='دیده بان'!G426 -> 0 | G107: ='دیده بان'!I426 -> 5000 | H107: 6320 | I107: -0.4416961131 | J107: 0.0693450743 | K107: 0.0693450743
A108: ='دیده بان'!A108 -> ضسپا1014 | B108: ='دیده بان'!B108 -> 1700 | C108: ='دیده بان'!C108 -> 2469 | D108: ='دیده بان'!D108 -> 1402/10/20 | E108: ='دیده بان'!E108 -> 3 | F108: ='دیده بان'!G108 -> 171 | G108: ='دیده بان'!I108 -> 733 | H108: 1736 | I108: -0.2968813285 | J108: -0.2073732719 | K108: -0.2073732719
A109: ='دیده بان'!A41 -> ضذوب1121 | B109: ='دیده بان'!B41 -> 3750 | C109: ='دیده بان'!C41 -> 4546 | D109: ='دیده بان'!D41 -> 1402/11/02 | E109: ='دیده بان'!E41 -> 15 | F109: ='دیده بان'!G41 -> 4436 | G109: ='دیده بان'!I41 -> 852 | H109: 3694 | I109: -0.1874175099 | J109: 0.03031943692 | K109: 0.03031943692
A110: ='دیده بان'!A113 -> ضشنا2038 | B110: ='دیده بان'!B113 -> 8000 | C110: ='دیده بان'!C113 -> 8210 | D110: ='دیده بان'!D113 -> 1403/02/09 | E110: ='دیده بان'!E113 -> 112 | F110: ='دیده بان'!G113 -> 85 | G110: ='دیده بان'!I113 -> 1152 | H110: 7058 | I110: -0.140316687 | J110: 0.03574970651 | K110: 0.03574970651
A111: ='دیده بان'!A313 -> ضشنا2039 | B111: ='دیده بان'!B313 -> 9000 | C111: ='دیده بان'!C313 -> 8210 | D111: ='دیده بان'!D313 -> 1403/02/09 | E111: ='دیده بان'!E313 -> 112 | F111: ='دیده بان'!G313 -> 0 | G111: ='دیده بان'!I313 -> 1 | H111: 8209 | I111: -0.0001218026797 | J111: 3.262969215e-05 | K111: 0.02581008649
A112: ='دیده بان'!A314 -> ضشنا2042 | B112: ='دیده بان'!B314 -> 12000 | C112: ='دیده بان'!C314 -> 8210 | D112: ='دیده بان'!D314 -> 1403/02/09 | E112: ='دیده بان'!E314 -> 112 | F112: ='دیده بان'!G314 -> 0 | G112: ='دیده بان'!I314 -> 70 | H112: 8140 | I112: -0.008526187576 | J112: 0.002303439803 | K112: 0.127018252
A113: ='دیده بان'!A329 -> ضتاب0210 | B113: ='دیده بان'!B329 -> 14000 | C113: ='دیده بان'!C329 -> 9900 | D113: ='دیده بان'!D329 -> 1403/02/05 | E113: ='دیده بان'!E329 -> 108 | F113: ='دیده بان'!G329 -> 0 | G113: ='دیده بان'!I329 -> 499 | H113: 9401 | I113: -0.0504040404 | J113: 0.01474429434 | K113: 0.135889799
A114: ='دیده بان'!A84 -> ضتاب0205 | B114: ='دیده بان'!B84 -> 9000 | C114: ='دیده بان'!C84 -> 9900 | D114: ='دیده بان'!D84 -> 1403/02/05 | E114: ='دیده بان'!E84 -> 108 | F114: ='دیده بان'!G84 -> 165 | G114: ='دیده بان'!I84 -> 2040 | H114: 7860 | I114: -0.2060606061 | J114: 0.04028837998 | K114: 0.04028837998
A115: ='دیده بان'!A100 -> ضتاب0202 | B115: ='دیده بان'!B100 -> 7000 | C115: ='دیده بان'!C100 -> 9900 | D115: ='دیده بان'!D100 -> 1403/02/05 | E115: ='دیده بان'!E100 -> 108 | F115: ='دیده بان'!G100 -> 50 | G115: ='دیده بان'!I100 -> 3710 | H115: 6190 | I115: -0.3747474747 | J115: 0.03634894992 | K115: 0.03634894992
A116: ='دیده بان'!A116 -> ضبساما1102 | B116: ='دیده بان'!B116 -> 9500 | C116: ='دیده بان'!C116 -> 9700 | D116: ='دیده بان'!D116 -> 1402/11/04 | E116: ='دیده بان'!E116 -> 17 | F116: ='دیده بان'!G116 -> 100 | G116: ='دیده بان'!I116 -> 800 | H116: 8900 | I116: -0.0824742268 | J116: 0.1189689359 | K116: 0.1189689359
A117: ='دیده بان'!A126 -> ضتاب0204 | B117: ='دیده بان'!B126 -> 8000 | C117: ='دیده بان'!C126 -> 9900 | D117: ='دیده بان'!D126 -> 1403/02/05 | E117: ='دیده بان'!E126 -> 108 | F117: ='دیده بان'!G126 -> 18 | G117: ='دیده بان'!I126 -> 2930 | H117: 6970 | I117: -0.295959596 | J117: 0.0410489399 | K117: 0.0410489399
A118: ='دیده بان'!A77 -> ضتاب0200 | B118: ='دیده بان'!B77 -> 6000 | C118: ='دیده بان'!C77 -> 9900 | D118: ='دیده بان'!D77 -> 1403/02/05 | E118: ='دیده بان'!E77 -> 108 | F118: ='دیده بان'!G77 -> 104 | G118: ='دیده بان'!I77 -> 4600 | H118: 5300 | I118: -0.4646464646 | J118: 0.03668763103 | K118: 0.03668763103
A119: ='دیده بان'!A175 -> ضتاب0207 | B119: ='دیده بان'!B175 -> 11000 | C119: ='دیده بان'!C175 -> 9900 | D119: ='دیده بان'!D175 -> 1403/02/05 | E119: ='دیده بان'!E175 -> 108 | F119: ='دیده بان'!G175 -> 3 | G119: ='دیده بان'!I175 -> 950 | H119: 8950 | I119: -0.09595959596 | J119: 0.02948479205 | K119: 0.06362507759
A120: ='دیده بان'!A130 -> ضتاب0206 | B120: ='دیده بان'!B130 -> 10000 | C120: ='دیده بان'!C130 -> 9900 | D120: ='دیده بان'!D130 -> 1403/02/05 | E120: ='دیده بان'!E130 -> 108 | F120: ='دیده بان'!G130 -> 30 | G120: ='دیده بان'!I130 -> 1600 | H120: 8300 | I120: -0.1616161616 | J120: 0.05354752343 | K120: 0.05689424364
A121: ='دیده بان'!A121 -> ضسپا1015 | B121: ='دیده بان'!B121 -> 1800 | C121: ='دیده بان'!C121 -> 2469 | D121: ='دیده بان'!D121 -> 1402/10/20 | E121: ='دیده بان'!E121 -> 3 | F121: ='دیده بان'!G121 -> 103 | G121: ='دیده بان'!I121 -> 638 | H121: 1831 | I121: -0.2584042122 | J121: -0.16930639 | K121: -0.16930639
A122: ='دیده بان'!A326 -> ضتاب0203 | B122: ='دیده بان'!B326 -> 7500 | C122: ='دیده بان'!C326 -> 9900 | D122: ='دیده بان'!D326 -> 1403/02/05 | E122: ='دیده بان'!E326 -> 108 | F122: ='دیده بان'!G326 -> 0 | G122: ='دیده بان'!I326 -> 3170 | H122: 6730 | I122: -0.3202020202 | J122: 0.03178140994 | K122: 0.03178140994
A123: ='دیده بان'!A327 -> ضتاب0208 | B123: ='دیده بان'!B327 -> 12000 | C123: ='دیده بان'!C327 -> 9900 | D123: ='دیده بان'!D327 -> 1403/02/05 | E123: ='دیده بان'!E327 -> 108 | F123: ='دیده بان'!G327 -> 0 | G123: ='دیده بان'!I327 -> 520 | H123: 9380 | I123: -0.05252525253 | J123: 0.0153991945 | K123: 0.07758824923
A124: ='دیده بان'!A328 -> ضتاب0209 | B124: ='دیده بان'!B328 -> 13000 | C124: ='دیده بان'!C328 -> 9900 | D124: ='دیده بان'!D328 -> 1403/02/05 | E124: ='دیده بان'!E328 -> 108 | F124: ='دیده بان'!G328 -> 0 | G124: ='دیده بان'!I328 -> 450 | H124: 9450 | I124: -0.04545454545 | J124: 0.01322751323 | K124: 0.1043503821
A125: ='دیده بان'!A325 -> ضتاب0201 | B125: ='دیده بان'!B325 -> 6500 | C125: ='دیده بان'!C325 -> 9900 | D125: ='دیده بان'!D325 -> 1403/02/05 | E125: ='دیده بان'!E325 -> 108 | F125: ='دیده بان'!G325 -> 0 | G125: ='دیده بان'!I325 -> 3990 | H125: 5910 | I125: -0.403030303 | J125: 0.02773077646 | K125: 0.02773077646
A126: ='دیده بان'!A321 -> ضترا0100 | B126: ='دیده بان'!B321 -> 3000 | C126: ='دیده بان'!C321 -> 4200 | D126: ='دیده بان'!D321 -> 1403/01/29 | E126: ='دیده بان'!E321 -> 101 | F126: ='دیده بان'!G321 -> 0 | G126: ='دیده بان'!I321 -> 1800 | H126: 2400 | I126: -0.4285714286 | J126: 0.07425742574 | K126: 0.07425742574
A127: ='دیده بان'!A322 -> ضترا0110 | B127: ='دیده بان'!B322 -> 7000 | C127: ='دیده بان'!C322 -> 4200 | D127: ='دیده بان'!D322 -> 1403/01/29 | E127: ='دیده بان'!E322 -> 101 | F127: ='دیده بان'!G322 -> 0 | G127: ='دیده بان'!I322 -> 2 | H127: 4198 | I127: -0.0004761904762 | J127: 0.0001415101015 | K127: 0.1982556521
A128: ='دیده بان'!A410 -> ضصاد0102 | B128: ='دیده بان'!B410 -> 1448 | C128: ='دیده بان'!C410 -> 1851 | D128: ='دیده بان'!D410 -> 1403/01/26 | E128: ='دیده بان'!E410 -> 98 | F128: ='دیده بان'!G410 -> 0 | G128: ='دیده بان'!I410 -> 531 | H128: 1320 | I128: -0.2868719611 | J128: 0.02968460111 | K128: 0.02968460111
A129: ='دیده بان'!A414 -> ضفلا0102 | B129: ='دیده بان'!B414 -> 5000 | C129: ='دیده بان'!C414 -> 6200 | D129: ='دیده بان'!D414 -> 1403/01/26 | E129: ='دیده بان'!E414 -> 98 | F129: ='دیده بان'!G414 -> 0 | G129: ='دیده بان'!I414 -> 1560 | H129: 4640 | I129: -0.2516129032 | J129: 0.02375087966 | K129: 0.02375087966
A130: ='دیده بان'!A112 -> ضصاد0108 | B130: ='دیده بان'!B112 -> 2172 | C130: ='دیده بان'!C112 -> 1851 | D130: ='دیده بان'!D112 -> 1403/01/26 | E130: ='دیده بان'!E112 -> 98 | F130: ='دیده بان'!G112 -> 1000 | G130: ='دیده بان'!I112 -> 100 | H130: =C130-G130 -> 1751 | I130: =IFERROR(-G130/C130,0) -> -0.05402485143 | J130: =IF(C130<=B130,G130,B130+G130-C130)/H130/E130*30 -> 0.01748272124 | K130: =IFERROR((G130+B130-C130)/H130/E130*30,0) -> 0.07360225644
A131: ='دیده بان'!A249 -> ضصاد0106 | B131: ='دیده بان'!B249 -> 1810 | C131: ='دیده بان'!C249 -> 1851 | D131: ='دیده بان'!D249 -> 1403/01/26 | E131: ='دیده بان'!E249 -> 98 | F131: ='دیده بان'!G249 -> 0 | G131: ='دیده بان'!I249 -> 500 | H131: 1351 | I131: -0.2701242572 | J131: 0.1040045922 | K131: 0.1040045922
A132: ='دیده بان'!A280 -> ضفلا0101 | B132: ='دیده بان'!B280 -> 4500 | C132: ='دیده بان'!C280 -> 6200 | D132: ='دیده بان'!D280 -> 1403/01/26 | E132: ='دیده بان'!E280 -> 98 | F132: ='دیده بان'!G280 -> 0 | G132: ='دیده بان'!I280 -> 2130 | H132: 4070 | I132: -0.3435483871 | J132: 0.0323421752 | K132: 0.0323421752
A133: ='دیده بان'!A409 -> ضفلا0103 | B133: ='دیده بان'!B409 -> 5500 | C133: ='دیده بان'!C409 -> 6200 | D133: ='دیده بان'!D409 -> 1403/01/26 | E133: ='دیده بان'!E409 -> 98 | F133: ='دیده بان'!G409 -> 0 | G133: ='دیده بان'!I409 -> 1220 | H133: 4980 | I133: -0.1967741935 | J133: 0.03196459307 | K133: 0.03196459307
A134: ='دیده بان'!A411 -> ضصاد0107 | B134: ='دیده بان'!B411 -> 1991 | C134: ='دیده بان'!C411 -> 1851 | D134: ='دیده بان'!D411 -> 1403/01/26 | E134: ='دیده بان'!E411 -> 98 | F134: ='دیده بان'!G411 -> 0 | G134: ='دیده بان'!I411 -> 202 | H134: 1649 | I134: -0.1091301999 | J134: 0.0374995359 | K134: 0.06348931325
A135: ='دیده بان'!A76 -> ضهرم0107 | B135: ='دیده بان'!B76 -> 22000 | C135: ='دیده بان'!C76 -> 20340 | D135: ='دیده بان'!D76 -> 1403/01/22 | E135: ='دیده بان'!E76 -> 94 | F135: ='دیده بان'!G76 -> 200 | G135: ='دیده بان'!I76 -> 2441 | H135: 17899 | I135: -0.1200098328 | J135: 0.04352436187 | K135: 0.07312306761
A136: ='دیده بان'!A88 -> ضهرم0108 | B136: ='دیده بان'!B88 -> 24000 | C136: ='دیده بان'!C88 -> 20340 | D136: ='دیده بان'!D88 -> 1403/01/22 | E136: ='دیده بان'!E88 -> 94 | F136: ='دیده بان'!G88 -> 201 | G136: ='دیده بان'!I88 -> 1267 | H136: 19073 | I136: -0.06229105211 | J136: 0.02120073938 | K136: 0.08244360135
A137: ='دیده بان'!A207 -> ضهرم0106 | B137: ='دیده بان'!B207 -> 20000 | C137: ='دیده بان'!C207 -> 20340 | D137: ='دیده بان'!D207 -> 1403/01/22 | E137: ='دیده بان'!E207 -> 94 | F137: ='دیده بان'!G207 -> 0 | G137: ='دیده بان'!I207 -> 3501 | H137: 16839 | I137: -0.1721238938 | J137: 0.05991031458 | K137: 0.05991031458
A138: ='دیده بان'!A208 -> ضهرم0109 | B138: ='دیده بان'!B208 -> 26000 | C138: ='دیده بان'!C208 -> 20340 | D138: ='دیده بان'!D208 -> 1403/01/22 | E138: ='دیده بان'!E208 -> 94 | F138: ='دیده بان'!G208 -> 0 | G138: ='دیده بان'!I208 -> 599 | H138: 19741 | I138: -0.02944936087 | J138: 0.009683917368 | K138: 0.1011880448
A139: ='دیده بان'!A188 -> ضهرم0110 | B139: ='دیده بان'!B188 -> 28000 | C139: ='دیده بان'!C188 -> 20340 | D139: ='دیده بان'!D188 -> 1403/01/22 | E139: ='دیده بان'!E188 -> 94 | F139: ='دیده بان'!G188 -> 1 | G139: ='دیده بان'!I188 -> 499 | H139: 19841 | I139: -0.02453294002 | J139: 0.008026577247 | K139: 0.1312401678
A140: ='دیده بان'!A416 -> ضهرم0100 | B140: ='دیده بان'!B416 -> 12000 | C140: ='دیده بان'!C416 -> 20340 | D140: ='دیده بان'!D416 -> 1403/01/22 | E140: ='دیده بان'!E416 -> 94 | F140: ='دیده بان'!G416 -> 0 | G140: ='دیده بان'!I416 -> 1 | H140: 20339 | I140: -4.916420846e-05 | J140: -0.1308512207 | K140: -0.1308512207
A141: ='دیده بان'!A141 -> ضرول1005 | B141: ='دیده بان'!B141 -> 1850 | C141: ='دیده بان'!C141 -> 1999 | D141: ='دیده بان'!D141 -> 1402/10/24 | E141: ='دیده بان'!E141 -> 7 | F141: ='دیده بان'!G141 -> 202 | G141: ='دیده بان'!I141 -> 124 | H141: 1875 | I141: -0.06203101551 | J141: -0.05714285714 | K141: -0.05714285714
A142: ='دیده بان'!A138 -> ضملی0105 | B142: ='دیده بان'!B138 -> 7000 | C142: ='دیده بان'!C138 -> 7300 | D142: ='دیده بان'!D138 -> 1403/01/19 | E142: ='دیده بان'!E138 -> 91 | F142: ='دیده بان'!G138 -> 30 | G142: ='دیده بان'!I138 -> 1000 | H142: 6300 | I142: -0.1369863014 | J142: 0.03663003663 | K142: 0.03663003663
A143: ='دیده بان'!A350 -> ضذوب0104 | B143: ='دیده بان'!B350 -> 3750 | C143: ='دیده بان'!C350 -> 4546 | D143: ='دیده بان'!D350 -> 1403/01/19 | E143: ='دیده بان'!E350 -> 91 | F143: ='دیده بان'!G350 -> 0 | G143: ='دیده بان'!I350 -> 1750 | H143: 2796 | I143: -0.3849538055 | J143: 0.1124840824 | K143: 0.1124840824
A144: ='دیده بان'!A351 -> ضذوب0105 | B144: ='دیده بان'!B351 -> 4000 | C144: ='دیده بان'!C351 -> 4546 | D144: ='دیده بان'!D351 -> 1403/01/19 | E144: ='دیده بان'!E351 -> 91 | F144: ='دیده بان'!G351 -> 0 | G144: ='دیده بان'!I351 -> 950 | H144: 3596 | I144: -0.208974923 | J144: 0.03703748976 | K144: 0.03703748976
A145: ='دیده بان'!A352 -> ضذوب0109 | B145: ='دیده بان'!B352 -> 6000 | C145: ='دیده بان'!C352 -> 4546 | D145: ='دیده بان'!D352 -> 1403/01/19 | E145: ='دیده بان'!E352 -> 91 | F145: ='دیده بان'!G352 -> 0 | G145: ='دیده بان'!I352 -> 115 | H145: 4431 | I145: -0.02529696436 | J145: 0.008556101989 | K145: 0.1167349915
A146: ='دیده بان'!A124 -> ضخاور120 | B146: ='دیده بان'!B124 -> 3480 | C146: ='دیده بان'!C124 -> 3807 | D146: ='دیده بان'!D124 -> 1403/01/15 | E146: ='دیده بان'!E124 -> 87 | F146: ='دیده بان'!G124 -> 85 | G146: ='دیده بان'!I124 -> 656 | H146: 3151 | I146: -0.1723141581 | J146: 0.03600389586 | K146: 0.03600389586
A147: ='دیده بان'!A160 -> ضخاور131 | B147: ='دیده بان'!B160 -> 6880 | C147: ='دیده بان'!C160 -> 3807 | D147: ='دیده بان'!D160 -> 1403/01/15 | E147: ='دیده بان'!E160 -> 87 | F147: ='دیده بان'!G160 -> 100 | G147: ='دیده بان'!I160 -> 100 | H147: 3707 | I147: -0.02626740215 | J147: 0.009302065989 | K147: 0.2951545538
A148: ='دیده بان'!A34 -> ضخاور118 | B148: ='دیده بان'!B34 -> 3080 | C148: ='دیده بان'!C34 -> 3807 | D148: ='دیده بان'!D34 -> 1403/01/15 | E148: ='دیده بان'!E34 -> 87 | F148: ='دیده بان'!G34 -> 6261 | G148: ='دیده بان'!I34 -> 1022 | H148: 2785 | I148: -0.26845285 | J148: 0.03652572278 | K148: 0.03652572278
A149: ='دیده بان'!A146 -> ضخاور122 | B149: ='دیده بان'!B146 -> 3880 | C149: ='دیده بان'!C146 -> 3807 | D149: ='دیده بان'!D146 -> 1403/01/15 | E149: ='دیده بان'!E146 -> 87 | F149: ='دیده بان'!G146 -> 42 | G149: ='دیده بان'!I146 -> 555 | H149: 3252 | I149: -0.145784082 | J149: 0.05884972643 | K149: 0.06659032108
A150: ='دیده بان'!A91 -> ضخاور119 | B150: ='دیده بان'!B91 -> 3280 | C150: ='دیده بان'!C91 -> 3807 | D150: ='دیده بان'!D91 -> 1403/01/15 | E150: ='دیده بان'!E91 -> 87 | F150: ='دیده بان'!G91 -> 287 | G150: ='دیده بان'!I91 -> 830 | H150: 2977 | I150: -0.2180194379 | J150: 0.0350966606 | K150: 0.0350966606
A151: ='دیده بان'!A152 -> ضهای1104 | B151: ='دیده بان'!B152 -> 2000 | C151: ='دیده بان'!C152 -> 2090 | D151: ='دیده بان'!D152 -> 1402/11/15 | E151: ='دیده بان'!E152 -> 28 | F151: ='دیده بان'!G152 -> 100 | G151: ='دیده بان'!I152 -> 155 | H151: 1935 | I151: -0.07416267943 | J151: 0.03599114064 | K151: 0.03599114064
A152: ='دیده بان'!A192 -> ضبرک1004 | B152: ='دیده بان'!B192 -> 7000 | C152: ='دیده بان'!C192 -> 6880 | D152: ='دیده بان'!D192 -> 1402/10/17 | E152: ='دیده بان'!E192 -> 1 | F152: ='دیده بان'!G192 -> 86 | G152: ='دیده بان'!I192 -> 1 | H152: 6879 | I152: -0.0001453488372 | J152: 0.004361098997 | K152: 0.5276929786
A153: ='دیده بان'!A153 -> ضترو1101 | B153: ='دیده بان'!B153 -> 8000 | C153: ='دیده بان'!C153 -> 11740 | D153: ='دیده بان'!D153 -> 1402/11/15 | E153: ='دیده بان'!E153 -> 28 | F153: ='دیده بان'!G153 -> 4 | G153: ='دیده بان'!I153 -> 3770 | H153: 7970 | I153: -0.3211243612 | J153: 0.004032980821 | K153: 0.004032980821
A154: ='دیده بان'!A363 -> ضخاور121 | B154: ='دیده بان'!B363 -> 3680 | C154: ='دیده بان'!C363 -> 3807 | D154: ='دیده بان'!D363 -> 1403/01/15 | E154: ='دیده بان'!E363 -> 87 | F154: ='دیده بان'!G363 -> 0 | G154: ='دیده بان'!I363 -> 844 | H154: 2963 | I154: -0.2216968742 | J154: 0.08344292248 | K154: 0.08344292248
A155: ='دیده بان'!A364 -> ضخاور124 | B155: ='دیده بان'!B364 -> 4280 | C155: ='دیده بان'!C364 -> 3807 | D155: ='دیده بان'!D364 -> 1403/01/15 | E155: ='دیده بان'!E364 -> 87 | F155: ='دیده بان'!G364 -> 0 | G155: ='دیده بان'!I364 -> 300 | H155: 3507 | I155: -0.07880220646 | J155: 0.02949765494 | K155: 0.07600562422
A156: ='دیده بان'!A365 -> ضخاور129 | B156: ='دیده بان'!B365 -> 5880 | C156: ='دیده بان'!C365 -> 3807 | D156: ='دیده بان'!D365 -> 1403/01/15 | E156: ='دیده بان'!E365 -> 87 | F156: ='دیده بان'!G365 -> 0 | G156: ='دیده بان'!I365 -> 30 | H156: 3777 | I156: -0.007880220646 | J156: 0.002738900605 | K156: 0.1919969324
A157: ='دیده بان'!A366 -> ضخاور130 | B157: ='دیده بان'!B366 -> 6380 | C157: ='دیده بان'!C366 -> 3807 | D157: ='دیده بان'!D366 -> 1403/01/15 | E157: ='دیده بان'!E366 -> 87 | F157: ='دیده بان'!G366 -> 0 | G157: ='دیده بان'!I366 -> 30 | H157: 3777 | I157: -0.007880220646 | J157: 0.002738900605 | K157: 0.2376452759
A158: ='دیده بان'!A367 -> ضخاور132 | B158: ='دیده بان'!B367 -> 2480 | C158: ='دیده بان'!C367 -> 3807 | D158: ='دیده بان'!D367 -> 1403/01/15 | E158: ='دیده بان'!E367 -> 87 | F158: ='دیده بان'!G367 -> 0 | G158: ='دیده بان'!I367 -> 1700 | H158: 2107 | I158: -0.4465458366 | J158: 0.0610444659 | K158: 0.0610444659
A159: ='دیده بان'!A425 -> ضخاور123 | B159: ='دیده بان'!B425 -> 4080 | C159: ='دیده بان'!C425 -> 3807 | D159: ='دیده بان'!D425 -> 1403/01/15 | E159: ='دیده بان'!E425 -> 87 | F159: ='دیده بان'!G425 -> 0 | G159: ='دیده بان'!I425 -> 666 | H159: 3141 | I159: -0.1749408983 | J159: 0.07311530481 | K159: 0.1030859928
A160: ='دیده بان'!A433 -> ضخاور128 | B160: ='دیده بان'!B433 -> 5380 | C160: ='دیده بان'!C433 -> 3807 | D160: ='دیده بان'!D433 -> 1403/01/15 | E160: ='دیده بان'!E433 -> 87 | F160: ='دیده بان'!G433 -> 0 | G160: ='دیده بان'!I433 -> 30 | H160: 3777 | I160: -0.007880220646 | J160: 0.002738900605 | K160: 0.146348589
A161: ='دیده بان'!A163 -> ضستا0115 | B161: ='دیده بان'!B163 -> 1500 | C161: ='دیده بان'!C163 -> 1244 | D161: ='دیده بان'!D163 -> 1403/01/08 | E161: ='دیده بان'!E163 -> 80 | F161: ='دیده بان'!G163 -> 55 | G161: ='دیده بان'!I163 -> 96 | H161: 1148 | I161: -0.07717041801 | J161: 0.03135888502 | K161: 0.1149825784
A162: ='دیده بان'!A8 -> ضخود1121 | B162: ='دیده بان'!B8 -> 2800 | C162: ='دیده بان'!C8 -> 2829 | D162: ='دیده بان'!D8 -> 1402/11/11 | E162: ='دیده بان'!E8 -> 24 | F162: ='دیده بان'!G8 -> 211944 | G162: ='دیده بان'!I8 -> 150 | H162: =C162-G162 -> 2679 | I162: =IFERROR(-G162/C162,0) -> -0.05302226935 | J162: =IF(C162<=B162,G162,B162+G162-C162)/H162/E162*30 -> 0.05645763345 | K162: =IFERROR((G162+B162-C162)/H162/E162*30,0) -> 0.05645763345
A163: ='دیده بان'!A296 -> ضخود0117 | B163: ='دیده بان'!B296 -> 2200 | C163: ='دیده بان'!C296 -> 2829 | D163: ='دیده بان'!D296 -> 1403/01/08 | E163: ='دیده بان'!E296 -> 80 | F163: ='دیده بان'!G296 -> 0 | G163: ='دیده بان'!I296 -> 780 | H163: =C163-G163 -> 2049 | I163: =IFERROR(-G163/C163,0) -> -0.2757158006 | J163: =IF(C163<=B163,G163,B163+G163-C163)/H163/E163*30 -> 0.02763543192 | K163: =IFERROR((G163+B163-C163)/H163/E163*30,0) -> 0.02763543192
A164: ='دیده بان'!A172 -> ضخود0124 | B164: ='دیده بان'!B172 -> 3750 | C164: ='دیده بان'!C172 -> 2829 | D164: ='دیده بان'!D172 -> 1403/01/08 | E164: ='دیده بان'!E172 -> 80 | F164: ='دیده بان'!G172 -> 50 | G164: ='دیده بان'!I172 -> 70 | H164: =C164-G164 -> 2759 | I164: =IFERROR(-G164/C164,0) -> -0.0247437257 | J164: =IF(C164<=B164,G164,B164+G164-C164)/H164/E164*30 -> 0.009514316781 | K164: =IFERROR((G164+B164-C164)/H164/E164*30,0) -> 0.1346955419
A165: ='دیده بان'!A24 -> ضخود1219 | B165: ='دیده بان'!B24 -> 2800 | C165: ='دیده بان'!C24 -> 2829 | D165: ='دیده بان'!D24 -> 1402/12/02 | E165: ='دیده بان'!E24 -> 45 | F165: ='دیده بان'!G24 -> 49277 | G165: ='دیده بان'!I24 -> 241 | H165: =C165-G165 -> 2588 | I165: =IFERROR(-G165/C165,0) -> -0.08518911276 | J165: =IF(C165<=B165,G165,B165+G165-C165)/H165/E165*30 -> 0.05461102524 | K165: =IFERROR((G165+B165-C165)/H165/E165*30,0) -> 0.05461102524
A166: ='دیده بان'!A297 -> ضخود0119 | B166: ='دیده بان'!B297 -> 2600 | C166: ='دیده بان'!C297 -> 2829 | D166: ='دیده بان'!D297 -> 1403/01/08 | E166: ='دیده بان'!E297 -> 80 | F166: ='دیده بان'!G297 -> 0 | G166: ='دیده بان'!I297 -> 400 | H166: =C166-G166 -> 2429 | I166: =IFERROR(-G166/C166,0) -> -0.1413927183 | J166: =IF(C166<=B166,G166,B166+G166-C166)/H166/E166*30 -> 0.02639975298 | K166: =IFERROR((G166+B166-C166)/H166/E166*30,0) -> 0.02639975298
A167: ='دیده بان'!A288 -> ضخود0125 | B167: ='دیده بان'!B288 -> 4000 | C167: ='دیده بان'!C288 -> 2829 | D167: ='دیده بان'!D288 -> 1403/01/08 | E167: ='دیده بان'!E288 -> 80 | F167: ='دیده بان'!G288 -> 0 | G167: ='دیده بان'!I288 -> 56 | H167: =C167-G167 -> 2773 | I167: =IFERROR(-G167/C167,0) -> -0.01979498056 | J167: =IF(C167<=B167,G167,B167+G167-C167)/H167/E167*30 -> 0.007573025604 | K167: =IFERROR((G167+B167-C167)/H167/E167*30,0) -> 0.1659304003
A168: ='دیده بان'!A293 -> ضخود0114 | B168: ='دیده بان'!B293 -> 1800 | C168: ='دیده بان'!C293 -> 2829 | D168: ='دیده بان'!D293 -> 1403/01/08 | E168: ='دیده بان'!E293 -> 80 | F168: ='دیده بان'!G293 -> 0 | G168: ='دیده بان'!I293 -> 1276 | H168: =C168-G168 -> 1553 | I168: =IFERROR(-G168/C168,0) -> -0.4510427713 | J168: =IF(C168<=B168,G168,B168+G168-C168)/H168/E168*30 -> 0.05964262717 | K168: =IFERROR((G168+B168-C168)/H168/E168*30,0) -> 0.05964262717
A169: ='دیده بان'!A294 -> ضخود0115 | B169: ='دیده بان'!B294 -> 1900 | C169: ='دیده بان'!C294 -> 2829 | D169: ='دیده بان'!D294 -> 1403/01/08 | E169: ='دیده بان'!E294 -> 80 | F169: ='دیده بان'!G294 -> 0 | G169: ='دیده بان'!I294 -> 1000 | H169: =C169-G169 -> 1829 | I169: =IFERROR(-G169/C169,0) -> -0.3534817957 | J169: =IF(C169<=B169,G169,B169+G169-C169)/H169/E169*30 -> 0.01455713505 | K169: =IFERROR((G169+B169-C169)/H169/E169*30,0) -> 0.01455713505
A170: ='دیده بان'!A295 -> ضخود0116 | B170: ='دیده بان'!B295 -> 2000 | C170: ='دیده بان'!C295 -> 2829 | D170: ='دیده بان'!D295 -> 1403/01/08 | E170: ='دیده بان'!E295 -> 80 | F170: ='دیده بان'!G295 -> 0 | G170: ='دیده بان'!I295 -> 900 | H170: =C170-G170 -> 1929 | I170: =IFERROR(-G170/C170,0) -> -0.3181336161 | J170: =IF(C170<=B170,G170,B170+G170-C170)/H170/E170*30 -> 0.01380248834 | K170: =IFERROR((G170+B170-C170)/H170/E170*30,0) -> 0.01380248834
A171: ='دیده بان'!A171 -> ضخود1116 | B171: ='دیده بان'!B171 -> 1900 | C171: ='دیده بان'!C171 -> 2829 | D171: ='دیده بان'!D171 -> 1402/11/11 | E171: ='دیده بان'!E171 -> 24 | F171: ='دیده بان'!G171 -> 4 | G171: ='دیده بان'!I171 -> 920 | H171: =C171-G171 -> 1909 | I171: =IFERROR(-G171/C171,0) -> -0.325203252 | J171: =IF(C171<=B171,G171,B171+G171-C171)/H171/E171*30 -> -0.005893137768 | K171: =IFERROR((G171+B171-C171)/H171/E171*30,0) -> -0.005893137768
A172: ='دیده بان'!A298 -> ضخود0120 | B172: ='دیده بان'!B298 -> 2800 | C172: ='دیده بان'!C298 -> 2829 | D172: ='دیده بان'!D298 -> 1403/01/08 | E172: ='دیده بان'!E298 -> 80 | F172: ='دیده بان'!G298 -> 0 | G172: ='دیده بان'!I298 -> 300 | H172: =C172-G172 -> 2529 | I172: =IFERROR(-G172/C172,0) -> -0.1060445387 | J172: =IF(C172<=B172,G172,B172+G172-C172)/H172/E172*30 -> 0.04018386714 | K172: =IFERROR((G172+B172-C172)/H172/E172*30,0) -> 0.04018386714
A173: ='دیده بان'!A142 -> ضخود1126 | B173: ='دیده بان'!B142 -> 4000 | C173: ='دیده بان'!C142 -> 2829 | D173: ='دیده بان'!D142 -> 1402/11/11 | E173: ='دیده بان'!E142 -> 24 | F173: ='دیده بان'!G142 -> 3000 | G173: ='دیده بان'!I142 -> 8 | H173: =C173-G173 -> 2821 | I173: =IFERROR(-G173/C173,0) -> -0.002827854366 | J173: =IF(C173<=B173,G173,B173+G173-C173)/H173/E173*30 -> 0.003544842255 | K173: =IFERROR((G173+B173-C173)/H173/E173*30,0) -> 0.5224211273
A174: ='دیده بان'!A340 -> ضستا0111 | B174: ='دیده بان'!B340 -> 1100 | C174: ='دیده بان'!C340 -> 1244 | D174: ='دیده بان'!D340 -> 1403/01/08 | E174: ='دیده بان'!E340 -> 80 | F174: ='دیده بان'!G340 -> 0 | G174: ='دیده بان'!I340 -> 399 | H174: =C174-G174 -> 845 | I174: =IFERROR(-G174/C174,0) -> -0.3207395498 | J174: =IF(C174<=B174,G174,B174+G174-C174)/H174/E174*30 -> 0.1131656805 | K174: =IFERROR((G174+B174-C174)/H174/E174*30,0) -> 0.1131656805
A175: ='دیده بان'!A341 -> ضستا0112 | B175: ='دیده بان'!B341 -> 1200 | C175: ='دیده بان'!C341 -> 1244 | D175: ='دیده بان'!D341 -> 1403/01/08 | E175: ='دیده بان'!E341 -> 80 | F175: ='دیده بان'!G341 -> 0 | G175: ='دیده بان'!I341 -> 200 | H175: =C175-G175 -> 1044 | I175: =IFERROR(-G175/C175,0) -> -0.1607717042 | J175: =IF(C175<=B175,G175,B175+G175-C175)/H175/E175*30 -> 0.05603448276 | K175: =IFERROR((G175+B175-C175)/H175/E175*30,0) -> 0.05603448276
A176: ='دیده بان'!A139 -> ضخود0121 | B176: ='دیده بان'!B139 -> 3000 | C176: ='دیده بان'!C139 -> 2829 | D176: ='دیده بان'!D139 -> 1403/01/08 | E176: ='دیده بان'!E139 -> 80 | F176: ='دیده بان'!G139 -> 111 | G176: ='دیده بان'!I139 -> 280 | H176: =C176-G176 -> 2549 | I176: =IFERROR(-G176/C176,0) -> -0.09897490279 | J176: =IF(C176<=B176,G176,B176+G176-C176)/H176/E176*30 -> 0.04119262456 | K176: =IFERROR((G176+B176-C176)/H176/E176*30,0) -> 0.06634954884
A177: ='دیده بان'!A110 -> ضبساما1103 | B177: ='دیده بان'!B110 -> 10000 | C177: ='دیده بان'!C110 -> 9700 | D177: ='دیده بان'!D110 -> 1402/11/04 | E177: ='دیده بان'!E110 -> 17 | F177: ='دیده بان'!G110 -> 240 | G177: ='دیده بان'!I110 -> 497 | H177: =C177-G177 -> 9203 | I177: =IFERROR(-G177/C177,0) -> -0.0512371134 | J177: =IF(C177<=B177,G177,B177+G177-C177)/H177/E177*30 -> 0.09530140427 | K177: =IFERROR((G177+B177-C177)/H177/E177*30,0) -> 0.1528274028
A178: ='دیده بان'!A178 -> ضهای1105 | B178: ='دیده بان'!B178 -> 2200 | C178: ='دیده بان'!C178 -> 2090 | D178: ='دیده بان'!D178 -> 1402/11/15 | E178: ='دیده بان'!E178 -> 28 | F178: ='دیده بان'!G178 -> 13 | G178: ='دیده بان'!I178 -> 150 | H178: =C178-G178 -> 1940 | I178: =IFERROR(-G178/C178,0) -> -0.07177033493 | J178: =IF(C178<=B178,G178,B178+G178-C178)/H178/E178*30 -> 0.08284241532 | K178: =IFERROR((G178+B178-C178)/H178/E178*30,0) -> 0.1435935199
A179: ='دیده بان'!A287 -> ضهای1107 | B179: ='دیده بان'!B287 -> 2600 | C179: ='دیده بان'!C287 -> 2090 | D179: ='دیده بان'!D287 -> 1402/11/15 | E179: ='دیده بان'!E287 -> 28 | F179: ='دیده بان'!G287 -> 0 | G179: ='دیده بان'!I287 -> 10 | H179: =C179-G179 -> 2080 | I179: =IFERROR(-G179/C179,0) -> -0.004784688995 | J179: =IF(C179<=B179,G179,B179+G179-C179)/H179/E179*30 -> 0.005151098901 | K179: =IFERROR((G179+B179-C179)/H179/E179*30,0) -> 0.2678571429
A180: ='دیده بان'!A342 -> ضستا0113 | B180: ='دیده بان'!B342 -> 1300 | C180: ='دیده بان'!C342 -> 1244 | D180: ='دیده بان'!D342 -> 1403/01/08 | E180: ='دیده بان'!E342 -> 80 | F180: ='دیده بان'!G342 -> 0 | G180: ='دیده بان'!I342 -> 90 | H180: =C180-G180 -> 1154 | I180: =IFERROR(-G180/C180,0) -> -0.07234726688 | J180: =IF(C180<=B180,G180,B180+G180-C180)/H180/E180*30 -> 0.02924610052 | K180: =IFERROR((G180+B180-C180)/H180/E180*30,0) -> 0.04744367418
A181: ='دیده بان'!A181 -> ضخود1117 | B181: ='دیده بان'!B181 -> 2000 | C181: ='دیده بان'!C181 -> 2829 | D181: ='دیده بان'!D181 -> 1402/11/11 | E181: ='دیده بان'!E181 -> 24 | F181: ='دیده بان'!G181 -> 1 | G181: ='دیده بان'!I181 -> 900 | H181: =C181-G181 -> 1929 | I181: =IFERROR(-G181/C181,0) -> -0.3181336161 | J181: =IF(C181<=B181,G181,B181+G181-C181)/H181/E181*30 -> 0.04600829445 | K181: =IFERROR((G181+B181-C181)/H181/E181*30,0) -> 0.04600829445
A182: ='دیده بان'!A343 -> ضستا0114 | B182: ='دیده بان'!B343 -> 1400 | C182: ='دیده بان'!C343 -> 1244 | D182: ='دیده بان'!D343 -> 1403/01/08 | E182: ='دیده بان'!E343 -> 80 | F182: ='دیده بان'!G343 -> 0 | G182: ='دیده بان'!I343 -> 66 | H182: =C182-G182 -> 1178 | I182: =IFERROR(-G182/C182,0) -> -0.05305466238 | J182: =IF(C182<=B182,G182,B182+G182-C182)/H182/E182*30 -> 0.02101018676 | K182: =IFERROR((G182+B182-C182)/H182/E182*30,0) -> 0.07067062818
A183: ='دیده بان'!A344 -> ضستا0116 | B183: ='دیده بان'!B344 -> 1600 | C183: ='دیده بان'!C344 -> 1244 | D183: ='دیده بان'!D344 -> 1403/01/08 | E183: ='دیده بان'!E344 -> 80 | F183: ='دیده بان'!G344 -> 0 | G183: ='دیده بان'!I344 -> 39 | H183: =C183-G183 -> 1205 | I183: =IFERROR(-G183/C183,0) -> -0.03135048232 | J183: =IF(C183<=B183,G183,B183+G183-C183)/H183/E183*30 -> 0.01213692946 | K183: =IFERROR((G183+B183-C183)/H183/E183*30,0) -> 0.1229253112
A184: ='دیده بان'!A345 -> ضستا0117 | B184: ='دیده بان'!B345 -> 1700 | C184: ='دیده بان'!C345 -> 1244 | D184: ='دیده بان'!D345 -> 1403/01/08 | E184: ='دیده بان'!E345 -> 80 | F184: ='دیده بان'!G345 -> 0 | G184: ='دیده بان'!I345 -> 1 | H184: =C184-G184 -> 1243 | I184: =IFERROR(-G184/C184,0) -> -0.0008038585209 | J184: =IF(C184<=B184,G184,B184+G184-C184)/H184/E184*30 -> 0.000301689461 | K184: =IFERROR((G184+B184-C184)/H184/E184*30,0) -> 0.1378720837
A185: ='دیده بان'!A346 -> ضستا0119 | B185: ='دیده بان'!B346 -> 1900 | C185: ='دیده بان'!C346 -> 1244 | D185: ='دیده بان'!D346 -> 1403/01/08 | E185: ='دیده بان'!E346 -> 80 | F185: ='دیده بان'!G346 -> 0 | G185: ='دیده بان'!I346 -> 250 | H185: =C185-G185 -> 994 | I185: =IFERROR(-G185/C185,0) -> -0.2009646302 | J185: =IF(C185<=B185,G185,B185+G185-C185)/H185/E185*30 -> 0.09431589537 | K185: =IFERROR((G185+B185-C185)/H185/E185*30,0) -> 0.3418008048
A186: ='دیده بان'!A182 -> ضخود0118 | B186: ='دیده بان'!B182 -> 2400 | C186: ='دیده بان'!C182 -> 2829 | D186: ='دیده بان'!D182 -> 1403/01/08 | E186: ='دیده بان'!E182 -> 80 | F186: ='دیده بان'!G182 -> 1 | G186: ='دیده بان'!I182 -> 700 | H186: =C186-G186 -> 2129 | I186: =IFERROR(-G186/C186,0) -> -0.247437257 | J186: =IF(C186<=B186,G186,B186+G186-C186)/H186/E186*30 -> 0.04773367778 | K186: =IFERROR((G186+B186-C186)/H186/E186*30,0) -> 0.04773367778
A187: ='دیده بان'!A96 -> ضخود1124 | B187: ='دیده بان'!B96 -> 3500 | C187: ='دیده بان'!C96 -> 2829 | D187: ='دیده بان'!D96 -> 1402/11/11 | E187: ='دیده بان'!E96 -> 24 | F187: ='دیده بان'!G96 -> 19184 | G187: ='دیده بان'!I96 -> 8 | H187: =C187-G187 -> 2821 | I187: =IFERROR(-G187/C187,0) -> -0.002827854366 | J187: =IF(C187<=B187,G187,B187+G187-C187)/H187/E187*30 -> 0.003544842255 | K187: =IFERROR((G187+B187-C187)/H187/E187*30,0) -> 0.3008684864
A188: ='دیده بان'!A435 -> ضستا0110 | B188: ='دیده بان'!B435 -> 1000 | C188: ='دیده بان'!C435 -> 1244 | D188: ='دیده بان'!D435 -> 1403/01/08 | E188: ='دیده بان'!E435 -> 80 | F188: ='دیده بان'!G435 -> 0 | G188: ='دیده بان'!I435 -> 400 | H188: =C188-G188 -> 844 | I188: =IFERROR(-G188/C188,0) -> -0.3215434084 | J188: =IF(C188<=B188,G188,B188+G188-C188)/H188/E188*30 -> 0.06931279621 | K188: =IFERROR((G188+B188-C188)/H188/E188*30,0) -> 0.06931279621
A189: ='دیده بان'!A189 -> ضسپا1006 | B189: ='دیده بان'!B189 -> 3500 | C189: ='دیده بان'!C189 -> 2469 | D189: ='دیده بان'!D189 -> 1402/10/20 | E189: ='دیده بان'!E189 -> 3 | F189: ='دیده بان'!G189 -> 422 | G189: ='دیده بان'!I189 -> 1 | H189: =C189-G189 -> 2468 | I189: =IFERROR(-G189/C189,0) -> -0.0004050222762 | J189: =IF(C189<=B189,G189,B189+G189-C189)/H189/E189*30 -> 0.004051863857 | K189: =IFERROR((G189+B189-C189)/H189/E189*30,0) -> 4.181523501
A190: ='دیده بان'!A176 -> ضستا0109 | B190: ='دیده بان'!B176 -> 900 | C190: ='دیده بان'!C176 -> 1244 | D190: ='دیده بان'!D176 -> 1403/01/08 | E190: ='دیده بان'!E176 -> 80 | F190: ='دیده بان'!G176 -> 5 | G190: ='دیده بان'!I176 -> 412 | H190: =C190-G190 -> 832 | I190: =IFERROR(-G190/C190,0) -> -0.3311897106 | J190: =IF(C190<=B190,G190,B190+G190-C190)/H190/E190*30 -> 0.03064903846 | K190: =IFERROR((G190+B190-C190)/H190/E190*30,0) -> 0.03064903846
A191: ='دیده بان'!A28 -> ضخود1123 | B191: ='دیده بان'!B28 -> 3250 | C191: ='دیده بان'!C28 -> 2829 | D191: ='دیده بان'!D28 -> 1402/11/11 | E191: ='دیده بان'!E28 -> 24 | F191: ='دیده بان'!G28 -> 430606 | G191: ='دیده بان'!I28 -> 20 | H191: =C191-G191 -> 2809 | I191: =IFERROR(-G191/C191,0) -> -0.007069635914 | J191: =IF(C191<=B191,G191,B191+G191-C191)/H191/E191*30 -> 0.0088999644 | K191: =IFERROR((G191+B191-C191)/H191/E191*30,0) -> 0.196244215
A192: ='دیده بان'!A3 -> ضخود1120 | B192: ='دیده بان'!B3 -> 2600 | C192: ='دیده بان'!C3 -> 2829 | D192: ='دیده بان'!D3 -> 1402/11/11 | E192: ='دیده بان'!E3 -> 24 | F192: ='دیده بان'!G3 -> 246354 | G192: ='دیده بان'!I3 -> 310 | H192: =C192-G192 -> 2519 | I192: =IFERROR(-G192/C192,0) -> -0.1095793567 | J192: =IF(C192<=B192,G192,B192+G192-C192)/H192/E192*30 -> 0.04019452164 | K192: =IFERROR((G192+B192-C192)/H192/E192*30,0) -> 0.04019452164
A193: ='دیده بان'!A420 -> ضستا0118 | B193: ='دیده بان'!B420 -> 1800 | C193: ='دیده بان'!C420 -> 1244 | D193: ='دیده بان'!D420 -> 1403/01/08 | E193: ='دیده بان'!E420 -> 80 | F193: ='دیده بان'!G420 -> 0 | G193: ='دیده بان'!I420 -> 10 | H193: =C193-G193 -> 1234 | I193: =IFERROR(-G193/C193,0) -> -0.008038585209 | J193: =IF(C193<=B193,G193,B193+G193-C193)/H193/E193*30 -> 0.003038897893 | K193: =IFERROR((G193+B193-C193)/H193/E193*30,0) -> 0.1720016207
A194: ='دیده بان'!A430 -> ضخود0123 | B194: ='دیده بان'!B430 -> 3500 | C194: ='دیده بان'!C430 -> 2829 | D194: ='دیده بان'!D430 -> 1403/01/08 | E194: ='دیده بان'!E430 -> 80 | F194: ='دیده بان'!G430 -> 0 | G194: ='دیده بان'!I430 -> 107 | H194: =C194-G194 -> 2722 | I194: =IFERROR(-G194/C194,0) -> -0.03782255214 | J194: =IF(C194<=B194,G194,B194+G194-C194)/H194/E194*30 -> 0.01474099927 | K194: =IFERROR((G194+B194-C194)/H194/E194*30,0) -> 0.107182219
A195: ='دیده بان'!A195 -> ضسپا1005 | B195: ='دیده بان'!B195 -> 3250 | C195: ='دیده بان'!C195 -> 2469 | D195: ='دیده بان'!D195 -> 1402/10/20 | E195: ='دیده بان'!E195 -> 3 | F195: ='دیده بان'!G195 -> 22 | G195: ='دیده بان'!I195 -> 1 | H195: =C195-G195 -> 2468 | I195: =IFERROR(-G195/C195,0) -> -0.0004050222762 | J195: =IF(C195<=B195,G195,B195+G195-C195)/H195/E195*30 -> 0.004051863857 | K195: =IFERROR((G195+B195-C195)/H195/E195*30,0) -> 3.168557536
A196: ='دیده بان'!A196 -> ضخود1125 | B196: ='دیده بان'!B196 -> 3750 | C196: ='دیده بان'!C196 -> 2829 | D196: ='دیده بان'!D196 -> 1402/11/11 | E196: ='دیده بان'!E196 -> 24 | F196: ='دیده بان'!G196 -> 1 | G196: ='دیده بان'!I196 -> 7 | H196: =C196-G196 -> 2822 | I196: =IFERROR(-G196/C196,0) -> -0.00247437257 | J196: =IF(C196<=B196,G196,B196+G196-C196)/H196/E196*30 -> 0.003100637845 | K196: =IFERROR((G196+B196-C196)/H196/E196*30,0) -> 0.4110559887
A197: ='دیده بان'!A197 -> ضترو1102 | B197: ='دیده بان'!B197 -> 9000 | C197: ='دیده بان'!C197 -> 11740 | D197: ='دیده بان'!D197 -> 1402/11/15 | E197: ='دیده بان'!E197 -> 28 | F197: ='دیده بان'!G197 -> 0 | G197: ='دیده بان'!I197 -> 3050 | H197: =C197-G197 -> 8690 | I197: =IFERROR(-G197/C197,0) -> -0.2597955707 | J197: =IF(C197<=B197,G197,B197+G197-C197)/H197/E197*30 -> 0.0382212724 | K197: =IFERROR((G197+B197-C197)/H197/E197*30,0) -> 0.0382212724
A198: ='دیده بان'!A198 -> ضترو1103 | B198: ='دیده بان'!B198 -> 10000 | C198: ='دیده بان'!C198 -> 11740 | D198: ='دیده بان'!D198 -> 1402/11/15 | E198: ='دیده بان'!E198 -> 28 | F198: ='دیده بان'!G198 -> 0 | G198: ='دیده بان'!I198 -> 1500 | H198: =C198-G198 -> 10240 | I198: =IFERROR(-G198/C198,0) -> -0.1277683135 | J198: =IF(C198<=B198,G198,B198+G198-C198)/H198/E198*30 -> -0.02511160714 | K198: =IFERROR((G198+B198-C198)/H198/E198*30,0) -> -0.02511160714
A199: ='دیده بان'!A401 -> ضکاریس1201 | B199: ='دیده بان'!B401 -> 18000 | C199: ='دیده بان'!C401 -> 23187 | D199: ='دیده بان'!D401 -> 1402/12/28 | E199: ='دیده بان'!E401 -> 71 | F199: ='دیده بان'!G401 -> 0 | G199: ='دیده بان'!I401 -> 6267 | H199: =C199-G199 -> 16920 | I199: =IFERROR(-G199/C199,0) -> -0.2702807608 | J199: =IF(C199<=B199,G199,B199+G199-C199)/H199/E199*30 -> 0.02697033263 | K199: =IFERROR((G199+B199-C199)/H199/E199*30,0) -> 0.02697033263
A200: ='دیده بان'!A97 -> ضهرم1228 | B200: ='دیده بان'!B97 -> 28000 | C200: ='دیده بان'!C97 -> 20340 | D200: ='دیده بان'!D97 -> 1402/12/23 | E200: ='دیده بان'!E97 -> 66 | F200: ='دیده بان'!G97 -> 526 | G200: ='دیده بان'!I97 -> 400 | H200: =C200-G200 -> 19940 | I200: =IFERROR(-G200/C200,0) -> -0.01966568338 | J200: =IF(C200<=B200,G200,B200+G200-C200)/H200/E200*30 -> 0.009118263883 | K200: =IFERROR((G200+B200-C200)/H200/E200*30,0) -> 0.1837330172
... 801 more rows
